Workbook

Sheet Main
B10: 2019-07-31
B12: Sheet No. | C12: Template Name | D12: Summary
B13: 1 | C13: Future Intra | D13: For Intraday trading in F&O segment
B14: 2 | C14: Cash Intra | D14: For Intraday trading in cash market segment
B15: 3 | C15: Mid-cap Intra | D15: For Intraday trading in Mid-cap stocks
B16: 4 | C16: Bulk Deals | D16: Reveals Bulk Deals carried on NSE & BSE
B17: 5 | C17: Call Tracker
K27: `

Sheet Future Intra
M5: Back to Main Page
A6: FOR INTRA DAY TRADING | L6: =Main!B10 -> 2019-07-31
A9: Sr.no | B9: Sector | C9: Scrip | D9: CLOSE RATE | E9: Pivot Point | F9: Supports | I9: Resistances
B10: Sector | D10: Point | E10: Point | F10: S1 | G10: S2 | H10: S3 | I10: R1 | J10: R2 | K10: R3 | L10: HIGH | M10: LOW | N10: OI | O10: % Change in OI
A11: 1 | B11: Index | C11: BANKNIFTY | D11: 28853.40 | E11: 29080.88 | F11: 28573.62 | G11: 28293.83 | H11: 27786.57 | I11: 29360.67 | J11: 29867.93 | K11: 30147.72 | L11: 29588.15 | M11: 28801.1 | N11: 1458040 | O11: 0.61%
A12: 2 | B12: Index | C12: NIFTY | D12: 11095.20 | E12: 11155.05 | F12: 11020.15 | G12: 10945.10 | H12: 10810.20 | I12: 11230.10 | J12: 11365.00 | K12: 11440.05 | L12: 11289.95 | M12: 11080 | N12: 18145800 | O12: -0.38%
A13: 3 | B13: Index | C13: NIFTYIT | D13: 15548.00 | E13: 15529.33 | F13: 15479.67 | G13: 15411.33 | H13: 15361.67 | I13: 15597.67 | J13: 15647.33 | K13: 15715.67 | L13: 15579 | M13: 15461 | N13: 12700 | O13: -1.93%
A14: 4 | B14: Cement | C14: ACC | D14: 1535.60 | E14: 1544.08 | F14: 1520.72 | G14: 1505.83 | H14: 1482.47 | I14: 1558.97 | J14: 1582.33 | K14: 1597.22 | L14: 1567.45 | M14: 1529.2 | N14: 2148800 | O14: -6.36%
A15: 5 | B15: Others | C15: ADANIENT | D15: 125.70 | E15: 126.85 | F15: 122.50 | G15: 119.30 | H15: 114.95 | I15: 130.05 | J15: 134.40 | K15: 137.60 | L15: 131.2 | M15: 123.65 | N15: 30412000 | O15: 4.04%
A16: 6 | B16: Others | C16: ADANIPORTS | D16: 374.25 | E16: 375.95 | F16: 370.60 | G16: 366.95 | H16: 361.60 | I16: 379.60 | J16: 384.95 | K16: 388.60 | L16: 381.3 | M16: 372.3 | N16: 14992500 | O16: -2.82%
A17: 7 | B17: Power | C17: ADANIPOWER | D17: 60.60 | E17: 60.93 | F17: 59.72 | G17: 58.83 | H17: 57.62 | I17: 61.82 | J17: 63.03 | K17: 63.92 | L17: 62.15 | M17: 60.05 | N17: 113140000 | O17: -0.48%
A18: 8 | B18: Automobile | C18: AMARAJABAT | D18: 632.65 | E18: 636.12 | F18: 626.53 | G18: 620.42 | H18: 610.83 | I18: 642.23 | J18: 651.82 | K18: 657.93 | L18: 645.7 | M18: 630 | N18: 1591800 | O18: -3.03%
A19: 9 | B19: Cement | C19: AMBUJACEM | D19: 202.90 | E19: 204.70 | F19: 200.30 | G19: 197.70 | H19: 193.30 | I19: 207.30 | J19: 211.70 | K19: 214.30 | L19: 209.1 | M19: 202.1 | N19: 19882500 | O19: 1.96%
A20: 10 | B20: Others | C20: APOLLOHOSP | D20: 1334.75 | E20: 1348.10 | F20: 1317.85 | G20: 1300.95 | H20: 1270.70 | I20: 1365.00 | J20: 1395.25 | K20: 1412.15 | L20: 1378.35 | M20: 1331.2 | N20: 1303000 | O20: -2.80%
A21: 11 | B21: Automobile | C21: APOLLOTYRE | D21: 150.40 | E21: 151.80 | F21: 148.20 | G21: 146.00 | H21: 142.40 | I21: 154.00 | J21: 157.60 | K21: 159.80 | L21: 155.4 | M21: 149.6 | N21: 9963000 | O21: -0.92%
A22: 12 | B22: Textile | C22: ARVIND | D22: 54.20 | E22: 54.77 | F22: 52.88 | G22: 51.57 | H22: 49.68 | I22: 56.08 | J22: 57.97 | K22: 59.28 | L22: 56.65 | M22: 53.45 | N22: 8664000 | O22: -2.37%
A23: 13 | B23: Automobile | C23: ASHOKLEY | D23: 68.65 | E23: 69.90 | F23: 67.15 | G23: 65.65 | H23: 62.90 | I23: 71.40 | J23: 74.15 | K23: 75.65 | L23: 72.65 | M23: 68.4 | N23: 79470000 | O23: 0.63%
A24: 14 | B24: FMCG | C24: ASIANPAINT | D24: 1514.20 | E24: 1518.73 | F24: 1504.47 | G24: 1494.73 | H24: 1480.47 | I24: 1528.47 | J24: 1542.73 | K24: 1552.47 | L24: 1533 | M24: 1509 | N24: 6351000 | O24: 1.75%
A25: 15 | B25: Pharma | C25: AUROPHARMA | D25: 552.90 | E25: 560.42 | F25: 543.48 | G25: 534.07 | H25: 517.13 | I25: 569.83 | J25: 586.77 | K25: 596.18 | L25: 577.35 | M25: 551 | N25: 16043000 | O25: -1.67%
A26: 16 | B26: Banking | C26: AXISBANK | D26: 707.60 | E26: 713.20 | F26: 696.40 | G26: 685.20 | H26: 668.40 | I26: 724.40 | J26: 741.20 | K26: 752.40 | L26: 730 | M26: 702 | N26: 46914000 | O26: 1.41%
A27: 17 | B27: Automobile | C27: BAJAJ-AUTO | D27: 2473.65 | E27: 2485.52 | F27: 2445.18 | G27: 2416.72 | H27: 2376.38 | I27: 2513.98 | J27: 2554.32 | K27: 2582.78 | L27: 2525.85 | M27: 2457.05 | N27: 2164250 | O27: -1.29%
A28: 18 | B28: Finance | C28: BAJAJFINSV | D28: 7105.45 | E28: 7154.87 | F28: 7031.73 | G28: 6958.02 | H28: 6834.88 | I28: 7228.58 | J28: 7351.72 | K28: 7425.43 | L28: 7278 | M28: 7081.15 | N28: 900125 | O28: -3.25%
A29: 19 | B29: Finance | C29: BAJFINANCE | D29: 3258.05 | E29: 3270.75 | F29: 3232.15 | G29: 3206.25 | H29: 3167.65 | I29: 3296.65 | J29: 3335.25 | K29: 3361.15 | L29: 3309.35 | M29: 3244.85 | N29: 6969000 | O29: -4.07%
A30: 20 | B30: Automobile | C30: BALKRISIND | D30: 694.45 | E30: 701.60 | F30: 684.75 | G30: 675.05 | H30: 658.20 | I30: 711.30 | J30: 728.15 | K30: 737.85 | L30: 718.45 | M30: 691.9 | N30: 2082400 | O30: 1.64%
A31: 21 | B31: Banking | C31: BANKBARODA | D31: 103.05 | E31: 105.12 | F31: 99.68 | G31: 96.32 | H31: 90.88 | I31: 108.48 | J31: 113.92 | K31: 117.28 | L31: 110.55 | M31: 101.75 | N31: 59373000 | O31: -0.81%
A32: 22 | B32: Banking | C32: BANKINDIA | D32: 70.35 | E32: 72.30 | F32: 67.80 | G32: 65.25 | H32: 60.75 | I32: 74.85 | J32: 79.35 | K32: 81.90 | L32: 76.8 | M32: 69.75 | N32: 32034000 | O32: 13.84%
A33: 23 | B33: FMCG | C33: BATAINDIA | D33: 1304.35 | E33: 1310.30 | F33: 1291.05 | G33: 1277.75 | H33: 1258.50 | I33: 1323.60 | J33: 1342.85 | K33: 1356.15 | L33: 1329.55 | M33: 1297 | N33: 2438150 | O33: -4.19%
A34: 24 | B34: Capital_Goods | C34: BEL | D34: 96.45 | E34: 96.05 | F34: 92.40 | G34: 88.35 | H34: 84.70 | I34: 100.10 | J34: 103.75 | K34: 107.80 | L34: 99.7 | M34: 92 | N34: 37980000 | O34: 17.81%
A35: 25 | B35: FMCG | C35: BERGEPAINT | D35: 330.55 | E35: 333.02 | F35: 327.03 | G35: 323.52 | H35: 317.53 | I35: 336.53 | J35: 342.52 | K35: 346.03 | L35: 339 | M35: 329.5 | N35: 2149400 | O35: -3.36%
A36: 26 | B36: Automobile | C36: BHARATFORG | D36: 412.60 | E36: 416.92 | F36: 405.88 | G36: 399.17 | H36: 388.13 | I36: 423.63 | J36: 434.67 | K36: 441.38 | L36: 427.95 | M36: 410.2 | N36: 8241600 | O36: -0.54%
A37: 27 | B37: Telecom | C37: BHARTIARTL | D37: 346.55 | E37: 344.22 | F37: 338.53 | G37: 330.52 | H37: 324.83 | I37: 352.23 | J37: 357.92 | K37: 365.93 | L37: 349.9 | M37: 336.2 | N37: 32270334 | O37: 7.35%
A38: 28 | B38: Capital_Goods | C38: BHEL | D38: 57.85 | E38: 58.47 | F38: 57.03 | G38: 56.22 | H38: 54.78 | I38: 59.28 | J38: 60.72 | K38: 61.53 | L38: 59.9 | M38: 57.65 | N38: 47790000 | O38: 2.64%
A39: 29 | B39: Pharma | C39: BIOCON | D39: 234.80 | E39: 237.43 | F39: 231.37 | G39: 227.93 | H39: 221.87 | I39: 240.87 | J39: 246.93 | K39: 250.37 | L39: 243.5 | M39: 234 | N39: 12063600 | O39: -2.71%
A40: 30 | B40: Automobile | C40: BOSCHLTD | D40: 14248.45 | E40: 14419.15 | F40: 14033.55 | G40: 13818.65 | H40: 13433.05 | I40: 14634.05 | J40: 15019.65 | K40: 15234.55 | L40: 14804.75 | M40: 14204.25 | N40: 162060 | O40: 1.83%
A41: 31 | B41: Oil_Gas | C41: BPCL | D41: 328.60 | E41: 331.08 | F41: 325.27 | G41: 321.93 | H41: 316.12 | I41: 334.42 | J41: 340.23 | K41: 343.57 | L41: 336.9 | M41: 327.75 | N41: 12830400 | O41: -0.36%
A42: 32 | B42: FMCG | C42: BRITANNIA | D42: 2591.25 | E42: 2614.00 | F42: 2548.85 | G42: 2506.45 | H42: 2441.30 | I42: 2656.40 | J42: 2721.55 | K42: 2763.95 | L42: 2679.15 | M42: 2571.6 | N42: 2231200 | O42: 6.20%
A43: 33 | B43: Technology | C43: CADILAHC | D43: 220.15 | E43: 224.00 | F43: 215.50 | G43: 210.85 | H43: 202.35 | I43: 228.65 | J43: 237.15 | K43: 241.80 | L43: 232.5 | M43: 219.35 | N43: 14019200 | O43: -0.33%
A44: 34 | B44: Pharma | C44: CANBK | D44: 231.15 | E44: 234.48 | F44: 226.17 | G44: 221.18 | H44: 212.87 | I44: 239.47 | J44: 247.78 | K44: 252.77 | L44: 242.8 | M44: 229.5 | N44: 10640000 | O44: 11.84%
A45: 35 | B45: Banking | C45: CASTROLIND | D45: 122.55 | E45: 123.67 | F45: 120.88 | G45: 119.22 | H45: 116.43 | I45: 125.33 | J45: 128.12 | K45: 129.78 | L45: 126.45 | M45: 122 | N45: 8214400 | O45: -2.15%
A46: 36 | B46: Oil_Gas | C46: CENTURYTEX | D46: 874.65 | E46: 880.27 | F46: 862.53 | G46: 850.42 | H46: 832.68 | I46: 892.38 | J46: 910.12 | K46: 922.23 | L46: 898 | M46: 868.15 | N46: 3958200 | O46: -2.24%
A47: 37 | B47: Textile | C47: CESC | D47: 726.95 | E47: 731.98 | F47: 718.97 | G47: 710.98 | H47: 697.97 | I47: 739.97 | J47: 752.98 | K47: 760.97 | L47: 745 | M47: 724 | N47: 960000 | O47: 3.45%
A48: 38 | B48: Power | C48: CHOLAFIN | D48: 243.50 | E48: 242.80 | F48: 237.20 | G48: 230.90 | H48: 225.30 | I48: 249.10 | J48: 254.70 | K48: 261.00 | L48: 248.4 | M48: 236.5 | N48: 4097500 | O48: 27.25%
A49: 39 | B49: Finance | C49: CIPLA | D49: 518.00 | E49: 521.98 | F49: 512.02 | G49: 506.03 | H49: 496.07 | I49: 527.97 | J49: 537.93 | K49: 543.92 | L49: 531.95 | M49: 516 | N49: 11586000 | O49: 4.02%
A50: 40 | B50: Pharma | C50: COALINDIA | D50: 200.45 | E50: 202.35 | F50: 196.85 | G50: 193.25 | H50: 187.75 | I50: 205.95 | J50: 211.45 | K50: 215.05 | L50: 207.85 | M50: 198.75 | N50: 39628600 | O50: 8.23%
A51: 41 | B51: Others | C51: COLPAL | D51: 1165.35 | E51: 1170.63 | F51: 1157.47 | G51: 1149.58 | H51: 1136.42 | I51: 1178.52 | J51: 1191.68 | K51: 1199.57 | L51: 1183.8 | M51: 1162.75 | N51: 1892800 | O51: -0.11%
A52: 42 | B52: FMCG | C52: CONCOR | D52: 508.50 | E52: 507.98 | F52: 504.67 | G52: 500.83 | H52: 497.52 | I52: 511.82 | J52: 515.13 | K52: 518.97 | L52: 511.3 | M52: 504.15 | N52: 1824021 | O52: -2.26%
A53: 43 | B53: Others | C53: CUMMINSIND | D53: 685.45 | E53: 689.78 | F53: 678.37 | G53: 671.28 | H53: 659.87 | I53: 696.87 | J53: 708.28 | K53: 715.37 | L53: 701.2 | M53: 682.7 | N53: 2067800 | O53: 2.29%
A54: 44 | B54: Capital_Goods | C54: DABUR | D54: 422.60 | E54: 424.53 | F54: 419.32 | G54: 416.03 | H54: 410.82 | I54: 427.82 | J54: 433.03 | K54: 436.32 | L54: 429.75 | M54: 421.25 | N54: 13025000 | O54: -0.59%
A55: 45 | B55: FMCG | C55: DHFL | D55: 41.80 | E55: 43.68 | F55: 39.32 | G55: 36.83 | H55: 32.47 | I55: 46.17 | J55: 50.53 | K55: 53.02 | L55: 48.05 | M55: 41.2 | N55: 17032000 | O55: 6.29%
A56: 46 | B56: Finance | C56: DISHTV | D56: 28.55 | E56: 28.95 | F56: 27.60 | G56: 26.65 | H56: 25.30 | I56: 29.90 | J56: 31.25 | K56: 32.20 | L56: 30.3 | M56: 28 | N56: 102018000 | O56: -0.90%
A57: 47 | B57: Media | C57: DIVISLAB | D57: 1642.80 | E57: 1646.35 | F57: 1631.75 | G57: 1620.70 | H57: 1606.10 | I57: 1657.40 | J57: 1672.00 | K57: 1683.05 | L57: 1660.95 | M57: 1635.3 | N57: 2718800 | O57: 0.89%
A58: 48 | B58: Pharma | C58: DLF | D58: 178.00 | E58: 178.77 | F58: 174.73 | G58: 171.47 | H58: 167.43 | I58: 182.03 | J58: 186.07 | K58: 189.33 | L58: 182.8 | M58: 175.5 | N58: 34711600 | O58: 5.72%
A59: 49 | B59: Realty | C59: DRREDDY | D59: 2570.75 | E59: 2609.72 | F59: 2523.48 | G59: 2476.22 | H59: 2389.98 | I59: 2656.98 | J59: 2743.22 | K59: 2790.48 | L59: 2695.95 | M59: 2562.45 | N59: 3422500 | O59: 1.99%
A60: 50 | B60: Pharma | C60: EICHERMOT | D60: 16215.80 | E60: 16361.33 | F60: 15954.97 | G60: 15694.13 | H60: 15287.77 | I60: 16622.17 | J60: 17028.53 | K60: 17289.37 | L60: 16767.7 | M60: 16100.5 | N60: 401275 | O60: -0.06%
A61: 51 | B61: Automobile | C61: ENGINERSIN | D61: 95.35 | E61: 97.75 | F61: 92.50 | G61: 89.65 | H61: 84.40 | I61: 100.60 | J61: 105.85 | K61: 108.70 | L61: 103 | M61: 94.9 | N61: 7741800 | O61: 2.81%
A62: 52 | B62: Infrastructure | C62: EQUITAS | D62: 108.80 | E62: 110.57 | F62: 106.38 | G62: 103.97 | H62: 99.78 | I62: 112.98 | J62: 117.17 | K62: 119.58 | L62: 114.75 | M62: 108.15 | N62: 13428000 | O62: 0.39%
A63: 53 | B63: Finance | C63: ESCORTS | D63: 459.60 | E63: 466.02 | F63: 450.38 | G63: 441.17 | H63: 425.53 | I63: 475.23 | J63: 490.87 | K63: 500.08 | L63: 481.65 | M63: 456.8 | N63: 5398800 | O63: -5.63%
A64: 54 | B64: Automobile | C64: EXIDEIND | D64: 180.85 | E64: 181.70 | F64: 179.15 | G64: 177.45 | H64: 174.90 | I64: 183.40 | J64: 185.95 | K64: 187.65 | L64: 184.25 | M64: 180 | N64: 8491200 | O64: -3.47%
A65: 55 | B65: Automobile | C65: FEDERALBNK | D65: 90.85 | E65: 92.13 | F65: 89.17 | G65: 87.48 | H65: 84.52 | I65: 93.82 | J65: 96.78 | K65: 98.47 | L65: 95.1 | M65: 90.45 | N65: 36925000 | O65: 1.50%
A66: 56 | B66: Banking | C66: GAIL | D66: 128.75 | E66: 129.78 | F66: 127.17 | G66: 125.58 | H66: 122.97 | I66: 131.37 | J66: 133.98 | K66: 135.57 | L66: 132.4 | M66: 128.2 | N66: 37060632 | O66: 1.02%
A67: 57 | B67: Oil_Gas | C67: GLENMARK | D67: 415.30 | E67: 420.10 | F67: 402.20 | G67: 389.10 | H67: 371.20 | I67: 433.20 | J67: 451.10 | K67: 464.20 | L67: 438 | M67: 407 | N67: 5680000 | O67: 8.87%
A68: 58 | B68: Pharma | C68: GMRINFRA | D68: 14.25 | E68: 14.35 | F68: 14.00 | G68: 13.75 | H68: 13.40 | I68: 14.60 | J68: 14.95 | K68: 15.20 | L68: 14.7 | M68: 14.1 | N68: 152865000 | O68: -5.53%
A69: 59 | B69: Infrastructure | C69: GODREJCP | D69: 598.40 | E69: 604.57 | F69: 589.93 | G69: 581.47 | H69: 566.83 | I69: 613.03 | J69: 627.67 | K69: 636.13 | L69: 619.2 | M69: 596.1 | N69: 5822400 | O69: 0.64%
A70: 60 | B70: FMCG | C70: GRASIM | D70: 758.20 | E70: 775.13 | F70: 737.57 | G70: 716.93 | H70: 679.37 | I70: 795.77 | J70: 833.33 | K70: 853.97 | L70: 812.7 | M70: 754.5 | N70: 14193750 | O70: 4.45%
A71: 61 | B71: Cement | C71: HAVELLS | D71: 638.45 | E71: 644.20 | F71: 623.55 | G71: 608.65 | H71: 588.00 | I71: 659.10 | J71: 679.75 | K71: 694.65 | L71: 664.85 | M71: 629.3 | N71: 7366000 | O71: 3.54%
A72: 62 | B72: Others | C72: HCLTECH | D72: 1021.95 | E72: 1019.20 | F72: 1013.95 | G72: 1005.95 | H72: 1000.70 | I72: 1027.20 | J72: 1032.45 | K72: 1040.45 | L72: 1024.45 | M72: 1011.2 | N72: 8974000 | O72: -2.35%
A73: 63 | B73: Technology | C73: HDFC | D73: 2135.25 | E73: 2142.48 | F73: 2116.07 | G73: 2096.88 | H73: 2070.47 | I73: 2161.67 | J73: 2188.08 | K73: 2207.27 | L73: 2168.9 | M73: 2123.3 | N73: 28111500 | O73: -0.05%
A74: 64 | B74: Finance | C74: HDFCBANK | D74: 2252.35 | E74: 2256.42 | F74: 2236.83 | G74: 2221.32 | H74: 2201.73 | I74: 2271.93 | J74: 2291.52 | K74: 2307.03 | L74: 2276 | M74: 2240.9 | N74: 15223750 | O74: -1.37%
A75: 65 | B75: Banking | C75: HEROMOTOCO | D75: 2268.25 | E75: 2314.98 | F75: 2210.57 | G75: 2152.88 | H75: 2048.47 | I75: 2372.67 | J75: 2477.08 | K75: 2534.77 | L75: 2419.4 | M75: 2257.3 | N75: 2467000 | O75: 10.83%
A76: 66 | B76: Automobile | C76: HEXAWARE | D76: 349.25 | E76: 350.45 | F76: 346.15 | G76: 343.05 | H76: 338.75 | I76: 353.55 | J76: 357.85 | K76: 360.95 | L76: 354.75 | M76: 347.35 | N76: 2352000 | O76: 3.16%
A77: 67 | B77: Technology | C77: HINDALCO | D77: 188.95 | E77: 190.42 | F77: 186.23 | G77: 183.52 | H77: 179.33 | I77: 193.13 | J77: 197.32 | K77: 200.03 | L77: 194.6 | M77: 187.7 | N77: 33992000 | O77: 0.51%
A78: 68 | B78: Metals | C78: HINDPETRO | D78: 259.55 | E78: 263.15 | F78: 255.05 | G78: 250.55 | H78: 242.45 | I78: 267.65 | J78: 275.75 | K78: 280.25 | L78: 271.25 | M78: 258.65 | N78: 16837800 | O78: 2.44%
A79: 69 | B79: Oil_Gas | C79: HINDUNILVR | D79: 1724.35 | E79: 1725.00 | F79: 1710.25 | G79: 1696.15 | H79: 1681.40 | I79: 1739.10 | J79: 1753.85 | K79: 1767.95 | L79: 1739.75 | M79: 1710.9 | N79: 10965600 | O79: 0.42%
A80: 70 | B80: FMCG | C80: HINDZINC | D80: 214.90 | E80: 216.67 | F80: 212.33 | G80: 209.77 | H80: 205.43 | I80: 219.23 | J80: 223.57 | K80: 226.13 | L80: 221 | M80: 214.1 | N80: 6812800 | O80: -5.08%
A81: 71 | B81: Metals | C81: IBULHSGFIN | D81: 510.50 | E81: 527.85 | F81: 486.85 | G81: 463.20 | H81: 422.20 | I81: 551.50 | J81: 592.50 | K81: 616.15 | L81: 568.85 | M81: 504.2 | N81: 16812000 | O81: -4.84%
A82: 72 | B82: Finance | C82: ICICIBANK | D82: 426.95 | E82: 430.68 | F82: 420.62 | G82: 414.28 | H82: 404.22 | I82: 437.02 | J82: 447.08 | K82: 453.42 | L82: 440.75 | M82: 424.35 | N82: 77119625 | O82: -6.16%
A83: 73 | B83: Banking | C83: ICICIPRULI | D83: 391.85 | E83: 393.55 | F83: 388.60 | G83: 385.35 | H83: 380.40 | I83: 396.80 | J83: 401.75 | K83: 405.00 | L83: 398.5 | M83: 390.3 | N83: 4671000 | O83: -0.29%
A84: 74 | B84: Finance | C84: IDBI | D84: 26.45 | E84: 27.57 | F84: 25.13 | G84: 23.82 | H84: 21.38 | I84: 28.88 | J84: 31.32 | K84: 32.63 | L84: 30 | M84: 26.25 | N84: 24348000 | O84: 6.90%
A85: 75 | B85: Banking | C85: IDEA | D85: 6.55 | E85: 6.55 | F85: 6.05 | G85: 5.55 | H85: 5.05 | I85: 7.05 | J85: 7.55 | K85: 8.05 | L85: 7.05 | M85: 6.05 | N85: 416472000 | O85: -3.11%
A86: 76 | B86: Telecom | C86: IDFCFIRSTB | D86: 39.40 | E86: 40.10 | F86: 38.50 | G86: 37.60 | H86: 36.00 | I86: 41.00 | J86: 42.60 | K86: 43.50 | L86: 41.7 | M86: 39.2 | N86: 138768000 | O86: 2.02%
A87: 77 | B87: Banking | C87: IGL | D87: 298.65 | E87: 300.20 | F87: 295.45 | G87: 292.25 | H87: 287.50 | I87: 303.40 | J87: 308.15 | K87: 311.35 | L87: 304.95 | M87: 297 | N87: 3968250 | O87: 4.57%
A88: 78 | B88: Oil_Gas | C88: INDIGO | D88: 1548.25 | E88: 1562.27 | F88: 1529.53 | G88: 1510.82 | H88: 1478.08 | I88: 1580.98 | J88: 1613.72 | K88: 1632.43 | L88: 1595 | M88: 1543.55 | N88: 2529000 | O88: -2.59%
A89: 79 | B89: Others | C89: INDUSINDBK | D89: 1334.55 | E89: 1365.00 | F89: 1282.35 | G89: 1230.15 | H89: 1147.50 | I89: 1417.20 | J89: 1499.85 | K89: 1552.05 | L89: 1447.65 | M89: 1312.8 | N89: 10506800 | O89: -0.23%
A90: 80 | B90: Banking | C90: INFRATEL | D90: 248.85 | E90: 251.68 | F90: 243.27 | G90: 237.68 | H90: 229.27 | I90: 257.27 | J90: 265.68 | K90: 271.27 | L90: 260.1 | M90: 246.1 | N90: 7450000 | O90: 2.25%
A91: 81 | B91: Telecom | C91: INFY | D91: 794.20 | E91: 795.47 | F91: 790.93 | G91: 787.67 | H91: 783.13 | I91: 798.73 | J91: 803.27 | K91: 806.53 | L91: 800 | M91: 792.2 | N91: 61119600 | O91: 1.30%
A92: 82 | B92: Technology | C92: IOC | D92: 133.15 | E92: 134.82 | F92: 131.13 | G92: 129.12 | H92: 125.43 | I92: 136.83 | J92: 140.52 | K92: 142.53 | L92: 138.5 | M92: 132.8 | N92: 61600000 | O92: 1.27%
A93: 83 | B93: Oil_Gas | C93: ITC | D93: 269.35 | E93: 269.08 | F93: 267.82 | G93: 266.28 | H93: 265.02 | I93: 270.62 | J93: 271.88 | K93: 273.42 | L93: 270.35 | M93: 267.55 | N93: 85348800 | O93: 0.12%
A94: 84 | B94: FMCG | C94: JINDALSTEL | D94: 130.25 | E94: 132.62 | F94: 126.98 | G94: 123.72 | H94: 118.08 | I94: 135.88 | J94: 141.52 | K94: 144.78 | L94: 138.25 | M94: 129.35 | N94: 32192000 | O94: 2.26%
A95: 85 | B95: Metals | C95: JSWSTEEL | D95: 230.60 | E95: 233.17 | F95: 216.88 | G95: 203.17 | H95: 186.88 | I95: 246.88 | J95: 263.17 | K95: 276.88 | L95: 249.45 | M95: 219.45 | N95: 51842000 | O95: 0.65%
A96: 86 | B96: Metals | C96: JUBLFOOD | D96: 1175.95 | E96: 1184.35 | F96: 1156.70 | G96: 1137.45 | H96: 1109.80 | I96: 1203.60 | J96: 1231.25 | K96: 1250.50 | L96: 1212 | M96: 1165.1 | N96: 2797000 | O96: 1.84%
A97: 87 | B97: Others | C97: JUSTDIAL | D97: 671.00 | E97: 672.63 | F97: 664.62 | G97: 658.23 | H97: 650.22 | I97: 679.02 | J97: 687.03 | K97: 693.42 | L97: 680.65 | M97: 666.25 | N97: 2409400 | O97: -0.98%
A98: 88 | B98: Others | C98: KAJARIACER | D98: 466.85 | E98: 470.27 | F98: 462.18 | G98: 457.52 | H98: 449.43 | I98: 474.93 | J98: 483.02 | K98: 487.68 | L98: 478.35 | M98: 465.6 | N98: 1985100 | O98: -4.56%
A99: 89 | B99: Others | C99: KOTAKBANK | D99: 1500.05 | E99: 1501.22 | F99: 1487.43 | G99: 1474.82 | H99: 1461.03 | I99: 1513.83 | J99: 1527.62 | K99: 1540.23 | L99: 1515 | M99: 1488.6 | N99: 8144000 | O99: -0.58%
A100: 90 | B100: Banking | C100: BSOFT | D100: 74.80 | E100: 74.87 | F100: 73.53 | G100: 72.27 | H100: 70.93 | I100: 76.13 | J100: 77.47 | K100: 78.73 | L100: 76.2 | M100: 73.6 | N100: 2182800 | O100: 5.68%
A101: 91 | B101: Finance | C101: L&TFH | D101: 97.50 | E101: 99.12 | F101: 95.03 | G101: 92.57 | H101: 88.48 | I101: 101.58 | J101: 105.67 | K101: 108.13 | L101: 103.2 | M101: 96.65 | N101: 33597000 | O101: 0.78%
A102: 92 | B102: Finance | C102: LICHSGFIN | D102: 506.50 | E102: 510.90 | F102: 500.20 | G102: 493.90 | H102: 483.20 | I102: 517.20 | J102: 527.90 | K102: 534.20 | L102: 521.6 | M102: 504.6 | N102: 7382100 | O102: -1.76%
A103: 93 | B103: Capital_Goods | C103: LT | D103: 1379.50 | E103: 1384.57 | F103: 1370.53 | G103: 1361.57 | H103: 1347.53 | I103: 1393.53 | J103: 1407.57 | K103: 1416.53 | L103: 1398.6 | M103: 1375.6 | N103: 13580250 | O103: -0.20%
A104: 94 | B104: Pharma | C104: LUPIN | D104: 753.75 | E104: 767.17 | F104: 736.78 | G104: 719.82 | H104: 689.43 | I104: 784.13 | J104: 814.52 | K104: 831.48 | L104: 797.55 | M104: 750.2 | N104: 8322300 | O104: -1.56%
A105: 95 | B105: Automobile | C105: M&M | D105: 549.75 | E105: 553.55 | F105: 544.60 | G105: 539.45 | H105: 530.50 | I105: 558.70 | J105: 567.65 | K105: 572.80 | L105: 562.5 | M105: 548.4 | N105: 22895000 | O105: 2.43%
A106: 96 | B106: Finance | C106: M&MFIN | D106: 297.95 | E106: 300.82 | F106: 293.13 | G106: 288.32 | H106: 280.63 | I106: 305.63 | J106: 313.32 | K106: 318.13 | L106: 308.5 | M106: 296 | N106: 14746250 | O106: -1.49%
A107: 97 | B107: Finance | C107: MANAPPURAM | D107: 109.40 | E107: 110.75 | F107: 107.60 | G107: 105.80 | H107: 102.65 | I107: 112.55 | J107: 115.70 | K107: 117.50 | L107: 113.9 | M107: 108.95 | N107: 14250000 | O107: 0.47%
A108: 98 | B108: FMCG | C108: MARICO | D108: 364.20 | E108: 364.82 | F108: 360.48 | G108: 356.77 | H108: 352.43 | I108: 368.53 | J108: 372.87 | K108: 376.58 | L108: 369.15 | M108: 361.1 | N108: 9560200 | O108: 8.12%
A109: 99 | B109: Automobile | C109: MARUTI | D109: 5453.75 | E109: 5492.15 | F109: 5393.30 | G109: 5332.85 | H109: 5234.00 | I109: 5552.60 | J109: 5651.45 | K109: 5711.90 | L109: 5591 | M109: 5431.7 | N109: 3799650 | O109: -0.90%
A110: 100 | B110: FMCG | C110: MCDOWELL-N | D110: 571.85 | E110: 578.97 | F110: 562.98 | G110: 554.12 | H110: 538.13 | I110: 587.83 | J110: 603.82 | K110: 612.68 | L110: 594.95 | M110: 570.1 | N110: 10650000 | O110: 1.28%
A111: 101 | B111: Others | C111: MCX | D111: 790.50 | E111: 794.97 | F111: 774.53 | G111: 758.57 | H111: 738.13 | I111: 810.93 | J111: 831.37 | K111: 847.33 | L111: 815.4 | M111: 779 | N111: 1452500 | O111: -6.28%
A112: 102 | B112: Finance | C112: MFSL | D112: 414.25 | E112: 417.62 | F112: 409.23 | G112: 404.22 | H112: 395.83 | I112: 422.63 | J112: 431.02 | K112: 436.03 | L112: 426 | M112: 412.6 | N112: 2568000 | O112: -2.10%
A113: 103 | B113: Oil_Gas | C113: MGL | D113: 779.05 | E113: 778.78 | F113: 765.57 | G113: 752.08 | H113: 738.87 | I113: 792.27 | J113: 805.48 | K113: 818.97 | L113: 792 | M113: 765.3 | N113: 1114800 | O113: 1.86%
A114: 104 | B114: Technology | C114: MINDTREE | D114: 713.25 | E114: 704.85 | F114: 689.90 | G114: 666.55 | H114: 651.60 | I114: 728.20 | J114: 743.15 | K114: 766.50 | L114: 719.8 | M114: 681.5 | N114: 1804800 | O114: 1.11%
A115: 105 | B115: Automobile | C115: MOTHERSUMI | D115: 102.55 | E115: 104.00 | F115: 100.85 | G115: 99.15 | H115: 96.00 | I115: 105.70 | J115: 108.85 | K115: 110.55 | L115: 107.15 | M115: 102.3 | N115: 28304100 | O115: 5.05%
A116: 106 | B116: Automobile | C116: MRF | D116: 53834.15 | E116: 53882.03 | F116: 53514.07 | G116: 53193.98 | H116: 52826.02 | I116: 54202.12 | J116: 54570.08 | K116: 54890.17 | L116: 54250 | M116: 53561.95 | N116: 27070 | O116: 2.46%
A117: 107 | B117: Finance | C117: MUTHOOTFIN | D117: 601.50 | E117: 598.63 | F117: 589.97 | G117: 578.43 | H117: 569.77 | I117: 610.17 | J117: 618.83 | K117: 630.37 | L117: 607.3 | M117: 587.1 | N117: 2745000 | O117: -6.44%
A118: 108 | B118: Metals | C118: NATIONALUM | D118: 43.80 | E118: 44.35 | F118: 43.10 | G118: 42.40 | H118: 41.15 | I118: 45.05 | J118: 46.30 | K118: 47.00 | L118: 45.6 | M118: 43.65 | N118: 36130000 | O118: 4.33%
A119: 109 | B119: Infrastructure | C119: NBCC | D119: 41.80 | E119: 43.73 | F119: 39.02 | G119: 36.23 | H119: 31.52 | I119: 46.52 | J119: 51.23 | K119: 54.02 | L119: 48.45 | M119: 40.95 | N119: 36091000 | O119: 3.43%
A120: 110 | B120: Infrastructure | C120: NCC | D120: 67.90 | E120: 69.35 | F120: 65.85 | G120: 63.80 | H120: 60.30 | I120: 71.40 | J120: 74.90 | K120: 76.95 | L120: 72.85 | M120: 67.3 | N120: 40384000 | O120: 5.85%
A121: 111 | B121: FMCG | C121: NESTLEIND | D121: 11583.40 | E121: 11622.30 | F121: 11511.10 | G121: 11438.80 | H121: 11327.60 | I121: 11694.60 | J121: 11805.80 | K121: 11878.10 | L121: 11733.5 | M121: 11550 | N121: 348750 | O121: 0.63%
A122: 112 | B122: Technology | C122: NIITTECH | D122: 1206.55 | E122: 1210.60 | F122: 1187.20 | G122: 1167.85 | H122: 1144.45 | I122: 1229.95 | J122: 1253.35 | K122: 1272.70 | L122: 1234 | M122: 1191.25 | N122: 1215000 | O122: -10.55%
A123: 113 | B123: Metals | C123: NMDC | D123: 107.45 | E123: 108.53 | F123: 105.87 | G123: 104.28 | H123: 101.62 | I123: 110.12 | J123: 112.78 | K123: 114.37 | L123: 111.2 | M123: 106.95 | N123: 27390000 | O123: -0.09%
A124: 114 | B124: Power | C124: NTPC | D124: 125.30 | E124: 125.42 | F124: 124.18 | G124: 123.07 | H124: 121.83 | I124: 126.53 | J124: 127.77 | K124: 128.88 | L124: 126.65 | M124: 124.3 | N124: 80184000 | O124: 4.62%
A125: 115 | B125: Technology | C125: OFSS | D125: 3315.75 | E125: 3325.25 | F125: 3288.55 | G125: 3261.35 | H125: 3224.65 | I125: 3352.45 | J125: 3389.15 | K125: 3416.35 | L125: 3361.95 | M125: 3298.05 | N125: 225600 | O125: -1.44%
A126: 116 | B126: Oil_Gas | C126: OIL | D126: 153.10 | E126: 153.75 | F126: 151.70 | G126: 150.30 | H126: 148.25 | I126: 155.15 | J126: 157.20 | K126: 158.60 | L126: 155.8 | M126: 152.35 | N126: 8354742 | O126: -1.48%
A127: 117 | B127: Oil_Gas | C127: ONGC | D127: 139.05 | E127: 139.82 | F127: 137.73 | G127: 136.42 | H127: 134.33 | I127: 141.13 | J127: 143.22 | K127: 144.53 | L127: 141.9 | M127: 138.5 | N127: 61875000 | O127: 2.86%
A128: 118 | B128: Textile | C128: PAGEIND | D128: 17867.90 | E128: 18061.98 | F128: 17595.97 | G128: 17324.03 | H128: 16858.02 | I128: 18333.92 | J128: 18799.93 | K128: 19071.87 | L128: 18528 | M128: 17790.05 | N128: 192850 | O128: 0.52%
A129: 119 | B129: Pharma | C129: PEL | D129: 1789.45 | E129: 1808.58 | F129: 1747.52 | G129: 1705.58 | H129: 1644.52 | I129: 1850.52 | J129: 1911.58 | K129: 1953.52 | L129: 1869.65 | M129: 1766.65 | N129: 3215394 | O129: 0.05%
A130: 120 | B130: Oil_Gas | C130: PETRONET | D130: 229.35 | E130: 231.20 | F130: 226.70 | G130: 224.05 | H130: 219.55 | I130: 233.85 | J130: 238.35 | K130: 241.00 | L130: 235.7 | M130: 228.55 | N130: 19314000 | O130: 1.95%
A131: 121 | B131: Finance | C131: PFC | D131: 108.80 | E131: 109.97 | F131: 106.83 | G131: 104.87 | H131: 101.73 | I131: 111.93 | J131: 115.07 | K131: 117.03 | L131: 113.1 | M131: 108 | N131: 43548800 | O131: -0.97%
A132: 122 | B132: FMCG | C132: PIDILITIND | D132: 1231.35 | E132: 1237.27 | F132: 1221.58 | G132: 1211.82 | H132: 1196.13 | I132: 1247.03 | J132: 1262.72 | K132: 1272.48 | L132: 1252.95 | M132: 1227.5 | N132: 2730500 | O132: -0.51%
A133: 123 | B133: Banking | C133: PNB | D133: 67.10 | E133: 67.82 | F133: 65.73 | G133: 64.37 | H133: 62.28 | I133: 69.18 | J133: 71.27 | K133: 72.63 | L133: 69.9 | M133: 66.45 | N133: 105203000 | O133: -0.46%
A134: 124 | B134: Power | C134: POWERGRID | D134: 205.95 | E134: 206.25 | F134: 205.00 | G134: 204.05 | H134: 202.80 | I134: 207.20 | J134: 208.45 | K134: 209.40 | L134: 207.5 | M134: 205.3 | N134: 26048000 | O134: -4.35%
A135: 125 | B135: Media | C135: PVR | D135: 1572.80 | E135: 1596.43 | F135: 1541.32 | G135: 1509.83 | H135: 1454.72 | I135: 1627.92 | J135: 1683.03 | K135: 1714.52 | L135: 1651.55 | M135: 1564.95 | N135: 1127200 | O135: 0.79%
A136: 126 | B136: Cement | C136: RAMCOCEM | D136: 724.80 | E136: 732.92 | F136: 711.83 | G136: 698.87 | H136: 677.78 | I136: 745.88 | J136: 766.97 | K136: 779.93 | L136: 754 | M136: 719.95 | N136: 1036800 | O136: -2.11%
A137: 127 | B137: Textile | C137: RAYMOND | D137: 636.20 | E137: 645.62 | F137: 623.58 | G137: 610.97 | H137: 588.93 | I137: 658.23 | J137: 680.27 | K137: 692.88 | L137: 667.65 | M137: 633 | N137: 2068800 | O137: -2.67%
A138: 128 | B138: Banking | C138: RBLBANK | D138: 400.15 | E138: 415.52 | F138: 375.28 | G138: 350.42 | H138: 310.18 | I138: 440.38 | J138: 480.62 | K138: 505.48 | L138: 455.75 | M138: 390.65 | N138: 11077200 | O138: 19.73%
A139: 129 | B139: Power | C139: RECLTD | D139: 135.50 | E139: 137.52 | F139: 133.13 | G139: 130.77 | H139: 126.38 | I139: 139.88 | J139: 144.27 | K139: 146.63 | L139: 141.9 | M139: 135.15 | N139: 29532000 | O139: -1.64%
A140: 130 | B140: Finance | C140: RELCAPITAL | D140: 47.40 | E140: 48.80 | F140: 45.40 | G140: 43.40 | H140: 40.00 | I140: 50.80 | J140: 54.20 | K140: 56.20 | L140: 52.2 | M140: 46.8 | N140: 11610000 | O140: -6.61%
A141: 131 | B141: Oil_Gas | C141: RELIANCE | D141: 1178.75 | E141: 1193.70 | F141: 1160.50 | G141: 1142.25 | H141: 1109.05 | I141: 1211.95 | J141: 1245.15 | K141: 1263.40 | L141: 1226.9 | M141: 1175.45 | N141: 43780500 | O141: 1.74%
A142: 132 | B142: Power | C142: RELINFRA | D142: 41.65 | E142: 42.98 | F142: 39.47 | G142: 37.28 | H142: 33.77 | I142: 45.17 | J142: 48.68 | K142: 50.87 | L142: 46.5 | M142: 40.8 | N142: 11352000 | O142: -1.36%
A143: 133 | B143: Metals | C143: SAIL | D143: 41.25 | E143: 42.18 | F143: 40.07 | G143: 38.88 | H143: 36.77 | I143: 43.37 | J143: 45.48 | K143: 46.67 | L143: 44.3 | M143: 41 | N143: 93852000 | O143: 8.38%
A144: 134 | B144: Banking | C144: SBIN | D144: 329.00 | E144: 334.62 | F144: 321.78 | G144: 314.57 | H144: 301.73 | I144: 341.83 | J144: 354.67 | K144: 361.88 | L144: 347.45 | M144: 327.4 | N144: 71637000 | O144: 2.20%
A145: 135 | B145: Cement | C145: SHREECEM | D145: 20749.45 | E145: 20885.92 | F145: 20524.23 | G145: 20299.02 | H145: 19937.33 | I145: 21111.13 | J145: 21472.82 | K145: 21698.03 | L145: 21247.6 | M145: 20660.7 | N145: 142950 | O145: 5.73%
A146: 136 | B146: Capital_Goods | C146: SIEMENS | D146: 1154.95 | E146: 1161.60 | F146: 1141.25 | G146: 1127.55 | H146: 1107.20 | I146: 1175.30 | J146: 1195.65 | K146: 1209.35 | L146: 1181.95 | M146: 1147.9 | N146: 1061500 | O146: 2.66%
A147: 137 | B147: Textile | C147: SRF | D147: 2671.80 | E147: 2703.78 | F147: 2619.72 | G147: 2567.63 | H147: 2483.57 | I147: 2755.87 | J147: 2839.93 | K147: 2892.02 | L147: 2787.85 | M147: 2651.7 | N147: 948000 | O147: -3.07%
A148: 138 | B148: Finance | C148: SRTRANSFIN | D148: 969.70 | E148: 972.43 | F148: 961.17 | G148: 952.63 | H148: 941.37 | I148: 980.97 | J148: 992.23 | K148: 1000.77 | L148: 983.7 | M148: 963.9 | N148: 5040600 | O148: -2.69%
A149: 139 | B149: Pharma | C149: STAR | D149: 360.50 | E149: 366.47 | F149: 345.53 | G149: 330.57 | H149: 309.63 | I149: 381.43 | J149: 402.37 | K149: 417.33 | L149: 387.4 | M149: 351.5 | N149: 3234000 | O149: 8.19%
A150: 140 | B150: Pharma | C150: SUNPHARMA | D150: 408.80 | E150: 417.10 | F150: 393.40 | G150: 378.00 | H150: 354.30 | I150: 432.50 | J150: 456.20 | K150: 471.60 | L150: 440.8 | M150: 401.7 | N150: 50371200 | O150: -2.58%
A151: 141 | B151: Media | C151: SUNTV | D151: 464.40 | E151: 467.02 | F151: 459.63 | G151: 454.87 | H151: 447.48 | I151: 471.78 | J151: 479.17 | K151: 483.93 | L151: 474.4 | M151: 462.25 | N151: 5531000 | O151: -2.23%
A152: 142 | B152: Fertilisers | C152: TATACHEM | D152: 570.60 | E152: 571.13 | F152: 566.22 | G152: 561.83 | H152: 556.92 | I152: 575.52 | J152: 580.43 | K152: 584.82 | L152: 576.05 | M152: 566.75 | N152: 2098800 | O152: -7.20%
A153: 143 | B153: Technology | C153: TATAELXSI | D153: 621.95 | E153: 630.13 | F153: 612.02 | G153: 602.08 | H153: 583.97 | I153: 640.07 | J153: 658.18 | K153: 668.12 | L153: 648.25 | M153: 620.2 | N153: 2615400 | O153: 3.84%
A154: 144 | B154: FMCG | C154: TATAGLOBAL | D154: 249.60 | E154: 252.52 | F154: 245.23 | G154: 240.87 | H154: 233.58 | I154: 256.88 | J154: 264.17 | K154: 268.53 | L154: 259.8 | M154: 248.15 | N154: 5616000 | O154: -1.23%
A155: 145 | B155: Automobile | C155: TATAMOTORS | D155: 134.10 | E155: 135.73 | F155: 131.62 | G155: 129.13 | H155: 125.02 | I155: 138.22 | J155: 142.33 | K155: 144.82 | L155: 139.85 | M155: 133.25 | N155: 70491000 | O155: 0.82%
A156: 146 | B156: Automobile | C156: TATAMTRDVR | D156: 64.70 | E156: 65.73 | F156: 63.32 | G156: 61.93 | H156: 59.52 | I156: 67.12 | J156: 69.53 | K156: 70.92 | L156: 68.15 | M156: 64.35 | N156: 29754000 | O156: -0.88%
A157: 147 | B157: Power | C157: TATAPOWER | D157: 58.95 | E157: 59.82 | F157: 57.63 | G157: 56.32 | H157: 54.13 | I157: 61.13 | J157: 63.32 | K157: 64.63 | L157: 62 | M157: 58.5 | N157: 55008000 | O157: 0.18%
A158: 148 | B158: Metals | C158: TATASTEEL | D158: 415.15 | E158: 421.55 | F158: 399.55 | G158: 383.95 | H158: 361.95 | I158: 437.15 | J158: 459.15 | K158: 474.75 | L158: 443.55 | M158: 405.95 | N158: 31952015 | O158: -0.54%
A159: 149 | B159: Technology | C159: TCS | D159: 2184.40 | E159: 2168.47 | F159: 2147.93 | G159: 2111.47 | H159: 2090.93 | I159: 2204.93 | J159: 2225.47 | K159: 2261.93 | L159: 2189 | M159: 2132 | N159: 15917250 | O159: 2.54%
A160: 150 | B160: Technology | C160: TECHM | D160: 641.05 | E160: 642.88 | F160: 633.97 | G160: 626.88 | H160: 617.97 | I160: 649.97 | J160: 658.88 | K160: 665.97 | L160: 651.8 | M160: 635.8 | N160: 16557600 | O160: 2.32%
A161: 151 | B161: FMCG | C161: TITAN | D161: 1080.85 | E161: 1083.58 | F161: 1072.27 | G161: 1063.68 | H161: 1052.37 | I161: 1092.17 | J161: 1103.48 | K161: 1112.07 | L161: 1094.9 | M161: 1075 | N161: 9705750 | O161: 1.71%
A162: 152 | B162: Pharma | C162: TORNTPHARM | D162: 1652.75 | E162: 1660.67 | F162: 1637.03 | G162: 1621.32 | H162: 1597.68 | I162: 1676.38 | J162: 1700.02 | K162: 1715.73 | L162: 1684.3 | M162: 1644.95 | N162: 698500 | O162: -3.19%
A163: 153 | B163: Power | C163: TORNTPOWER | D163: 300.10 | E163: 302.65 | F163: 295.45 | G163: 290.80 | H163: 283.60 | I163: 307.30 | J163: 314.50 | K163: 319.15 | L163: 309.85 | M163: 298 | N163: 3474000 | O163: -8.39%
A164: 154 | B164: Automobile | C164: TVSMOTOR | D164: 344.50 | E164: 349.85 | F164: 337.40 | G164: 330.30 | H164: 317.85 | I164: 356.95 | J164: 369.40 | K164: 376.50 | L164: 362.3 | M164: 342.75 | N164: 7434900 | O164: 11.35%
A165: 155 | B165: FMCG | C165: UBL | D165: 1393.85 | E165: 1404.72 | F165: 1377.13 | G165: 1360.42 | H165: 1332.83 | I165: 1421.43 | J165: 1449.02 | K165: 1465.73 | L165: 1432.3 | M165: 1388 | N165: 1056300 | O165: -0.20%
A166: 156 | B166: Finance | C166: UJJIVAN | D166: 253.75 | E166: 258.73 | F166: 247.92 | G166: 242.08 | H166: 231.27 | I166: 264.57 | J166: 275.38 | K166: 281.22 | L166: 269.55 | M166: 252.9 | N166: 5396800 | O166: 3.94%
A167: 157 | B167: Cement | C167: ULTRACEMCO | D167: 4327.40 | E167: 4355.48 | F167: 4285.32 | G167: 4243.23 | H167: 4173.07 | I167: 4397.57 | J167: 4467.73 | K167: 4509.82 | L167: 4425.65 | M167: 4313.4 | N167: 2307400 | O167: 1.37%
A168: 158 | B168: Banking | C168: UNIONBANK | D168: 66.80 | E168: 68.15 | F168: 65.10 | G168: 63.40 | H168: 60.35 | I168: 69.85 | J168: 72.90 | K168: 74.60 | L168: 71.2 | M168: 66.45 | N168: 31094000 | O168: 3.30%
A169: 159 | B169: Fertilisers | C169: UPL | D169: 576.55 | E169: 581.35 | F169: 567.35 | G169: 558.15 | H169: 544.15 | I169: 590.55 | J169: 604.55 | K169: 613.75 | L169: 595.35 | M169: 572.15 | N169: 12659400 | O169: 3.10%
A170: 160 | B170: Metals | C170: VEDL | D170: 151.10 | E170: 153.72 | F170: 147.68 | G170: 144.27 | H170: 138.23 | I170: 157.13 | J170: 163.17 | K170: 166.58 | L170: 159.75 | M170: 150.3 | N170: 70764000 | O170: -0.41%
A171: 161 | B171: Capital_Goods | C171: VOLTAS | D171: 563.10 | E171: 567.42 | F171: 557.43 | G171: 551.77 | H171: 541.78 | I171: 573.08 | J171: 583.07 | K171: 588.73 | L171: 577.4 | M171: 561.75 | N171: 3223000 | O171: 4.03%
A172: 162 | B172: Technology | C172: WIPRO | D172: 264.10 | E172: 264.08 | F172: 262.27 | G172: 260.43 | H172: 258.62 | I172: 265.92 | J172: 267.73 | K172: 269.57 | L172: 265.9 | M172: 262.25 | N172: 29817600 | O172: -0.15%
A173: 163 | B173: Banking | C173: YESBANK | D173: 86.45 | E173: 88.92 | F173: 81.03 | G173: 75.62 | H173: 67.73 | I173: 94.33 | J173: 102.22 | K173: 107.63 | L173: 96.8 | M173: 83.5 | N173: 123741200 | O173: 2.77%
A174: 164 | B174: Media | C174: ZEEL | D174: 382.95 | E174: 385.78 | F174: 377.62 | G174: 372.28 | H174: 364.12 | I174: 391.12 | J174: 399.28 | K174: 404.62 | L174: 393.95 | M174: 380.45 | N174: 19240000 | O174: 1.55%
A190: Pivot Point: This is trigger point for intra day buy/sell based on the price range of the previous day
A191: As per the tool,the trader should take BUY position just above Pivot and keep the stop loss of pivot point and the first target would be Resistance 1(R1)
A192: If R1 is crossed then R2 becomes the next target with stop loss of at R1
A193: Similarly if price goes below pivot point then the trader should sell and keep a stop loss of pivot point and the first target would be S1
A194: If S1 is crossed then S2 becomes the next target with stop loss of at S1
A196: Disclaimer:
A197: This document has been prepared by the Retail Research Desk of Asit C Mehta
A198: Investment Intermediates Ltd. and is meant for use of the recipient only
A199: and is not for circulation. This document is not to be reported or
A200: copied or made available to others. It should not be considered to be
A201: taken as an offer to sell or a solicitation to buy any security. The
A202: information contained herein is from sources believed reliable. We do
A203: not represent that it is accurate or complete and it should not be
A204: relied upon as such. We may from time to time have positions in and buy
A205: and sell securities referred to herein

Sheet Cash Intra
M5: Back to Main Page
A6: FOR INTRA DAY TRADING | K6: =Main!B10 -> 2019-07-31
A8: Sr.no | B8: Scrip | C8: CLOSE RATE | D8: Pivot Point | E8: Supports | H8: Resistances
C9: Point | E9: S1 | F9: S2 | G9: S3 | H9: R1 | I9: R2 | J9: R3 | K9: HIGH | L9: LOW | M9: Total Trade Quanity in Lakhs
A10: 1 | B10: Nifty 50 | C10: 11085.4 | D10: 11141.83 | E10: 11016.22 | F10: 10947.03 | G10: 10821.42 | H10: 11211.02 | I10: 11336.63 | J10: 11405.82 | K10: 11267.45 | L10: 11072.65
A11: 2 | B11: Nifty Bank | C11: 28791.6 | D11: 29019.90 | E11: 28509.50 | F11: 28227.40 | G11: 27717.00 | H11: 29302.00 | I11: 29812.40 | J11: 30094.50 | K11: 29530.3 | L11: 28737.8
A12: 3 | B12: Nifty CPSE | C12: 1982.65 | D12: 1993.00 | E12: 1961.30 | F12: 1939.95 | G12: 1908.25 | H12: 2014.35 | I12: 2046.05 | J12: 2067.40 | K12: 2024.7 | L12: 1971.65
A13: 4 | B13: Nifty Infra | C13: 3076.55 | D13: 3087.53 | E13: 3059.57 | F13: 3042.58 | G13: 3014.62 | H13: 3104.52 | I13: 3132.48 | J13: 3149.47 | K13: 3115.5 | L13: 3070.55
A14: 5 | B14: Nifty IT | C14: 15501.65 | D14: 15463.53 | E14: 15399.57 | F14: 15297.48 | G14: 15233.52 | H14: 15565.62 | I14: 15629.58 | J14: 15731.67 | K14: 15527.5 | L14: 15361.45
A15: 6 | B15: Nifty PSE | C15: 3176.35 | D15: 3193.00 | E15: 3148.05 | F15: 3119.75 | G15: 3074.80 | H15: 3221.30 | I15: 3266.25 | J15: 3294.55 | K15: 3237.95 | L15: 3164.7
A16: 7 | B16: Nifty Midcap 50 | C16: 4273.15 | D16: 4313.95 | E16: 4225.25 | F16: 4177.35 | G16: 4088.65 | H16: 4361.85 | I16: 4450.55 | J16: 4498.45 | K16: 4402.65 | L16: 4266.05
A17: 8 | B17: ABB | C17: 1358.3 | D17: 1371.98 | E17: 1339.27 | F17: 1320.23 | G17: 1287.52 | H17: 1391.02 | I17: 1423.73 | J17: 1442.77 | K17: 1404.7 | L17: 1352.95 | M17: 2.91048
A18: 9 | B18: ACC | C18: 1540.9 | D18: 1546.75 | E18: 1526.75 | F18: 1512.60 | G18: 1492.60 | H18: 1560.90 | I18: 1580.90 | J18: 1595.05 | K18: 1566.75 | L18: 1532.6 | M18: 10.94582
A19: 10 | B19: AUBANK | C19: 654.55 | D19: 654.85 | E19: 644.70 | F19: 634.85 | G19: 624.70 | H19: 664.70 | I19: 674.85 | J19: 684.70 | K19: 665 | L19: 645 | M19: 3.77646
A20: 11 | B20: ADANIPORTS | C20: 373.45 | D20: 374.82 | E20: 369.73 | F20: 366.02 | G20: 360.93 | H20: 378.53 | I20: 383.62 | J20: 387.33 | K20: 379.9 | L20: 371.1 | M20: 23.12161
A21: 12 | B21: ADANIPOWER | C21: 60.65 | D21: 61.03 | E21: 59.82 | F21: 58.98 | G21: 57.77 | H21: 61.87 | I21: 63.08 | J21: 63.92 | K21: 62.25 | L21: 60.2 | M21: 81.57234
A22: 13 | B22: ABCAPITAL | C22: 81 | D22: 81.83 | E22: 79.27 | F22: 77.53 | G22: 74.97 | H22: 83.57 | I22: 86.13 | J22: 87.87 | K22: 84.4 | L22: 80.1 | M22: 12.47865
A23: 14 | B23: ABFRL | C23: 190 | D23: 192.48 | E23: 186.07 | F23: 182.13 | G23: 175.72 | H23: 196.42 | I23: 202.83 | J23: 206.77 | K23: 198.9 | L23: 188.55 | M23: 7.44165
A24: 15 | B24: AJANTPHARM | C24: 880.6 | D24: 885.42 | E24: 863.18 | F24: 845.77 | G24: 823.53 | H24: 902.83 | I24: 925.07 | J24: 942.48 | K24: 907.65 | L24: 868 | M24: 3.63493
A25: 16 | B25: ALKEM | C25: 1760.4 | D25: 1776.47 | E25: 1738.93 | F25: 1717.47 | G25: 1679.93 | H25: 1797.93 | I25: 1835.47 | J25: 1856.93 | K25: 1814 | L25: 1755 | M25: 0.09407
A26: 17 | B26: AMARAJABAT | C26: 650.5 | D26: 650.63 | E26: 645.22 | F26: 639.93 | G26: 634.52 | H26: 655.92 | I26: 661.33 | J26: 666.62 | K26: 656.05 | L26: 645.35 | M26: 4.35984
A27: 18 | B27: AMBUJACEM | C27: 202.1 | D27: 203.73 | E27: 199.47 | F27: 196.83 | G27: 192.57 | H27: 206.37 | I27: 210.63 | J27: 213.27 | K27: 208 | L27: 201.1 | M27: 28.75238
A28: 19 | B28: APOLLOHOSP | C28: 1333.6 | D28: 1345.53 | E28: 1317.07 | F28: 1300.53 | G28: 1272.07 | H28: 1362.07 | I28: 1390.53 | J28: 1407.07 | K28: 1374 | L28: 1329 | M28: 3.64277
A29: 20 | B29: APOLLOTYRE | C29: 149.7 | D29: 151.15 | E29: 147.55 | F29: 145.40 | G29: 141.80 | H29: 153.30 | I29: 156.90 | J29: 159.05 | K29: 154.75 | L29: 149 | M29: 46.72764
A30: 21 | B30: ASHOKLEY | C30: 68.55 | D30: 69.67 | E30: 66.88 | F30: 65.22 | G30: 62.43 | H30: 71.33 | I30: 74.12 | J30: 75.78 | K30: 72.45 | L30: 68 | M30: 286.61597
A31: 22 | B31: ASIANPAINT | C31: 1508.75 | D31: 1512.82 | E31: 1498.63 | F31: 1488.52 | G31: 1474.33 | H31: 1522.93 | I31: 1537.12 | J31: 1547.23 | K31: 1527 | L31: 1502.7 | M31: 14.36383
A32: 23 | B32: AUROPHARMA | C32: 551.95 | D32: 558.63 | E32: 542.82 | F32: 533.68 | G32: 517.87 | H32: 567.77 | I32: 583.58 | J32: 592.72 | K32: 574.45 | L32: 549.5 | M32: 31.85551
A33: 24 | B33: DMART | C33: 1459.7 | D33: 1461.60 | E33: 1448.20 | F33: 1436.70 | G33: 1423.30 | H33: 1473.10 | I33: 1486.50 | J33: 1498.00 | K33: 1475 | L33: 1450.1 | M33: 3.75072
A34: 25 | B34: AXISBANK | C34: 707.6 | D34: 712.20 | E34: 696.40 | F34: 685.20 | G34: 669.40 | H34: 723.40 | I34: 739.20 | J34: 750.40 | K34: 728 | L34: 701 | M34: 141.009
A35: 26 | B35: BAJAJ-AUTO | C35: 2463.85 | D35: 2474.77 | E35: 2434.53 | F35: 2405.22 | G35: 2364.98 | H35: 2504.08 | I35: 2544.32 | J35: 2573.63 | K35: 2515 | L35: 2445.45 | M35: 7.84779
A36: 27 | B36: BAJFINANCE | C36: 3249.95 | D36: 3260.08 | E36: 3221.17 | F36: 3192.38 | G36: 3153.47 | H36: 3288.87 | I36: 3327.78 | J36: 3356.57 | K36: 3299 | L36: 3231.3 | M36: 22.84905
A37: 28 | B37: BAJAJFINSV | C37: 7078.05 | D37: 7130.60 | E37: 7003.45 | F37: 6928.85 | G37: 6801.70 | H37: 7205.20 | I37: 7332.35 | J37: 7406.95 | K37: 7257.75 | L37: 7056 | M37: 3.42504
A38: 29 | B38: BAJAJHLDNG | C38: 3562.9 | D38: 3524.05 | E38: 3453.20 | F38: 3343.50 | G38: 3272.65 | H38: 3633.75 | I38: 3704.60 | J38: 3814.30 | K38: 3594.9 | L38: 3414.35 | M38: 0.77206
A39: 30 | B39: BALKRISIND | C39: 700.8 | D39: 706.30 | E39: 691.70 | F39: 682.60 | G39: 668.00 | H39: 715.40 | I39: 730.00 | J39: 739.10 | K39: 720.9 | L39: 697.2 | M39: 4.73563
A40: 31 | B40: BANDHANBNK | C40: 480.7 | D40: 483.50 | E40: 468.20 | F40: 455.70 | G40: 440.40 | H40: 496.00 | I40: 511.30 | J40: 523.80 | K40: 498.8 | L40: 471 | M40: 9.48861
A41: 32 | B41: BANKBARODA | C41: 102.65 | D41: 104.63 | E41: 99.37 | F41: 96.08 | G41: 90.82 | H41: 107.92 | I41: 113.18 | J41: 116.47 | K41: 109.9 | L41: 101.35 | M41: 272.82787
A42: 33 | B42: BANKINDIA | C42: 70.8 | D42: 72.37 | E42: 68.23 | F42: 65.67 | G42: 61.53 | H42: 74.93 | I42: 79.07 | J42: 81.63 | K42: 76.5 | L42: 69.8 | M42: 252.18546
A43: 34 | B43: BATAINDIA | C43: 1301.9 | D43: 1305.37 | E43: 1287.03 | F43: 1272.17 | G43: 1253.83 | H43: 1320.23 | I43: 1338.57 | J43: 1353.43 | K43: 1323.7 | L43: 1290.5 | M43: 4.78549
A44: 35 | B44: BERGEPAINT | C44: 332.4 | D44: 334.55 | E44: 328.20 | F44: 324.00 | G44: 317.65 | H44: 338.75 | I44: 345.10 | J44: 349.30 | K44: 340.9 | L44: 330.35 | M44: 27.44012
A45: 36 | B45: BEL | C45: 98.4 | D45: 97.35 | E45: 94.30 | F45: 90.20 | G45: 87.15 | H45: 101.45 | I45: 104.50 | J45: 108.60 | K45: 100.4 | L45: 93.25 | M45: 381.72286
A46: 37 | B46: BHARATFORG | C46: 416.4 | D46: 420.33 | E46: 410.87 | F46: 405.33 | G46: 395.87 | H46: 425.87 | I46: 435.33 | J46: 440.87 | K46: 429.8 | L46: 414.8 | M46: 11.83508
A47: 38 | B47: BHEL | C47: 57.75 | D47: 58.32 | E47: 56.93 | F47: 56.12 | G47: 54.73 | H47: 59.13 | I47: 60.52 | J47: 61.33 | K47: 59.7 | L47: 57.5 | M47: 109.37507
A48: 39 | B48: BPCL | C48: 335.5 | D48: 337.78 | E48: 332.07 | F48: 328.63 | G48: 322.92 | H48: 341.22 | I48: 346.93 | J48: 350.37 | K48: 343.5 | L48: 334.35 | M48: 21.31968
A49: 40 | B49: BHARTIARTL | C49: 345.75 | D49: 343.07 | E49: 337.83 | F49: 329.92 | G49: 324.68 | H49: 350.98 | I49: 356.22 | J49: 364.13 | K49: 348.3 | L49: 335.15 | M49: 127.22092
A50: 41 | B50: INFRATEL | C50: 249.55 | D50: 251.38 | E50: 243.27 | F50: 236.98 | G50: 228.87 | H50: 257.67 | I50: 265.78 | J50: 272.07 | K50: 259.5 | L50: 245.1 | M50: 29.19377
A51: 42 | B51: BIOCON | C51: 234.1 | D51: 236.83 | E51: 230.07 | F51: 226.03 | G51: 219.27 | H51: 240.87 | I51: 247.63 | J51: 251.67 | K51: 243.6 | L51: 232.8 | M51: 30.66345
A52: 43 | B52: BBTC | C52: 819.9 | D52: 829.97 | E52: 791.93 | F52: 763.97 | G52: 725.93 | H52: 857.93 | I52: 895.97 | J52: 923.93 | K52: 868 | L52: 802 | M52: 0.99471
A53: 44 | B53: BOSCHLTD | C53: 14281 | D53: 14462.77 | E53: 14027.58 | F53: 13774.17 | G53: 13338.98 | H53: 14716.18 | I53: 15151.37 | J53: 15404.78 | K53: 14897.95 | L53: 14209.35 | M53: 0.16929
A54: 45 | B54: BRITANNIA | C54: 2617.05 | D54: 2635.50 | E54: 2574.05 | F54: 2531.05 | G54: 2469.60 | H54: 2678.50 | I54: 2739.95 | J54: 2782.95 | K54: 2696.95 | L54: 2592.5 | M54: 3.54859
A55: 46 | B55: CADILAHC | C55: 220.05 | D55: 223.63 | E55: 215.42 | F55: 210.78 | G55: 202.57 | H55: 228.27 | I55: 236.48 | J55: 241.12 | K55: 231.85 | L55: 219 | M55: 12.89608
A56: 47 | B56: CANBK | C56: 232.25 | D56: 235.28 | E56: 228.32 | F56: 224.38 | G56: 217.42 | H56: 239.22 | I56: 246.18 | J56: 250.12 | K56: 242.25 | L56: 231.35 | M56: 65.64458
A57: 48 | B57: CASTROLIND | C57: 124.65 | D57: 125.63 | E57: 122.92 | F57: 121.18 | G57: 118.47 | H57: 127.37 | I57: 130.08 | J57: 131.82 | K57: 128.35 | L57: 123.9 | M57: 14.3598
A58: 49 | B58: CHOLAFIN | C58: 243.4 | D58: 244.13 | E58: 237.37 | F58: 231.33 | G58: 224.57 | H58: 250.17 | I58: 256.93 | J58: 262.97 | K58: 250.9 | L58: 238.1 | M58: 40.00824
A59: 50 | B59: CIPLA | C59: 520 | D59: 523.80 | E59: 514.00 | F59: 508.00 | G59: 498.20 | H59: 529.80 | I59: 539.60 | J59: 545.60 | K59: 533.6 | L59: 517.8 | M59: 16.65158
A60: 51 | B60: COALINDIA | C60: 199.55 | D60: 201.45 | E60: 196.10 | F60: 192.65 | G60: 187.30 | H60: 204.90 | I60: 210.25 | J60: 213.70 | K60: 206.8 | L60: 198 | M60: 105.27314
A61: 52 | B61: COLPAL | C61: 1168.75 | D61: 1172.18 | E61: 1156.57 | F61: 1144.38 | G61: 1128.77 | H61: 1184.37 | I61: 1199.98 | J61: 1212.17 | K61: 1187.8 | L61: 1160 | M61: 3.663
A62: 53 | B62: CONCOR | C62: 513.15 | D62: 513.25 | E62: 510.00 | F62: 506.85 | G62: 503.60 | H62: 516.40 | I62: 519.65 | J62: 522.80 | K62: 516.5 | L62: 510.1 | M62: 2.16924
A63: 54 | B63: COROMANDEL | C63: 362.65 | D63: 366.97 | E63: 354.68 | F63: 346.72 | G63: 334.43 | H63: 374.93 | I63: 387.22 | J63: 395.18 | K63: 379.25 | L63: 359 | M63: 1.5401
A64: 55 | B64: CROMPTON | C64: 230.35 | D64: 230.47 | E64: 226.98 | F64: 223.62 | G64: 220.13 | H64: 233.83 | I64: 237.32 | J64: 240.68 | K64: 233.95 | L64: 227.1 | M64: 4.5284
A65: 56 | B65: CUMMINSIND | C65: 702.05 | D65: 710.07 | E65: 691.93 | F65: 681.82 | G65: 663.68 | H65: 720.18 | I65: 738.32 | J65: 748.43 | K65: 728.2 | L65: 699.95 | M65: 2.69161
A66: 57 | B66: DLF | C66: 177.75 | D66: 178.43 | E66: 174.47 | F66: 171.18 | G66: 167.22 | H66: 181.72 | I66: 185.68 | J66: 188.97 | K66: 182.4 | L66: 175.15 | M66: 158.21594
A67: 58 | B67: DABUR | C67: 422.95 | D67: 424.25 | E67: 419.25 | F67: 415.55 | G67: 410.55 | H67: 427.95 | I67: 432.95 | J67: 436.65 | K67: 429.25 | L67: 420.55 | M67: 15.87114
A68: 59 | B68: DHFL | C68: 49.95 | D68: 51.07 | E68: 47.43 | F68: 44.92 | G68: 41.28 | H68: 53.58 | I68: 57.22 | J68: 59.73 | K68: 54.7 | L68: 48.55 | M68: 267.51782
A69: 60 | B69: DBL | C69: 413.6 | D69: 416.87 | E69: 407.73 | F69: 401.87 | G69: 392.73 | H69: 422.73 | I69: 431.87 | J69: 437.73 | K69: 426 | L69: 411 | M69: 1.92124
A70: 61 | B70: DISHTV | C70: 28.4 | D70: 28.82 | E70: 27.53 | F70: 26.67 | G70: 25.38 | H70: 29.68 | I70: 30.97 | J70: 31.83 | K70: 30.1 | L70: 27.95 | M70: 247.20615
A71: 62 | B71: DIVISLAB | C71: 1658.45 | D71: 1657.15 | E71: 1641.30 | F71: 1624.15 | G71: 1608.30 | H71: 1674.30 | I71: 1690.15 | J71: 1707.30 | K71: 1673 | L71: 1640 | M71: 8.63878
A72: 63 | B72: DRREDDY | C72: 2560 | D72: 2600.87 | E72: 2508.23 | F72: 2456.47 | G72: 2363.83 | H72: 2652.63 | I72: 2745.27 | J72: 2797.03 | K72: 2693.5 | L72: 2549.1 | M72: 21.97242
A73: 64 | B73: EDELWEISS | C73: 142.65 | D73: 143.95 | E73: 139.20 | F73: 135.75 | G73: 131.00 | H73: 147.40 | I73: 152.15 | J73: 155.60 | K73: 148.7 | L73: 140.5 | M73: 19.04052
A74: 65 | B74: EICHERMOT | C74: 16163.55 | D74: 16299.27 | E74: 15873.53 | F74: 15583.52 | G74: 15157.78 | H74: 16589.28 | I74: 17015.02 | J74: 17305.03 | K74: 16725 | L74: 16009.25 | M74: 1.82198
A75: 66 | B75: ENDURANCE | C75: 873.1 | D75: 878.77 | E75: 847.53 | F75: 821.97 | G75: 790.73 | H75: 904.33 | I75: 935.57 | J75: 961.13 | K75: 910 | L75: 853.2 | M75: 0.62161
A76: 67 | B76: ENGINERSIN | C76: 95.2 | D76: 97.60 | E76: 92.25 | F76: 89.30 | G76: 83.95 | H76: 100.55 | I76: 105.90 | J76: 108.85 | K76: 102.95 | L76: 94.65 | M76: 29.9786
A77: 68 | B77: ESCORTS | C77: 459.9 | D77: 465.57 | E77: 451.33 | F77: 442.77 | G77: 428.53 | H77: 474.13 | I77: 488.37 | J77: 496.93 | K77: 479.8 | L77: 457 | M77: 27.00935
A78: 69 | B78: EXIDEIND | C78: 181 | D78: 181.48 | E78: 179.37 | F78: 177.73 | G78: 175.62 | H78: 183.12 | I78: 185.23 | J78: 186.87 | K78: 183.6 | L78: 179.85 | M78: 12.54526
A79: 70 | B79: FEDERALBNK | C79: 90.6 | D79: 91.90 | E79: 88.80 | F79: 87.00 | G79: 83.90 | H79: 93.70 | I79: 96.80 | J79: 98.60 | K79: 95 | L79: 90.1 | M79: 105.33782
A80: 71 | B80: FCONSUMER | C80: 28.05 | D80: 28.40 | E80: 27.20 | F80: 26.35 | G80: 25.15 | H80: 29.25 | I80: 30.45 | J80: 31.30 | K80: 29.6 | L80: 27.55 | M80: 15.99149
A81: 72 | B81: FRETAIL | C81: 420 | D81: 420.60 | E81: 412.40 | F81: 404.80 | G81: 396.60 | H81: 428.20 | I81: 436.40 | J81: 444.00 | K81: 428.8 | L81: 413 | M81: 1.61428
A82: 73 | B82: GAIL | C82: 129.15 | D82: 130.10 | E82: 127.55 | F82: 125.95 | G82: 123.40 | H82: 131.70 | I82: 134.25 | J82: 135.85 | K82: 132.65 | L82: 128.5 | M82: 54.40008
A83: 74 | B83: GMRINFRA | C83: 14.45 | D83: 14.52 | E83: 14.23 | F83: 14.02 | G83: 13.73 | H83: 14.73 | I83: 15.02 | J83: 15.23 | K83: 14.8 | L83: 14.3 | M83: 327.77643
A84: 75 | B84: GICRE | C84: 199.05 | D84: 201.37 | E84: 194.68 | F84: 190.32 | G84: 183.63 | H84: 205.73 | I84: 212.42 | J84: 216.78 | K84: 208.05 | L84: 197 | M84: 0.79654
A85: 76 | B85: GSKCONS | C85: 7350.6 | D85: 7354.15 | E85: 7288.30 | F85: 7226.00 | G85: 7160.15 | H85: 7416.45 | I85: 7482.30 | J85: 7544.60 | K85: 7420 | L85: 7291.85 | M85: 0.04544
A86: 77 | B86: GLENMARK | C86: 417.9 | D86: 421.82 | E86: 406.28 | F86: 394.67 | G86: 379.13 | H86: 433.43 | I86: 448.97 | J86: 460.58 | K86: 437.35 | L86: 410.2 | M86: 11.63187
A87: 78 | B87: GODREJAGRO | C87: 436.3 | D87: 440.82 | E87: 429.63 | F87: 422.97 | G87: 411.78 | H87: 447.48 | I87: 458.67 | J87: 465.33 | K87: 452 | L87: 434.15 | M87: 0.3391
A88: 79 | B88: GODREJCP | C88: 598.4 | D88: 603.92 | E88: 588.33 | F88: 578.27 | G88: 562.68 | H88: 613.98 | I88: 629.57 | J88: 639.63 | K88: 619.5 | L88: 593.85 | M88: 6.43155
A89: 80 | B89: GODREJIND | C89: 452.25 | D89: 452.77 | E89: 447.53 | F89: 442.82 | G89: 437.58 | H89: 457.48 | I89: 462.72 | J89: 467.43 | K89: 458 | L89: 448.05 | M89: 0.79713
A90: 81 | B90: GRAPHITE | C90: 308.7 | D90: 314.90 | E90: 297.00 | F90: 285.30 | G90: 267.40 | H90: 326.60 | I90: 344.50 | J90: 356.20 | K90: 332.8 | L90: 303.2 | M90: 15.53221
A91: 82 | B91: GRASIM | C91: 762.55 | D91: 779.18 | E91: 741.37 | F91: 720.18 | G91: 682.37 | H91: 800.37 | I91: 838.18 | J91: 859.37 | K91: 817 | L91: 758 | M91: 52.10662
A92: 83 | B92: GRUH | C92: 249.05 | D92: 251.82 | E92: 243.48 | F92: 237.92 | G92: 229.58 | H92: 257.38 | I92: 265.72 | J92: 271.28 | K92: 260.15 | L92: 246.25 | M92: 4.34914
A93: 84 | B93: GSPL | C93: 205.45 | D93: 205.68 | E93: 203.57 | F93: 201.68 | G93: 199.57 | H93: 207.57 | I93: 209.68 | J93: 211.57 | K93: 207.8 | L93: 203.8 | M93: 4.16604
A94: 85 | B94: HEG | C94: 981.3 | D94: 1007.07 | E94: 947.23 | F94: 913.17 | G94: 853.33 | H94: 1041.13 | I94: 1100.97 | J94: 1135.03 | K94: 1066.9 | L94: 973 | M94: 5.79172
A95: 86 | B95: HCLTECH | C95: 1023.6 | D95: 1020.58 | E95: 1013.82 | F95: 1004.03 | G95: 997.27 | H95: 1030.37 | I95: 1037.13 | J95: 1046.92 | K95: 1027.35 | L95: 1010.8 | M95: 10.67237
A96: 87 | B96: HDFCAMC | C96: 2135.2 | D96: 2161.53 | E96: 2085.67 | F96: 2036.13 | G96: 1960.27 | H96: 2211.07 | I96: 2286.93 | J96: 2336.47 | K96: 2237.4 | L96: 2112 | M96: 3.75621
A97: 88 | B97: HDFCBANK | C97: 2252.25 | D97: 2254.45 | E97: 2237.70 | F97: 2223.15 | G97: 2206.40 | H97: 2269.00 | I97: 2285.75 | J97: 2300.30 | K97: 2271.2 | L97: 2239.9 | M97: 25.98534
A98: 89 | B98: HDFCLIFE | C98: 483.1 | D98: 483.33 | E98: 474.87 | F98: 466.63 | G98: 458.17 | H98: 491.57 | I98: 500.03 | J98: 508.27 | K98: 491.8 | L98: 475.1 | M98: 22.7464
A99: 90 | B99: HAVELLS | C99: 636.35 | D99: 642.07 | E99: 620.33 | F99: 604.32 | G99: 582.58 | H99: 658.08 | I99: 679.82 | J99: 695.83 | K99: 663.8 | L99: 626.05 | M99: 36.26875
A100: 91 | B100: HEROMOTOCO | C100: 2258.8 | D100: 2309.58 | E100: 2194.52 | F100: 2130.23 | G100: 2015.17 | H100: 2373.87 | I100: 2488.93 | J100: 2553.22 | K100: 2424.65 | L100: 2245.3 | M100: 15.82385
A101: 92 | B101: HEXAWARE | C101: 355.1 | D101: 356.25 | E101: 351.00 | F101: 346.90 | G101: 341.65 | H101: 360.35 | I101: 365.60 | J101: 369.70 | K101: 361.5 | L101: 352.15 | M101: 3.85206
A102: 93 | B102: HINDALCO | C102: 190.1 | D102: 191.25 | E102: 187.70 | F102: 185.30 | G102: 181.75 | H102: 193.65 | I102: 197.20 | J102: 199.60 | K102: 194.8 | L102: 188.85 | M102: 60.33395
A103: 94 | B103: HINDPETRO | C103: 258.3 | D103: 262.05 | E103: 253.45 | F103: 248.60 | G103: 240.00 | H103: 266.90 | I103: 275.50 | J103: 280.35 | K103: 270.65 | L103: 257.2 | M103: 29.07574
A104: 95 | B104: HINDUNILVR | C104: 1719.9 | D104: 1719.75 | E104: 1705.15 | F104: 1690.40 | G104: 1675.80 | H104: 1734.50 | I104: 1749.10 | J104: 1763.85 | K104: 1734.35 | L104: 1705 | M104: 7.47251
A105: 96 | B105: HINDZINC | C105: 214.1 | D105: 216.00 | E105: 211.20 | F105: 208.30 | G105: 203.50 | H105: 218.90 | I105: 223.70 | J105: 226.60 | K105: 220.8 | L105: 213.1 | M105: 11.026
A106: 97 | B106: HUDCO | C106: 33.8 | D106: 34.07 | E106: 33.33 | F106: 32.87 | G106: 32.13 | H106: 34.53 | I106: 35.27 | J106: 35.73 | K106: 34.8 | L106: 33.6 | M106: 7.3452
A107: 98 | B107: HDFC | C107: 2127.25 | D107: 2132.97 | E107: 2107.63 | F107: 2088.02 | G107: 2062.68 | H107: 2152.58 | I107: 2177.92 | J107: 2197.53 | K107: 2158.3 | L107: 2113.35 | M107: 30.91291
A108: 99 | B108: ICICIBANK | C108: 425.35 | D108: 428.93 | E108: 419.17 | F108: 412.98 | G108: 403.22 | H108: 435.12 | I108: 444.88 | J108: 451.07 | K108: 438.7 | L108: 422.75 | M108: 236.17273
A109: 100 | B109: ICICIGI | C109: 1157.25 | D109: 1158.38 | E109: 1138.87 | F109: 1120.48 | G109: 1100.97 | H109: 1176.77 | I109: 1196.28 | J109: 1214.67 | K109: 1177.9 | L109: 1140 | M109: 1.33493
A110: 101 | B110: ICICIPRULI | C110: 398 | D110: 398.33 | E110: 395.67 | F110: 393.33 | G110: 390.67 | H110: 400.67 | I110: 403.33 | J110: 405.67 | K110: 401 | L110: 396 | M110: 18.64795
A111: 102 | B111: IDBI | C111: 27.6 | D111: 28.38 | E111: 26.42 | F111: 25.23 | G111: 23.27 | H111: 29.57 | I111: 31.53 | J111: 32.72 | K111: 30.35 | L111: 27.2 | M111: 124.89481
A112: 103 | B112: IDFCFIRSTB | C112: 39.8 | D112: 40.45 | E112: 38.95 | F112: 38.10 | G112: 36.60 | H112: 41.30 | I112: 42.80 | J112: 43.65 | K112: 41.95 | L112: 39.6 | M112: 157.36314
A113: 104 | B113: ITC | C113: 268.9 | D113: 268.52 | E113: 266.93 | F113: 264.97 | G113: 263.38 | H113: 270.48 | I113: 272.07 | J113: 274.03 | K113: 270.1 | L113: 266.55 | M113: 132.33351
A114: 105 | B114: IBULHSGFIN | C114: 523.9 | D114: 539.97 | E114: 500.13 | F114: 476.37 | G114: 436.53 | H114: 563.73 | I114: 603.57 | J114: 627.33 | K114: 579.8 | L114: 516.2 | M114: 317.93317
A115: 106 | B115: IBVENTURES | C115: 236.85 | D115: 243.28 | E115: 222.57 | F115: 208.28 | G115: 187.57 | H115: 257.57 | I115: 278.28 | J115: 292.57 | K115: 264 | L115: 229 | M115: 14.58187
A116: 107 | B116: INDIANB | C116: 185.15 | D116: 193.02 | E116: 173.53 | F116: 161.92 | G116: 142.43 | H116: 204.63 | I116: 224.12 | J116: 235.73 | K116: 212.5 | L116: 181.4 | M116: 16.27821
A117: 108 | B117: INDHOTEL | C117: 143.85 | D117: 142.37 | E117: 140.33 | F117: 136.82 | G117: 134.78 | H117: 145.88 | I117: 147.92 | J117: 151.43 | K117: 144.4 | L117: 138.85 | M117: 6.318
A118: 109 | B118: IOC | C118: 133.5 | D118: 135.18 | E118: 131.37 | F118: 129.23 | G118: 125.42 | H118: 137.32 | I118: 141.13 | J118: 143.27 | K118: 139 | L118: 133.05 | M118: 169.88505
A119: 110 | B119: IGL | C119: 299.95 | D119: 302.63 | E119: 296.32 | F119: 292.68 | G119: 286.37 | H119: 306.27 | I119: 312.58 | J119: 316.22 | K119: 308.95 | L119: 299 | M119: 8.18353
A120: 111 | B120: INDUSINDBK | C120: 1337.3 | D120: 1367.52 | E120: 1287.43 | F120: 1237.57 | G120: 1157.48 | H120: 1417.38 | I120: 1497.47 | J120: 1547.33 | K120: 1447.6 | L120: 1317.65 | M120: 88.0412
A121: 112 | B121: NAUKRI | C121: 2229.85 | D121: 2238.28 | E121: 2206.57 | F121: 2183.28 | G121: 2151.57 | H121: 2261.57 | I121: 2293.28 | J121: 2316.57 | K121: 2270 | L121: 2215 | M121: 0.99597
A122: 113 | B122: INFY | C122: 792.7 | D122: 793.02 | E122: 788.23 | F122: 783.77 | G122: 778.98 | H122: 797.48 | I122: 802.27 | J122: 806.73 | K122: 797.8 | L122: 788.55 | M122: 86.73253
A123: 114 | B123: INDIGO | C123: 1544.55 | D123: 1557.78 | E123: 1526.02 | F123: 1507.48 | G123: 1475.72 | H123: 1576.32 | I123: 1608.08 | J123: 1626.62 | K123: 1589.55 | L123: 1539.25 | M123: 9.81802
A124: 115 | B124: JSWENERGY | C124: 69 | D124: 69.18 | E124: 68.42 | F124: 67.83 | G124: 67.07 | H124: 69.77 | I124: 70.53 | J124: 71.12 | K124: 69.95 | L124: 68.6 | M124: 4.37949
A125: 116 | B125: JSWSTEEL | C125: 230.25 | D125: 232.75 | E125: 217.50 | F125: 204.75 | G125: 189.50 | H125: 245.50 | I125: 260.75 | J125: 273.50 | K125: 248 | L125: 220 | M125: 89.38349
A126: 117 | B126: JINDALSTEL | C126: 130.15 | D126: 132.25 | E126: 127.00 | F126: 123.85 | G126: 118.60 | H126: 135.40 | I126: 140.65 | J126: 143.80 | K126: 137.5 | L126: 129.1 | M126: 110.00787
A127: 118 | B127: JUBLFOOD | C127: 1198.85 | D127: 1204.57 | E127: 1186.33 | F127: 1173.82 | G127: 1155.58 | H127: 1217.08 | I127: 1235.32 | J127: 1247.83 | K127: 1222.8 | L127: 1192.05 | M127: 11.16463
A128: 119 | B128: JUBILANT | C128: 443.05 | D128: 442.92 | E128: 428.83 | F128: 414.62 | G128: 400.53 | H128: 457.13 | I128: 471.22 | J128: 485.43 | K128: 457 | L128: 428.7 | M128: 55.21186
A129: 120 | B129: KOTAKBANK | C129: 1498.7 | D129: 1497.45 | E129: 1485.30 | F129: 1471.90 | G129: 1459.75 | H129: 1510.85 | I129: 1523.00 | J129: 1536.40 | K129: 1509.6 | L129: 1484.05 | M129: 17.43748
A130: 121 | B130: L&TFH | C130: 97.65 | D130: 99.18 | E130: 95.47 | F130: 93.28 | G130: 89.57 | H130: 101.37 | I130: 105.08 | J130: 107.27 | K130: 102.9 | L130: 97 | M130: 80.28738
A131: 122 | B131: LTTS | C131: 1465.6 | D131: 1456.28 | E131: 1439.32 | F131: 1413.03 | G131: 1396.07 | H131: 1482.57 | I131: 1499.53 | J131: 1525.82 | K131: 1473.25 | L131: 1430 | M131: 0.76464
A132: 123 | B132: LICHSGFIN | C132: 513.95 | D132: 517.05 | E132: 507.90 | F132: 501.85 | G132: 492.70 | H132: 523.10 | I132: 532.25 | J132: 538.30 | K132: 526.2 | L132: 511 | M132: 14.63096
A133: 124 | B133: LTI | C133: 1511.15 | D133: 1516.18 | E133: 1492.47 | F133: 1473.78 | G133: 1450.07 | H133: 1534.87 | I133: 1558.58 | J133: 1577.27 | K133: 1539.9 | L133: 1497.5 | M133: 1.41195
A134: 125 | B134: LT | C134: 1376.35 | D134: 1380.60 | E134: 1368.05 | F134: 1359.75 | G134: 1347.20 | H134: 1388.90 | I134: 1401.45 | J134: 1409.75 | K134: 1393.15 | L134: 1372.3 | M134: 27.14475
A135: 126 | B135: LUPIN | C135: 752.6 | D135: 765.22 | E135: 735.43 | F135: 718.27 | G135: 688.48 | H135: 782.38 | I135: 812.17 | J135: 829.33 | K135: 795 | L135: 748.05 | M135: 32.65104
A136: 127 | B136: MRF | C136: 53778.5 | D136: 53913.75 | E136: 53537.75 | F136: 53297.00 | G136: 52921.00 | H136: 54154.50 | I136: 54530.50 | J136: 54771.25 | K136: 54289.75 | L136: 53673 | M136: 0.04885
A137: 128 | B137: MGL | C137: 785.8 | D137: 786.28 | E137: 773.57 | F137: 761.33 | G137: 748.62 | H137: 798.52 | I137: 811.23 | J137: 823.47 | K137: 799 | L137: 774.05 | M137: 5.52406
A138: 129 | B138: M&MFIN | C138: 297.55 | D138: 299.93 | E138: 292.12 | F138: 286.68 | G138: 278.87 | H138: 305.37 | I138: 313.18 | J138: 318.62 | K138: 307.75 | L138: 294.5 | M138: 27.05253
A139: 130 | B139: M&M | C139: 548.75 | D139: 552.53 | E139: 543.77 | F139: 538.78 | G139: 530.02 | H139: 557.52 | I139: 566.28 | J139: 571.27 | K139: 561.3 | L139: 547.55 | M139: 31.86153
A140: 131 | B140: MANAPPURAM | C140: 109.05 | D140: 110.47 | E140: 107.28 | F140: 105.52 | G140: 102.33 | H140: 112.23 | I140: 115.42 | J140: 117.18 | K140: 113.65 | L140: 108.7 | M140: 35.0898
A141: 132 | B141: MRPL | C141: 54.7 | D141: 54.60 | E141: 53.75 | F141: 52.80 | G141: 51.95 | H141: 55.55 | I141: 56.40 | J141: 57.35 | K141: 55.45 | L141: 53.65 | M141: 3.60861
A142: 133 | B142: MARICO | C142: 362.75 | D142: 363.12 | E142: 359.08 | F142: 355.42 | G142: 351.38 | H142: 366.78 | I142: 370.82 | J142: 374.48 | K142: 367.15 | L142: 359.45 | M142: 8.2445
A143: 134 | B143: MARUTI | C143: 5507.15 | D143: 5548.00 | E143: 5451.15 | F143: 5395.15 | G143: 5298.30 | H143: 5604.00 | I143: 5700.85 | J143: 5756.85 | K143: 5644.85 | L143: 5492 | M143: 11.89163
A144: 135 | B144: MFSL | C144: 412.95 | D144: 416.07 | E144: 407.58 | F144: 402.22 | G144: 393.73 | H144: 421.43 | I144: 429.92 | J144: 435.28 | K144: 424.55 | L144: 410.7 | M144: 4.94652
A145: 136 | B145: MINDTREE | C145: 711.75 | D145: 703.10 | E145: 688.25 | F145: 664.75 | G145: 649.90 | H145: 726.60 | I145: 741.45 | J145: 764.95 | K145: 717.95 | L145: 679.6 | M145: 26.31156
A146: 137 | B146: MOTHERSUMI | C146: 103.6 | D146: 104.98 | E146: 101.87 | F146: 100.13 | G146: 97.02 | H146: 106.72 | I146: 109.83 | J146: 111.57 | K146: 108.1 | L146: 103.25 | M146: 58.86723
A147: 138 | B147: MPHASIS | C147: 958.65 | D147: 956.13 | E147: 946.27 | F147: 933.88 | G147: 924.02 | H147: 968.52 | I147: 978.38 | J147: 990.77 | K147: 966 | L147: 943.75 | M147: 3.31318
A148: 139 | B148: MUTHOOTFIN | C148: 601.85 | D148: 599.13 | E148: 590.42 | F148: 578.98 | G148: 570.27 | H148: 610.57 | I148: 619.28 | J148: 630.72 | K148: 607.85 | L148: 587.7 | M148: 12.30503
A149: 140 | B149: NATCOPHARM | C149: 520.5 | D149: 523.03 | E149: 516.17 | F149: 511.83 | G149: 504.97 | H149: 527.37 | I149: 534.23 | J149: 538.57 | K149: 529.9 | L149: 518.7 | M149: 0.87044
A150: 141 | B150: NBCC | C150: 41.65 | D150: 43.57 | E150: 38.83 | F150: 36.02 | G150: 31.28 | H150: 46.38 | I150: 51.12 | J150: 53.93 | K150: 48.3 | L150: 40.75 | M150: 257.45605
A151: 142 | B151: NHPC | C151: 22.25 | D151: 22.35 | E151: 22.15 | F151: 22.05 | G151: 21.85 | H151: 22.45 | I151: 22.65 | J151: 22.75 | K151: 22.55 | L151: 22.25 | M151: 8.88356
A152: 143 | B152: NMDC | C152: 107.3 | D152: 108.47 | E152: 105.73 | F152: 104.17 | G152: 101.43 | H152: 110.03 | I152: 112.77 | J152: 114.33 | K152: 111.2 | L152: 106.9 | M152: 51.34922
A153: 144 | B153: NTPC | C153: 127.2 | D153: 127.32 | E153: 125.98 | F153: 124.77 | G153: 123.43 | H153: 128.53 | I153: 129.87 | J153: 131.08 | K153: 128.65 | L153: 126.1 | M153: 162.28044
A154: 145 | B154: NATIONALUM | C154: 44.05 | D154: 44.53 | E154: 43.42 | F154: 42.78 | G154: 41.67 | H154: 45.17 | I154: 46.28 | J154: 46.92 | K154: 45.65 | L154: 43.9 | M154: 67.2275
A155: 146 | B155: OBEROIRLTY | C155: 548.45 | D155: 549.07 | E155: 543.23 | F155: 538.02 | G155: 532.18 | H155: 554.28 | I155: 560.12 | J155: 565.33 | K155: 554.9 | L155: 543.85 | M155: 4.08781
A156: 147 | B156: ONGC | C156: 138.75 | D156: 139.55 | E156: 137.30 | F156: 135.85 | G156: 133.60 | H156: 141.00 | I156: 143.25 | J156: 144.70 | K156: 141.8 | L156: 138.1 | M156: 119.43745
A157: 148 | B157: OIL | C157: 154.05 | D157: 154.62 | E157: 152.63 | F157: 151.22 | G157: 149.23 | H157: 156.03 | I157: 158.02 | J157: 159.43 | K157: 156.6 | L157: 153.2 | M157: 15.4969
A158: 149 | B158: OFSS | C158: 3306.85 | D158: 3316.58 | E158: 3278.27 | F158: 3249.68 | G158: 3211.37 | H158: 3345.17 | I158: 3383.48 | J158: 3412.07 | K158: 3354.9 | L158: 3288 | M158: 0.14194
A159: 150 | B159: PIIND | C159: 1099.5 | D159: 1096.22 | E159: 1085.13 | F159: 1070.77 | G159: 1059.68 | H159: 1110.58 | I159: 1121.67 | J159: 1136.03 | K159: 1107.3 | L159: 1081.85 | M159: 1.11063
A160: 151 | B160: PNBHOUSING | C160: 715.75 | D160: 714.07 | E160: 702.68 | F160: 689.62 | G160: 678.23 | H160: 727.13 | I160: 738.52 | J160: 751.58 | K160: 725.45 | L160: 701 | M160: 3.39568
A161: 152 | B161: PAGEIND | C161: 18051.35 | D161: 18315.62 | E161: 17691.23 | F161: 17331.12 | G161: 16706.73 | H161: 18675.73 | I161: 19300.12 | J161: 19660.23 | K161: 18940 | L161: 17955.5 | M161: 0.2792
A162: 153 | B162: PETRONET | C162: 233.2 | D162: 234.88 | E162: 230.27 | F162: 227.33 | G162: 222.72 | H162: 237.82 | I162: 242.43 | J162: 245.37 | K162: 239.5 | L162: 231.95 | M162: 16.50114
A163: 154 | B163: PFIZER | C163: 3151.75 | D163: 3172.58 | E163: 3120.17 | F163: 3088.58 | G163: 3036.17 | H163: 3204.17 | I163: 3256.58 | J163: 3288.17 | K163: 3225 | L163: 3141 | M163: 0.13687
A164: 155 | B164: PIDILITIND | C164: 1228.7 | D164: 1234.83 | E164: 1218.87 | F164: 1209.03 | G164: 1193.07 | H164: 1244.67 | I164: 1260.63 | J164: 1270.47 | K164: 1250.8 | L164: 1225 | M164: 5.17788
A165: 156 | B165: PEL | C165: 1788.15 | D165: 1804.85 | E165: 1747.70 | F165: 1707.25 | G165: 1650.10 | H165: 1845.30 | I165: 1902.45 | J165: 1942.90 | K165: 1862 | L165: 1764.4 | M165: 28.70003
A166: 157 | B166: PFC | C166: 108.55 | D166: 109.53 | E166: 106.47 | F166: 104.38 | G166: 101.32 | H166: 111.62 | I166: 114.68 | J166: 116.77 | K166: 112.6 | L166: 107.45 | M166: 91.68215
A167: 158 | B167: POWERGRID | C167: 208.25 | D167: 208.25 | E167: 206.70 | F167: 205.15 | G167: 203.60 | H167: 209.80 | I167: 211.35 | J167: 212.90 | K167: 209.8 | L167: 206.7 | M167: 56.53129
A168: 159 | B168: PRESTIGE | C168: 257.9 | D168: 259.85 | E168: 253.20 | F168: 248.50 | G168: 241.85 | H168: 264.55 | I168: 271.20 | J168: 275.90 | K168: 266.5 | L168: 255.15 | M168: 0.50798
A169: 160 | B169: PGHH | C169: 10704.35 | D169: 10693.73 | E169: 10637.47 | F169: 10570.58 | G169: 10514.32 | H169: 10760.62 | I169: 10816.88 | J169: 10883.77 | K169: 10750 | L169: 10626.85 | M169: 0.03006
A170: 161 | B170: PNB | C170: 66.9 | D170: 67.62 | E170: 65.58 | F170: 64.27 | G170: 62.23 | H170: 68.93 | I170: 70.97 | J170: 72.28 | K170: 69.65 | L170: 66.3 | M170: 277.26952
A171: 162 | B171: QUESS | C171: 400.55 | D171: 407.05 | E171: 379.05 | F171: 357.55 | G171: 329.55 | H171: 428.55 | I171: 456.55 | J171: 478.05 | K171: 435.05 | L171: 385.55 | M171: 3.68385
A172: 163 | B172: RBLBANK | C172: 398.7 | D172: 412.92 | E172: 370.88 | F172: 343.07 | G172: 301.03 | H172: 440.73 | I172: 482.77 | J172: 510.58 | K172: 454.95 | L172: 385.1 | M172: 237.21723
A173: 164 | B173: RECLTD | C173: 135.3 | D173: 137.45 | E173: 132.50 | F173: 129.70 | G173: 124.75 | H173: 140.25 | I173: 145.20 | J173: 148.00 | K173: 142.4 | L173: 134.65 | M173: 42.37784
A174: 165 | B174: RAJESHEXPO | C174: 696.2 | D174: 700.32 | E174: 680.63 | F174: 665.07 | G174: 645.38 | H174: 715.88 | I174: 735.57 | J174: 751.13 | K174: 720 | L174: 684.75 | M174: 3.44184
A175: 166 | B175: RELCAPITAL | C175: 49.1 | D175: 50.38 | E175: 47.32 | F175: 45.53 | G175: 42.47 | H175: 52.17 | I175: 55.23 | J175: 57.02 | K175: 53.45 | L175: 48.6 | M175: 148.9596
A176: 167 | B176: RELIANCE | C176: 1180.9 | D176: 1192.28 | E176: 1164.57 | F176: 1148.23 | G176: 1120.52 | H176: 1208.62 | I176: 1236.33 | J176: 1252.67 | K176: 1220 | L176: 1175.95 | M176: 95.33344
A177: 168 | B177: RELINFRA | C177: 42.85 | D177: 44.32 | E177: 40.68 | F177: 38.52 | G177: 34.88 | H177: 46.48 | I177: 50.12 | J177: 52.28 | K177: 47.95 | L177: 42.15 | M177: 221.37558
A178: 169 | B178: RPOWER | C178: 3.1 | D178: 3.18 | E178: 2.97 | F178: 2.83 | G178: 2.62 | H178: 3.32 | I178: 3.53 | J178: 3.67 | K178: 3.4 | L178: 3.05 | M178: 210.59342
A179: 170 | B179: SBILIFE | C179: 797.4 | D179: 794.77 | E179: 784.53 | F179: 771.67 | G179: 761.43 | H179: 807.63 | I179: 817.87 | J179: 830.73 | K179: 805 | L179: 781.9 | M179: 6.29929
A180: 171 | B180: SRF | C180: 2680.2 | D180: 2706.72 | E180: 2631.48 | F180: 2582.77 | G180: 2507.53 | H180: 2755.43 | I180: 2830.67 | J180: 2879.38 | K180: 2781.95 | L180: 2658 | M180: 2.32068
A181: 172 | B181: SHREECEM | C181: 20768.7 | D181: 20867.55 | E181: 20502.15 | F181: 20235.60 | G181: 19870.20 | H181: 21134.10 | I181: 21499.50 | J181: 21766.05 | K181: 21232.95 | L181: 20601 | M181: 0.2322
A182: 173 | B182: SRTRANSFIN | C182: 969 | D182: 971.83 | E182: 961.27 | F182: 953.53 | G182: 942.97 | H182: 979.57 | I182: 990.13 | J182: 997.87 | K182: 982.4 | L182: 964.1 | M182: 14.68107
A183: 174 | B183: SIEMENS | C183: 1154.85 | D183: 1159.95 | E183: 1138.90 | F183: 1122.95 | G183: 1101.90 | H183: 1175.90 | I183: 1196.95 | J183: 1212.90 | K183: 1181 | L183: 1144 | M183: 3.08706
A184: 175 | B184: SBIN | C184: 327.55 | D184: 333.37 | E184: 320.03 | F184: 312.52 | G184: 299.18 | H184: 340.88 | I184: 354.22 | J184: 361.73 | K184: 346.7 | L184: 325.85 | M184: 244.37235
A185: 176 | B185: SAIL | C185: 41.6 | D185: 42.45 | E185: 40.35 | F185: 39.10 | G185: 37.00 | H185: 43.70 | I185: 45.80 | J185: 47.05 | K185: 44.55 | L185: 41.2 | M185: 267.72431
A186: 177 | B186: STRTECH | C186: 152.55 | D186: 153.85 | E186: 150.20 | F186: 147.85 | G186: 144.20 | H186: 156.20 | I186: 159.85 | J186: 162.20 | K186: 157.5 | L186: 151.5 | M186: 8.5523
A187: 178 | B187: SPARC | C187: 152.9 | D187: 156.27 | E187: 148.63 | F187: 144.37 | G187: 136.73 | H187: 160.53 | I187: 168.17 | J187: 172.43 | K187: 163.9 | L187: 152 | M187: 15.13718
A188: 179 | B188: SUNPHARMA | C188: 410.35 | D188: 418.88 | E188: 396.47 | F188: 382.58 | G188: 360.17 | H188: 432.77 | I188: 455.18 | J188: 469.07 | K188: 441.3 | L188: 405 | M188: 94.61831
A189: 180 | B189: SUNTV | C189: 466.95 | D189: 469.22 | E189: 461.23 | F189: 455.52 | G189: 447.53 | H189: 474.93 | I189: 482.92 | J189: 488.63 | K189: 477.2 | L189: 463.5 | M189: 18.15425
A190: 181 | B190: SYNGENE | C190: 305.65 | D190: 309.53 | E190: 299.12 | F190: 292.58 | G190: 282.17 | H190: 316.07 | I190: 326.48 | J190: 333.02 | K190: 319.95 | L190: 303 | M190: 0.97025
A191: 182 | B191: TVSMOTOR | C191: 344.5 | D191: 350.27 | E191: 336.63 | F191: 328.77 | G191: 315.13 | H191: 358.13 | I191: 371.77 | J191: 379.63 | K191: 363.9 | L191: 342.4 | M191: 21.04167
A192: 183 | B192: TATACHEM | C192: 572.2 | D192: 572.07 | E192: 565.13 | F192: 558.07 | G192: 551.13 | H192: 579.13 | I192: 586.07 | J192: 593.13 | K192: 579 | L192: 565 | M192: 17.46467
A193: 184 | B193: TCS | C193: 2179.15 | D193: 2161.53 | E193: 2138.07 | F193: 2096.98 | G193: 2073.52 | H193: 2202.62 | I193: 2226.08 | J193: 2267.17 | K193: 2185 | L193: 2120.45 | M193: 28.51672
A194: 185 | B194: TATAGLOBAL | C194: 249.7 | D194: 252.20 | E194: 245.20 | F194: 240.70 | G194: 233.70 | H194: 256.70 | I194: 263.70 | J194: 268.20 | K194: 259.2 | L194: 247.7 | M194: 15.77476
A195: 186 | B195: TATAMTRDVR | C195: 64.6 | D195: 65.65 | E195: 63.25 | F195: 61.90 | G195: 59.50 | H195: 67.00 | I195: 69.40 | J195: 70.75 | K195: 68.05 | L195: 64.3 | M195: 44.52709
A196: 187 | B196: TATAMOTORS | C196: 133.45 | D196: 135.25 | E196: 130.80 | F196: 128.15 | G196: 123.70 | H196: 137.90 | I196: 142.35 | J196: 145.00 | K196: 139.7 | L196: 132.6 | M196: 357.25524
A197: 188 | B197: TATAPOWER | C197: 58.9 | D197: 59.75 | E197: 57.55 | F197: 56.20 | G197: 54.00 | H197: 61.10 | I197: 63.30 | J197: 64.65 | K197: 61.95 | L197: 58.4 | M197: 85.42201
A198: 189 | B198: TATASTEEL | C198: 415.05 | D198: 421.05 | E198: 400.20 | F198: 385.35 | G198: 364.50 | H198: 435.90 | I198: 456.75 | J198: 471.60 | K198: 441.9 | L198: 406.2 | M198: 94.62921
A199: 190 | B199: TECHM | C199: 640.25 | D199: 641.23 | E199: 632.17 | F199: 624.08 | G199: 615.02 | H199: 649.32 | I199: 658.38 | J199: 666.47 | K199: 650.3 | L199: 633.15 | M199: 28.82913
A200: 191 | B200: NIACL | C200: 114 | D200: 115.47 | E200: 111.53 | F200: 109.07 | G200: 105.13 | H200: 117.93 | I200: 121.87 | J200: 124.33 | K200: 119.4 | L200: 113 | M200: 0.78207
A201: 192 | B201: RAMCOCEM | C201: 746.85 | D201: 747.13 | E201: 733.47 | F201: 720.08 | G201: 706.42 | H201: 760.52 | I201: 774.18 | J201: 787.57 | K201: 760.8 | L201: 733.75 | M201: 4.63189
A202: 193 | B202: TITAN | C202: 1079.2 | D202: 1081.63 | E202: 1069.67 | F202: 1060.13 | G202: 1048.17 | H202: 1091.17 | I202: 1103.13 | J202: 1112.67 | K202: 1093.6 | L202: 1072.1 | M202: 23.35907
A203: 194 | B203: TORNTPHARM | C203: 1653.45 | D203: 1662.95 | E203: 1635.90 | F203: 1618.35 | G203: 1591.30 | H203: 1680.50 | I203: 1707.55 | J203: 1725.10 | K203: 1690 | L203: 1645.4 | M203: 3.89103
A204: 195 | B204: TORNTPOWER | C204: 299.1 | D204: 300.98 | E204: 293.72 | F204: 288.33 | G204: 281.07 | H204: 306.37 | I204: 313.63 | J204: 319.02 | K204: 308.25 | L204: 295.6 | M204: 8.88454
A205: 196 | B205: UPL | C205: 573.7 | D205: 578.63 | E205: 564.02 | F205: 554.33 | G205: 539.72 | H205: 588.32 | I205: 602.93 | J205: 612.62 | K205: 593.25 | L205: 568.95 | M205: 37.09631
... 30 more rows

Sheet MidCap Intra
L5: Back To Main Page
A6: FOR INTRA DAY TRADING | K6: =Main!B10 -> 2019-07-31
A9: Sr.no | B9: Scrip | C9: CLOSE RATE | D9: Pivot Point | E9: Supports | H9: Resistances
C10: Point | E10: S1 | F10: S2 | G10: S3 | H10: R1 | I10: R2 | J10: R3 | K10: HIGH | L10: LOW | M10: Total Trade Quanity in Lakhs
A11: 1 | B11: 3MINDIA | C11: 20989.85 | D11: 21078.67 | E11: 20778.83 | F11: 20567.82 | G11: 20267.98 | H11: 21289.68 | I11: 21589.52 | J11: 21800.53 | K11: 21378.5 | L11: 20867.65 | M11: 0.00904
A12: 2 | B12: ABB | C12: 1358.3 | D12: 1371.98 | E12: 1339.27 | F12: 1320.23 | G12: 1287.52 | H12: 1391.02 | I12: 1423.73 | J12: 1442.77 | K12: 1404.7 | L12: 1352.95 | M12: 2.91048
A13: 3 | B13: ACC | C13: 1540.9 | D13: 1546.75 | E13: 1526.75 | F13: 1512.60 | G13: 1492.60 | H13: 1560.90 | I13: 1580.90 | J13: 1595.05 | K13: 1566.75 | L13: 1532.6 | M13: 10.94582
A14: 4 | B14: AIAENG | C14: 1747.35 | D14: 1736.95 | E14: 1719.00 | F14: 1690.65 | G14: 1672.70 | H14: 1765.30 | I14: 1783.25 | J14: 1811.60 | K14: 1754.9 | L14: 1708.6 | M14: 0.05049
A15: 5 | B15: APLAPOLLO | C15: 1355.25 | D15: 1352.58 | E15: 1305.17 | F15: 1255.08 | G15: 1207.67 | H15: 1402.67 | I15: 1450.08 | J15: 1500.17 | K15: 1400 | L15: 1302.5 | M15: 0.43975
A16: 6 | B16: AUBANK | C16: 654.55 | D16: 654.85 | E16: 644.70 | F16: 634.85 | G16: 624.70 | H16: 664.70 | I16: 674.85 | J16: 684.70 | K16: 665 | L16: 645 | M16: 3.77646
A17: 7 | B17: AAVAS | C17: 1430.2 | D17: 1441.78 | E17: 1413.57 | F17: 1396.93 | G17: 1368.72 | H17: 1458.42 | I17: 1486.63 | J17: 1503.27 | K17: 1470 | L17: 1425.15 | M17: 0.53478
A18: 8 | B18: ADANIGREEN | C18: 46.4 | D18: 47.20 | E18: 45.20 | F18: 44.00 | G18: 42.00 | H18: 48.40 | I18: 50.40 | J18: 51.60 | K18: 49.2 | L18: 46 | M18: 6.23197
A19: 9 | B19: ADANIPORTS | C19: 373.45 | D19: 374.82 | E19: 369.73 | F19: 366.02 | G19: 360.93 | H19: 378.53 | I19: 383.62 | J19: 387.33 | K19: 379.9 | L19: 371.1 | M19: 23.12161
A20: 10 | B20: ADANIPOWER | C20: 60.65 | D20: 61.03 | E20: 59.82 | F20: 58.98 | G20: 57.77 | H20: 61.87 | I20: 63.08 | J20: 63.92 | K20: 62.25 | L20: 60.2 | M20: 81.57234
A21: 11 | B21: ADANITRANS | C21: 203.95 | D21: 205.65 | E21: 200.80 | F21: 197.65 | G21: 192.80 | H21: 208.80 | I21: 213.65 | J21: 216.80 | K21: 210.5 | L21: 202.5 | M21: 0.55096
A22: 12 | B22: ABCAPITAL | C22: 81 | D22: 81.83 | E22: 79.27 | F22: 77.53 | G22: 74.97 | H22: 83.57 | I22: 86.13 | J22: 87.87 | K22: 84.4 | L22: 80.1 | M22: 12.47865
A23: 13 | B23: ABFRL | C23: 190 | D23: 192.48 | E23: 186.07 | F23: 182.13 | G23: 175.72 | H23: 196.42 | I23: 202.83 | J23: 206.77 | K23: 198.9 | L23: 188.55 | M23: 7.44165
A24: 14 | B24: ADVENZYMES | C24: 152.95 | D24: 154.15 | E24: 150.80 | F24: 148.65 | G24: 145.30 | H24: 156.30 | I24: 159.65 | J24: 161.80 | K24: 157.5 | L24: 152 | M24: 0.28599
A25: 15 | B25: AEGISCHEM | C25: 190 | D25: 192.47 | E25: 186.53 | F25: 183.07 | G25: 177.13 | H25: 195.93 | I25: 201.87 | J25: 205.33 | K25: 198.4 | L25: 189 | M25: 3.462
A26: 16 | B26: AJANTPHARM | C26: 880.6 | D26: 885.42 | E26: 863.18 | F26: 845.77 | G26: 823.53 | H26: 902.83 | I26: 925.07 | J26: 942.48 | K26: 907.65 | L26: 868 | M26: 3.63493
A27: 17 | B27: AKZOINDIA | C27: 1724.7 | D27: 1729.82 | E27: 1709.88 | F27: 1695.07 | G27: 1675.13 | H27: 1744.63 | I27: 1764.57 | J27: 1779.38 | K27: 1749.75 | L27: 1715 | M27: 0.09321
A28: 18 | B28: APLLTD | C28: 504.5 | D28: 517.02 | E28: 484.03 | F28: 463.57 | G28: 430.58 | H28: 537.48 | I28: 570.47 | J28: 590.93 | K28: 550 | L28: 496.55 | M28: 1.01744
A29: 19 | B29: ALKEM | C29: 1760.4 | D29: 1776.47 | E29: 1738.93 | F29: 1717.47 | G29: 1679.93 | H29: 1797.93 | I29: 1835.47 | J29: 1856.93 | K29: 1814 | L29: 1755 | M29: 0.09407
A30: 20 | B30: ALBK | C30: 39.05 | D30: 39.43 | E30: 38.52 | F30: 37.98 | G30: 37.07 | H30: 39.97 | I30: 40.88 | J30: 41.42 | K30: 40.35 | L30: 38.9 | M30: 12.11327
A31: 21 | B31: ALLCARGO | C31: 93.35 | D31: 95.28 | E31: 90.07 | F31: 86.78 | G31: 81.57 | H31: 98.57 | I31: 103.78 | J31: 107.07 | K31: 100.5 | L31: 92 | M31: 1.69829
A32: 22 | B32: AMARAJABAT | C32: 650.5 | D32: 650.63 | E32: 645.22 | F32: 639.93 | G32: 634.52 | H32: 655.92 | I32: 661.33 | J32: 666.62 | K32: 656.05 | L32: 645.35 | M32: 4.35984
A33: 23 | B33: AMBUJACEM | C33: 202.1 | D33: 203.73 | E33: 199.47 | F33: 196.83 | G33: 192.57 | H33: 206.37 | I33: 210.63 | J33: 213.27 | K33: 208 | L33: 201.1 | M33: 28.75238
A34: 24 | B34: ANDHRABANK | C34: 21.05 | D34: 21.27 | E34: 20.73 | F34: 20.42 | G34: 19.88 | H34: 21.58 | I34: 22.12 | J34: 22.43 | K34: 21.8 | L34: 20.95 | M34: 4.79879
A35: 25 | B35: APOLLOHOSP | C35: 1333.6 | D35: 1345.53 | E35: 1317.07 | F35: 1300.53 | G35: 1272.07 | H35: 1362.07 | I35: 1390.53 | J35: 1407.07 | K35: 1374 | L35: 1329 | M35: 3.64277
A36: 26 | B36: APOLLOTYRE | C36: 149.7 | D36: 151.15 | E36: 147.55 | F36: 145.40 | G36: 141.80 | H36: 153.30 | I36: 156.90 | J36: 159.05 | K36: 154.75 | L36: 149 | M36: 46.72764
A37: 27 | B37: ASHOKLEY | C37: 68.55 | D37: 69.67 | E37: 66.88 | F37: 65.22 | G37: 62.43 | H37: 71.33 | I37: 74.12 | J37: 75.78 | K37: 72.45 | L37: 68 | M37: 286.61597
A38: 28 | B38: ASHOKA | C38: 119.25 | D38: 120.70 | E38: 116.80 | F38: 114.35 | G38: 110.45 | H38: 123.15 | I38: 127.05 | J38: 129.50 | K38: 124.6 | L38: 118.25 | M38: 10.29529
A39: 29 | B39: ASIANPAINT | C39: 1508.75 | D39: 1512.82 | E39: 1498.63 | F39: 1488.52 | G39: 1474.33 | H39: 1522.93 | I39: 1537.12 | J39: 1547.23 | K39: 1527 | L39: 1502.7 | M39: 14.36383
A40: 30 | B40: ASTERDM | C40: 123.15 | D40: 122.88 | E40: 121.77 | F40: 120.38 | G40: 119.27 | H40: 124.27 | I40: 125.38 | J40: 126.77 | K40: 124 | L40: 121.5 | M40: 1.25721
A41: 31 | B41: ASTRAZEN | C41: 1988.15 | D41: 1986.13 | E41: 1904.27 | F41: 1820.38 | G41: 1738.52 | H41: 2070.02 | I41: 2151.88 | J41: 2235.77 | K41: 2068 | L41: 1902.25 | M41: 0.91594
A42: 32 | B42: ASTRAL | C42: 1241.85 | D42: 1249.52 | E42: 1229.98 | F42: 1218.12 | G42: 1198.58 | H42: 1261.38 | I42: 1280.92 | J42: 1292.78 | K42: 1269.05 | L42: 1237.65 | M42: 0.1925
A43: 33 | B43: ATUL | C43: 3646.8 | D43: 3642.27 | E43: 3594.53 | F43: 3542.27 | G43: 3494.53 | H43: 3694.53 | I43: 3742.27 | J43: 3794.53 | K43: 3690 | L43: 3590 | M43: 0.7228
A44: 34 | B44: AUROPHARMA | C44: 551.95 | D44: 558.63 | E44: 542.82 | F44: 533.68 | G44: 517.87 | H44: 567.77 | I44: 583.58 | J44: 592.72 | K44: 574.45 | L44: 549.5 | M44: 31.85551
A45: 35 | B45: AVANTIFEED | C45: 308 | D45: 312.23 | E45: 301.97 | F45: 295.93 | G45: 285.67 | H45: 318.27 | I45: 328.53 | J45: 334.57 | K45: 322.5 | L45: 306.2 | M45: 1.83469
A46: 36 | B46: DMART | C46: 1459.7 | D46: 1461.60 | E46: 1448.20 | F46: 1436.70 | G46: 1423.30 | H46: 1473.10 | I46: 1486.50 | J46: 1498.00 | K46: 1475 | L46: 1450.1 | M46: 3.75072
A47: 37 | B47: AXISBANK | C47: 707.6 | D47: 712.20 | E47: 696.40 | F47: 685.20 | G47: 669.40 | H47: 723.40 | I47: 739.20 | J47: 750.40 | K47: 728 | L47: 701 | M47: 141.009
A48: 38 | B48: BASF | C48: 1064.05 | D48: 1075.35 | E48: 1048.70 | F48: 1033.35 | G48: 1006.70 | H48: 1090.70 | I48: 1117.35 | J48: 1132.70 | K48: 1102 | L48: 1060 | M48: 0.03542
A49: 39 | B49: BEML | C49: 856.7 | D49: 866.33 | E49: 827.67 | F49: 798.63 | G49: 759.97 | H49: 895.37 | I49: 934.03 | J49: 963.07 | K49: 905 | L49: 837.3 | M49: 5.1022
A50: 40 | B50: BSE | C50: 523 | D50: 525.08 | E50: 519.92 | F50: 516.83 | G50: 511.67 | H50: 528.17 | I50: 533.33 | J50: 536.42 | K50: 530.25 | L50: 522 | M50: 0.61277
A51: 41 | B51: BAJAJ-AUTO | C51: 2463.85 | D51: 2474.77 | E51: 2434.53 | F51: 2405.22 | G51: 2364.98 | H51: 2504.08 | I51: 2544.32 | J51: 2573.63 | K51: 2515 | L51: 2445.45 | M51: 7.84779
A52: 42 | B52: BAJAJCON | C52: 269.1 | D52: 271.23 | E52: 264.87 | F52: 260.63 | G52: 254.27 | H52: 275.47 | I52: 281.83 | J52: 286.07 | K52: 277.6 | L52: 267 | M52: 0.28074
A53: 43 | B53: BAJAJELEC | C53: 355.85 | D53: 360.28 | E53: 345.67 | F53: 335.48 | G53: 320.87 | H53: 370.47 | I53: 385.08 | J53: 395.27 | K53: 374.9 | L53: 350.1 | M53: 1.88266
A54: 44 | B54: BAJFINANCE | C54: 3249.95 | D54: 3260.08 | E54: 3221.17 | F54: 3192.38 | G54: 3153.47 | H54: 3288.87 | I54: 3327.78 | J54: 3356.57 | K54: 3299 | L54: 3231.3 | M54: 22.84905
A55: 45 | B55: BAJAJFINSV | C55: 7078.05 | D55: 7130.60 | E55: 7003.45 | F55: 6928.85 | G55: 6801.70 | H55: 7205.20 | I55: 7332.35 | J55: 7406.95 | K55: 7257.75 | L55: 7056 | M55: 3.42504
A56: 46 | B56: BAJAJHLDNG | C56: 3562.9 | D56: 3524.05 | E56: 3453.20 | F56: 3343.50 | G56: 3272.65 | H56: 3633.75 | I56: 3704.60 | J56: 3814.30 | K56: 3594.9 | L56: 3414.35 | M56: 0.77206
A57: 47 | B57: BALKRISIND | C57: 700.8 | D57: 706.30 | E57: 691.70 | F57: 682.60 | G57: 668.00 | H57: 715.40 | I57: 730.00 | J57: 739.10 | K57: 720.9 | L57: 697.2 | M57: 4.73563
A58: 48 | B58: BALMLAWRIE | C58: 170.25 | D58: 171.63 | E58: 168.37 | F58: 166.48 | G58: 163.22 | H58: 173.52 | I58: 176.78 | J58: 178.67 | K58: 174.9 | L58: 169.75 | M58: 0.56673
A59: 49 | B59: BALRAMCHIN | C59: 146.35 | D59: 148.85 | E59: 142.70 | F59: 139.05 | G59: 132.90 | H59: 152.50 | I59: 158.65 | J59: 162.30 | K59: 155 | L59: 145.2 | M59: 10.35442
A60: 50 | B60: BANDHANBNK | C60: 480.7 | D60: 483.50 | E60: 468.20 | F60: 455.70 | G60: 440.40 | H60: 496.00 | I60: 511.30 | J60: 523.80 | K60: 498.8 | L60: 471 | M60: 9.48861
A61: 51 | B61: BANKBARODA | C61: 102.65 | D61: 104.63 | E61: 99.37 | F61: 96.08 | G61: 90.82 | H61: 107.92 | I61: 113.18 | J61: 116.47 | K61: 109.9 | L61: 101.35 | M61: 272.82787
A62: 52 | B62: BANKINDIA | C62: 70.8 | D62: 72.37 | E62: 68.23 | F62: 65.67 | G62: 61.53 | H62: 74.93 | I62: 79.07 | J62: 81.63 | K62: 76.5 | L62: 69.8 | M62: 252.18546
A63: 53 | B63: MAHABANK | C63: 13.25 | D63: 13.60 | E63: 12.75 | F63: 12.25 | G63: 11.40 | H63: 14.10 | I63: 14.95 | J63: 15.45 | K63: 14.45 | L63: 13.1 | M63: 11.12817
A64: 54 | B64: BATAINDIA | C64: 1301.9 | D64: 1305.37 | E64: 1287.03 | F64: 1272.17 | G64: 1253.83 | H64: 1320.23 | I64: 1338.57 | J64: 1353.43 | K64: 1323.7 | L64: 1290.5 | M64: 4.78549
A65: 55 | B65: BERGEPAINT | C65: 332.4 | D65: 334.55 | E65: 328.20 | F65: 324.00 | G65: 317.65 | H65: 338.75 | I65: 345.10 | J65: 349.30 | K65: 340.9 | L65: 330.35 | M65: 27.44012
A66: 56 | B66: BDL | C66: 297.35 | D66: 298.97 | E66: 289.98 | F66: 282.62 | G66: 273.63 | H66: 306.33 | I66: 315.32 | J66: 322.68 | K66: 307.95 | L66: 291.6 | M66: 0.28367
A67: 57 | B67: BEL | C67: 98.4 | D67: 97.35 | E67: 94.30 | F67: 90.20 | G67: 87.15 | H67: 101.45 | I67: 104.50 | J67: 108.60 | K67: 100.4 | L67: 93.25 | M67: 381.72286
A68: 58 | B68: BHARATFORG | C68: 416.4 | D68: 420.33 | E68: 410.87 | F68: 405.33 | G68: 395.87 | H68: 425.87 | I68: 435.33 | J68: 440.87 | K68: 429.8 | L68: 414.8 | M68: 11.83508
A69: 59 | B69: BHEL | C69: 57.75 | D69: 58.32 | E69: 56.93 | F69: 56.12 | G69: 54.73 | H69: 59.13 | I69: 60.52 | J69: 61.33 | K69: 59.7 | L69: 57.5 | M69: 109.37507
A70: 60 | B70: BPCL | C70: 335.5 | D70: 337.78 | E70: 332.07 | F70: 328.63 | G70: 322.92 | H70: 341.22 | I70: 346.93 | J70: 350.37 | K70: 343.5 | L70: 334.35 | M70: 21.31968
A71: 61 | B71: BHARTIARTL | C71: 345.75 | D71: 343.07 | E71: 337.83 | F71: 329.92 | G71: 324.68 | H71: 350.98 | I71: 356.22 | J71: 364.13 | K71: 348.3 | L71: 335.15 | M71: 127.22092
A72: 62 | B72: INFRATEL | C72: 249.55 | D72: 251.38 | E72: 243.27 | F72: 236.98 | G72: 228.87 | H72: 257.67 | I72: 265.78 | J72: 272.07 | K72: 259.5 | L72: 245.1 | M72: 29.19377
A73: 63 | B73: BIOCON | C73: 234.1 | D73: 236.83 | E73: 230.07 | F73: 226.03 | G73: 219.27 | H73: 240.87 | I73: 247.63 | J73: 251.67 | K73: 243.6 | L73: 232.8 | M73: 30.66345
A74: 64 | B74: BIRLACORPN | C74: 537.65 | D74: 549.40 | E74: 521.80 | F74: 505.95 | G74: 478.35 | H74: 565.25 | I74: 592.85 | J74: 608.70 | K74: 577 | L74: 533.55 | M74: 0.46344
A75: 65 | B75: BLISSGVS | C75: 149.95 | D75: 150.98 | E75: 147.37 | F75: 144.78 | G75: 141.17 | H75: 153.57 | I75: 157.18 | J75: 159.77 | K75: 154.6 | L75: 148.4 | M75: 7.4407
A76: 66 | B76: BLUEDART | C76: 2402.1 | D76: 2413.37 | E76: 2386.78 | F76: 2371.47 | G76: 2344.88 | H76: 2428.68 | I76: 2455.27 | J76: 2470.58 | K76: 2439.95 | L76: 2398.05 | M76: 0.01112
A77: 67 | B77: BLUESTARCO | C77: 683.75 | D77: 692.12 | E77: 666.73 | F77: 649.72 | G77: 624.33 | H77: 709.13 | I77: 734.52 | J77: 751.53 | K77: 717.5 | L77: 675.1 | M77: 0.25331
A78: 68 | B78: BBTC | C78: 819.9 | D78: 829.97 | E78: 791.93 | F78: 763.97 | G78: 725.93 | H78: 857.93 | I78: 895.97 | J78: 923.93 | K78: 868 | L78: 802 | M78: 0.99471
A79: 69 | B79: BOMDYEING | C79: 76.55 | D79: 78.97 | E79: 73.58 | F79: 70.62 | G79: 65.23 | H79: 81.93 | I79: 87.32 | J79: 90.28 | K79: 84.35 | L79: 76 | M79: 11.85084
A80: 70 | B80: BOSCHLTD | C80: 14281 | D80: 14462.77 | E80: 14027.58 | F80: 13774.17 | G80: 13338.98 | H80: 14716.18 | I80: 15151.37 | J80: 15404.78 | K80: 14897.95 | L80: 14209.35 | M80: 0.16929
A81: 71 | B81: BRIGADE | C81: 262.6 | D81: 266.12 | E81: 256.48 | F81: 250.37 | G81: 240.73 | H81: 272.23 | I81: 281.87 | J81: 287.98 | K81: 275.75 | L81: 260 | M81: 0.81054
A82: 72 | B82: BRITANNIA | C82: 2617.05 | D82: 2635.50 | E82: 2574.05 | F82: 2531.05 | G82: 2469.60 | H82: 2678.50 | I82: 2739.95 | J82: 2782.95 | K82: 2696.95 | L82: 2592.5 | M82: 3.54859
A83: 73 | B83: CARERATING | C83: 744.7 | D83: 743.03 | E83: 733.62 | F83: 722.53 | G83: 713.12 | H83: 754.12 | I83: 763.53 | J83: 774.62 | K83: 752.45 | L83: 731.95 | M83: 0.16448
A84: 74 | B84: CCL | C84: 245.05 | D84: 244.88 | E84: 243.17 | F84: 241.28 | G84: 239.57 | H84: 246.77 | I84: 248.48 | J84: 250.37 | K84: 246.6 | L84: 243 | M84: 0.26157
A85: 75 | B85: CESC | C85: 723.3 | D85: 729.23 | E85: 713.67 | F85: 704.03 | G85: 688.47 | H85: 738.87 | I85: 754.43 | J85: 764.07 | K85: 744.8 | L85: 719.6 | M85: 2.16648
A86: 76 | B86: CGPOWER | C86: 18.8 | D86: 19.03 | E86: 18.27 | F86: 17.73 | G86: 16.97 | H86: 19.57 | I86: 20.33 | J86: 20.87 | K86: 19.8 | L86: 18.5 | M86: 12.12168
A87: 77 | B87: CRISIL | C87: 1316.45 | D87: 1326.57 | E87: 1290.13 | F87: 1263.82 | G87: 1227.38 | H87: 1352.88 | I87: 1389.32 | J87: 1415.63 | K87: 1363 | L87: 1300.25 | M87: 0.13545
A88: 78 | B88: CADILAHC | C88: 220.05 | D88: 223.63 | E88: 215.42 | F88: 210.78 | G88: 202.57 | H88: 228.27 | I88: 236.48 | J88: 241.12 | K88: 231.85 | L88: 219 | M88: 12.89608
A89: 79 | B89: CANFINHOME | C89: 388.85 | D89: 390.05 | E89: 385.30 | F89: 381.75 | G89: 377.00 | H89: 393.60 | I89: 398.35 | J89: 401.90 | K89: 394.8 | L89: 386.5 | M89: 3.717
A90: 80 | B90: CANBK | C90: 232.25 | D90: 235.28 | E90: 228.32 | F90: 224.38 | G90: 217.42 | H90: 239.22 | I90: 246.18 | J90: 250.12 | K90: 242.25 | L90: 231.35 | M90: 65.64458
A91: 81 | B91: CAPLIPOINT | C91: 402.05 | D91: 406.73 | E91: 396.57 | F91: 391.08 | G91: 380.92 | H91: 412.22 | I91: 422.38 | J91: 427.87 | K91: 416.9 | L91: 401.25 | M91: 0.13391
A92: 82 | B92: CARBORUNIV | C92: 317.7 | D92: 320.87 | E92: 309.83 | F92: 301.97 | G92: 290.93 | H92: 328.73 | I92: 339.77 | J92: 347.63 | K92: 331.9 | L92: 313 | M92: 0.23963
A93: 83 | B93: CASTROLIND | C93: 124.65 | D93: 125.63 | E93: 122.92 | F93: 121.18 | G93: 118.47 | H93: 127.37 | I93: 130.08 | J93: 131.82 | K93: 128.35 | L93: 123.9 | M93: 14.3598
A94: 84 | B94: CEATLTD | C94: 833.35 | D94: 833.72 | E94: 826.88 | F94: 820.42 | G94: 813.58 | H94: 840.18 | I94: 847.02 | J94: 853.48 | K94: 840.55 | L94: 827.25 | M94: 1.21925
A95: 85 | B95: CENTRALBK | C95: 17.7 | D95: 17.82 | E95: 17.48 | F95: 17.27 | G95: 16.93 | H95: 18.03 | I95: 18.37 | J95: 18.58 | K95: 18.15 | L95: 17.6 | M95: 3.2375
A96: 86 | B96: CDSL | C96: 192.3 | D96: 192.47 | E96: 190.33 | F96: 188.37 | G96: 186.23 | H96: 194.43 | I96: 196.57 | J96: 198.53 | K96: 194.6 | L96: 190.5 | M96: 4.01406
A97: 87 | B97: CENTURYPLY | C97: 123.65 | D97: 124.97 | E97: 121.18 | F97: 118.72 | G97: 114.93 | H97: 127.43 | I97: 131.22 | J97: 133.68 | K97: 128.75 | L97: 122.5 | M97: 0.69024
A98: 88 | B98: CERA | C98: 2643.25 | D98: 2631.75 | E98: 2518.50 | F98: 2393.75 | G98: 2280.50 | H98: 2756.50 | I98: 2869.75 | J98: 2994.50 | K98: 2745 | L98: 2507 | M98: 0.04376
A99: 89 | B99: CHAMBLFERT | C99: 148 | D99: 149.02 | E99: 144.78 | F99: 141.57 | G99: 137.33 | H99: 152.23 | I99: 156.47 | J99: 159.68 | K99: 153.25 | L99: 145.8 | M99: 0.79556
A100: 90 | B100: CHENNPETRO | C100: 196.05 | D100: 197.38 | E100: 193.27 | F100: 190.48 | G100: 186.37 | H100: 200.17 | I100: 204.28 | J100: 207.07 | K100: 201.5 | L100: 194.6 | M100: 3.85826
A101: 91 | B101: CHOLAHLDNG | C101: 454 | D101: 456.63 | E101: 447.37 | F101: 440.73 | G101: 431.47 | H101: 463.27 | I101: 472.53 | J101: 479.17 | K101: 465.9 | L101: 450 | M101: 1.08198
A102: 92 | B102: CHOLAFIN | C102: 243.4 | D102: 244.13 | E102: 237.37 | F102: 231.33 | G102: 224.57 | H102: 250.17 | I102: 256.93 | J102: 262.97 | K102: 250.9 | L102: 238.1 | M102: 40.00824
A103: 93 | B103: CIPLA | C103: 520 | D103: 523.80 | E103: 514.00 | F103: 508.00 | G103: 498.20 | H103: 529.80 | I103: 539.60 | J103: 545.60 | K103: 533.6 | L103: 517.8 | M103: 16.65158
A104: 94 | B104: CUB | C104: 194.7 | D104: 194.93 | E104: 193.37 | F104: 192.03 | G104: 190.47 | H104: 196.27 | I104: 197.83 | J104: 199.17 | K104: 196.5 | L104: 193.6 | M104: 9.33719
A105: 95 | B105: COALINDIA | C105: 199.55 | D105: 201.45 | E105: 196.10 | F105: 192.65 | G105: 187.30 | H105: 204.90 | I105: 210.25 | J105: 213.70 | K105: 206.8 | L105: 198 | M105: 105.27314
A106: 96 | B106: COCHINSHIP | C106: 360.35 | D106: 362.30 | E106: 357.10 | F106: 353.85 | G106: 348.65 | H106: 365.55 | I106: 370.75 | J106: 374.00 | K106: 367.5 | L106: 359.05 | M106: 0.95511
A107: 97 | B107: COFFEEDAY | C107: 153.4 | D107: 153.40 | E107: 153.40 | F107: 153.40 | G107: 153.40 | H107: 153.40 | I107: 153.40 | J107: 153.40 | K107: 153.4 | L107: 153.4 | M107: 1.2287
A108: 98 | B108: COLPAL | C108: 1168.75 | D108: 1172.18 | E108: 1156.57 | F108: 1144.38 | G108: 1128.77 | H108: 1184.37 | I108: 1199.98 | J108: 1212.17 | K108: 1187.8 | L108: 1160 | M108: 3.663
A109: 99 | B109: CONCOR | C109: 513.15 | D109: 513.25 | E109: 510.00 | F109: 506.85 | G109: 503.60 | H109: 516.40 | I109: 519.65 | J109: 522.80 | K109: 516.5 | L109: 510.1 | M109: 2.16924
A110: 100 | B110: COROMANDEL | C110: 362.65 | D110: 366.97 | E110: 354.68 | F110: 346.72 | G110: 334.43 | H110: 374.93 | I110: 387.22 | J110: 395.18 | K110: 379.25 | L110: 359 | M110: 1.5401
A111: 101 | B111: CORPBANK | C111: 23.05 | D111: 23.28 | E111: 22.77 | F111: 22.48 | G111: 21.97 | H111: 23.57 | I111: 24.08 | J111: 24.37 | K111: 23.8 | L111: 23 | M111: 1.34714
A112: 102 | B112: COX&KINGS | C112: 12.15 | D112: 12.15 | E112: 12.15 | F112: 12.15 | G112: 12.15 | H112: 12.15 | I112: 12.15 | J112: 12.15 | K112: 12.15 | L112: 12.15 | M112: 0.9545
A113: 103 | B113: CREDITACC | C113: 539.7 | D113: 538.73 | E113: 530.97 | F113: 522.23 | G113: 514.47 | H113: 547.47 | I113: 555.23 | J113: 563.97 | K113: 546.5 | L113: 530 | M113: 4.54932
A114: 104 | B114: CROMPTON | C114: 230.35 | D114: 230.47 | E114: 226.98 | F114: 223.62 | G114: 220.13 | H114: 233.83 | I114: 237.32 | J114: 240.68 | K114: 233.95 | L114: 227.1 | M114: 4.5284
A115: 105 | B115: CUMMINSIND | C115: 702.05 | D115: 710.07 | E115: 691.93 | F115: 681.82 | G115: 663.68 | H115: 720.18 | I115: 738.32 | J115: 748.43 | K115: 728.2 | L115: 699.95 | M115: 2.69161
A116: 106 | B116: CYIENT | C116: 448 | D116: 451.75 | E116: 428.55 | F116: 409.10 | G116: 385.90 | H116: 471.20 | I116: 494.40 | J116: 513.85 | K116: 474.95 | L116: 432.3 | M116: 4.64325
A117: 107 | B117: DBCORP | C117: 162.55 | D117: 162.87 | E117: 156.93 | F117: 151.32 | G117: 145.38 | H117: 168.48 | I117: 174.42 | J117: 180.03 | K117: 168.8 | L117: 157.25 | M117: 0.72046
A118: 108 | B118: DCBBANK | C118: 193.1 | D118: 194.03 | E118: 191.07 | F118: 189.03 | G118: 186.07 | H118: 196.07 | I118: 199.03 | J118: 201.07 | K118: 197 | L118: 192 | M118: 7.86366
A119: 109 | B119: DCMSHRIRAM | C119: 411.05 | D119: 419.78 | E119: 397.12 | F119: 383.18 | G119: 360.52 | H119: 433.72 | I119: 456.38 | J119: 470.32 | K119: 442.45 | L119: 405.85 | M119: 0.99718
A120: 110 | B120: DLF | C120: 177.75 | D120: 178.43 | E120: 174.47 | F120: 171.18 | G120: 167.22 | H120: 181.72 | I120: 185.68 | J120: 188.97 | K120: 182.4 | L120: 175.15 | M120: 158.21594
A121: 111 | B121: DABUR | C121: 422.95 | D121: 424.25 | E121: 419.25 | F121: 415.55 | G121: 410.55 | H121: 427.95 | I121: 432.95 | J121: 436.65 | K121: 429.25 | L121: 420.55 | M121: 15.87114
A122: 112 | B122: DEEPAKFERT | C122: 85.1 | D122: 85.85 | E122: 83.35 | F122: 81.60 | G122: 79.10 | H122: 87.60 | I122: 90.10 | J122: 91.85 | K122: 88.35 | L122: 84.1 | M122: 2.07833
A123: 113 | B123: DEEPAKNTR | C123: 275.55 | D123: 277.68 | E123: 271.87 | F123: 268.18 | G123: 262.37 | H123: 281.37 | I123: 287.18 | J123: 290.87 | K123: 283.5 | L123: 274 | M123: 0.70897
A124: 114 | B124: DELTACORP | C124: 143.75 | D124: 145.47 | E124: 141.28 | F124: 138.82 | G124: 134.63 | H124: 147.93 | I124: 152.12 | J124: 154.58 | K124: 149.65 | L124: 143 | M124: 9.47012
A125: 115 | B125: DHFL | C125: 49.95 | D125: 51.07 | E125: 47.43 | F125: 44.92 | G125: 41.28 | H125: 53.58 | I125: 57.22 | J125: 59.73 | K125: 54.7 | L125: 48.55 | M125: 267.51782
A126: 116 | B126: DBL | C126: 413.6 | D126: 416.87 | E126: 407.73 | F126: 401.87 | G126: 392.73 | H126: 422.73 | I126: 431.87 | J126: 437.73 | K126: 426 | L126: 411 | M126: 1.92124
A127: 117 | B127: DISHTV | C127: 28.4 | D127: 28.82 | E127: 27.53 | F127: 26.67 | G127: 25.38 | H127: 29.68 | I127: 30.97 | J127: 31.83 | K127: 30.1 | L127: 27.95 | M127: 247.20615
A128: 118 | B128: DCAL | C128: 209.5 | D128: 211.37 | E128: 205.53 | F128: 201.57 | G128: 195.73 | H128: 215.33 | I128: 221.17 | J128: 225.13 | K128: 217.2 | L128: 207.4 | M128: 0.89296
A129: 119 | B129: DIVISLAB | C129: 1658.45 | D129: 1657.15 | E129: 1641.30 | F129: 1624.15 | G129: 1608.30 | H129: 1674.30 | I129: 1690.15 | J129: 1707.30 | K129: 1673 | L129: 1640 | M129: 8.63878
A130: 120 | B130: DIXON | C130: 2043.1 | D130: 2064.37 | E130: 1988.73 | F130: 1934.37 | G130: 1858.73 | H130: 2118.73 | I130: 2194.37 | J130: 2248.73 | K130: 2140 | L130: 2010 | M130: 0.06498
A131: 121 | B131: LALPATHLAB | C131: 1083.65 | D131: 1093.62 | E131: 1067.23 | F131: 1050.82 | G131: 1024.43 | H131: 1110.03 | I131: 1136.42 | J131: 1152.83 | K131: 1120 | L131: 1077.2 | M131: 0.26759
A132: 122 | B132: DRREDDY | C132: 2560 | D132: 2600.87 | E132: 2508.23 | F132: 2456.47 | G132: 2363.83 | H132: 2652.63 | I132: 2745.27 | J132: 2797.03 | K132: 2693.5 | L132: 2549.1 | M132: 21.97242
A133: 123 | B133: EIDPARRY | C133: 140.55 | D133: 144.57 | E133: 132.18 | F133: 123.82 | G133: 111.43 | H133: 152.93 | I133: 165.32 | J133: 173.68 | K133: 156.95 | L133: 136.2 | M133: 4.67074
A134: 124 | B134: EIHOTEL | C134: 164.95 | D134: 164.73 | E134: 163.77 | F134: 162.58 | G134: 161.62 | H134: 165.92 | I134: 166.88 | J134: 168.07 | K134: 165.7 | L134: 163.55 | M134: 0.58763
A135: 125 | B135: EDELWEISS | C135: 142.65 | D135: 143.95 | E135: 139.20 | F135: 135.75 | G135: 131.00 | H135: 147.40 | I135: 152.15 | J135: 155.60 | K135: 148.7 | L135: 140.5 | M135: 19.04052
A136: 126 | B136: EICHERMOT | C136: 16163.55 | D136: 16299.27 | E136: 15873.53 | F136: 15583.52 | G136: 15157.78 | H136: 16589.28 | I136: 17015.02 | J136: 17305.03 | K136: 16725 | L136: 16009.25 | M136: 1.82198
A137: 127 | B137: ELGIEQUIP | C137: 248.95 | D137: 250.28 | E137: 246.57 | F137: 244.18 | G137: 240.47 | H137: 252.67 | I137: 256.38 | J137: 258.77 | K137: 254 | L137: 247.9 | M137: 0.22039
A138: 128 | B138: EMAMILTD | C138: 321.7 | D138: 323.48 | E138: 317.97 | F138: 314.23 | G138: 308.72 | H138: 327.22 | I138: 332.73 | J138: 336.47 | K138: 329 | L138: 319.75 | M138: 4.01374
A139: 129 | B139: ENDURANCE | C139: 873.1 | D139: 878.77 | E139: 847.53 | F139: 821.97 | G139: 790.73 | H139: 904.33 | I139: 935.57 | J139: 961.13 | K139: 910 | L139: 853.2 | M139: 0.62161
A140: 130 | B140: ENGINERSIN | C140: 95.2 | D140: 97.60 | E140: 92.25 | F140: 89.30 | G140: 83.95 | H140: 100.55 | I140: 105.90 | J140: 108.85 | K140: 102.95 | L140: 94.65 | M140: 29.9786
A141: 131 | B141: EQUITAS | C141: 108.25 | D141: 110.13 | E141: 105.92 | F141: 103.58 | G141: 99.37 | H141: 112.47 | I141: 116.68 | J141: 119.02 | K141: 114.35 | L141: 107.8 | M141: 20.06538
A142: 132 | B142: ERIS | C142: 401.1 | D142: 394.80 | E142: 384.35 | F142: 367.60 | G142: 357.15 | H142: 411.55 | I142: 422.00 | J142: 438.75 | K142: 405.25 | L142: 378.05 | M142: 1.22797
A143: 133 | B143: ESCORTS | C143: 459.9 | D143: 465.57 | E143: 451.33 | F143: 442.77 | G143: 428.53 | H143: 474.13 | I143: 488.37 | J143: 496.93 | K143: 479.8 | L143: 457 | M143: 27.00935
A144: 134 | B144: ESSELPACK | C144: 133.1 | D144: 133.13 | E144: 132.92 | F144: 132.73 | G144: 132.52 | H144: 133.32 | I144: 133.53 | J144: 133.72 | K144: 133.35 | L144: 132.95 | M144: 5.84479
A145: 135 | B145: EXIDEIND | C145: 181 | D145: 181.48 | E145: 179.37 | F145: 177.73 | G145: 175.62 | H145: 183.12 | I145: 185.23 | J145: 186.87 | K145: 183.6 | L145: 179.85 | M145: 12.54526
A146: 136 | B146: FDC | C146: 156.85 | D146: 157.32 | E146: 155.53 | F146: 154.22 | G146: 152.43 | H146: 158.63 | I146: 160.42 | J146: 161.73 | K146: 159.1 | L146: 156 | M146: 0.24508
A147: 137 | B147: FEDERALBNK | C147: 90.6 | D147: 91.90 | E147: 88.80 | F147: 87.00 | G147: 83.90 | H147: 93.70 | I147: 96.80 | J147: 98.60 | K147: 95 | L147: 90.1 | M147: 105.33782
A148: 138 | B148: FINEORG | C148: 1400.25 | D148: 1404.62 | E148: 1381.23 | F148: 1362.22 | G148: 1338.83 | H148: 1423.63 | I148: 1447.02 | J148: 1466.03 | K148: 1428 | L148: 1385.6 | M148: 0.05425
A149: 139 | B149: FINCABLES | C149: 374.4 | D149: 373.32 | E149: 369.63 | F149: 364.87 | G149: 361.18 | H149: 378.08 | I149: 381.77 | J149: 386.53 | K149: 377 | L149: 368.55 | M149: 0.41044
A150: 140 | B150: FINPIPE | C150: 511.45 | D150: 509.87 | E150: 504.73 | F150: 498.02 | G150: 492.88 | H150: 516.58 | I150: 521.72 | J150: 528.43 | K150: 515 | L150: 503.15 | M150: 0.21902
A151: 141 | B151: FSL | C151: 49.05 | D151: 49.58 | E151: 47.57 | F151: 46.08 | G151: 44.07 | H151: 51.07 | I151: 53.08 | J151: 54.57 | K151: 51.6 | L151: 48.1 | M151: 13.55408
A152: 142 | B152: FORTIS | C152: 123.95 | D152: 124.43 | E152: 122.62 | F152: 121.28 | G152: 119.47 | H152: 125.77 | I152: 127.58 | J152: 128.92 | K152: 126.25 | L152: 123.1 | M152: 6.21789
A153: 143 | B153: FCONSUMER | C153: 28.05 | D153: 28.40 | E153: 27.20 | F153: 26.35 | G153: 25.15 | H153: 29.25 | I153: 30.45 | J153: 31.30 | K153: 29.6 | L153: 27.55 | M153: 15.99149
A154: 144 | B154: FLFL | C154: 453.3 | D154: 456.48 | E154: 445.97 | F154: 438.63 | G154: 428.12 | H154: 463.82 | I154: 474.33 | J154: 481.67 | K154: 467 | L154: 449.15 | M154: 0.48752
A155: 145 | B155: FRETAIL | C155: 420 | D155: 420.60 | E155: 412.40 | F155: 404.80 | G155: 396.60 | H155: 428.20 | I155: 436.40 | J155: 444.00 | K155: 428.8 | L155: 413 | M155: 1.61428
A156: 146 | B156: GAIL | C156: 129.15 | D156: 130.10 | E156: 127.55 | F156: 125.95 | G156: 123.40 | H156: 131.70 | I156: 134.25 | J156: 135.85 | K156: 132.65 | L156: 128.5 | M156: 54.40008
A157: 147 | B157: GEPIL | C157: 775.7 | D157: 777.58 | E157: 763.32 | F157: 750.93 | G157: 736.67 | H157: 789.97 | I157: 804.23 | J157: 816.62 | K157: 791.85 | L157: 765.2 | M157: 0.07314
A158: 148 | B158: GET&D | C158: 165.05 | D158: 168.92 | E158: 159.43 | F158: 153.82 | G158: 144.33 | H158: 174.53 | I158: 184.02 | J158: 189.63 | K158: 178.4 | L158: 163.3 | M158: 0.48303
A159: 149 | B159: GHCL | C159: 211.25 | D159: 214.03 | E159: 206.07 | F159: 200.88 | G159: 192.92 | H159: 219.22 | I159: 227.18 | J159: 232.37 | K159: 222 | L159: 208.85 | M159: 2.25761
A160: 150 | B160: GMRINFRA | C160: 14.45 | D160: 14.52 | E160: 14.23 | F160: 14.02 | G160: 13.73 | H160: 14.73 | I160: 15.02 | J160: 15.23 | K160: 14.8 | L160: 14.3 | M160: 327.77643
A161: 151 | B161: GALAXYSURF | C161: 1202.75 | D161: 1198.48 | E161: 1177.32 | F161: 1151.88 | G161: 1130.72 | H161: 1223.92 | I161: 1245.08 | J161: 1270.52 | K161: 1219.65 | L161: 1173.05 | M161: 0.03872
A162: 152 | B162: GDL | C162: 107.35 | D162: 109.80 | E162: 104.55 | F162: 101.75 | G162: 96.50 | H162: 112.60 | I162: 117.85 | J162: 120.65 | K162: 115.05 | L162: 107 | M162: 0.44853
A163: 153 | B163: GAYAPROJ | C163: 144.2 | D163: 145.25 | E163: 140.60 | F163: 137.00 | G163: 132.35 | H163: 148.85 | I163: 153.50 | J163: 157.10 | K163: 149.9 | L163: 141.65 | M163: 0.09823
A164: 154 | B164: GICRE | C164: 199.05 | D164: 201.37 | E164: 194.68 | F164: 190.32 | G164: 183.63 | H164: 205.73 | I164: 212.42 | J164: 216.78 | K164: 208.05 | L164: 197 | M164: 0.79654
A165: 155 | B165: GILLETTE | C165: 7148.8 | D165: 7144.53 | E165: 7090.12 | F165: 7031.43 | G165: 6977.02 | H165: 7203.22 | I165: 7257.63 | J165: 7316.32 | K165: 7198.95 | L165: 7085.85 | M165: 0.01773
A166: 156 | B166: GSKCONS | C166: 7350.6 | D166: 7354.15 | E166: 7288.30 | F166: 7226.00 | G166: 7160.15 | H166: 7416.45 | I166: 7482.30 | J166: 7544.60 | K166: 7420 | L166: 7291.85 | M166: 0.04544
A167: 157 | B167: GLAXO | C167: 1197.75 | D167: 1197.23 | E167: 1190.52 | F167: 1183.28 | G167: 1176.57 | H167: 1204.47 | I167: 1211.18 | J167: 1218.42 | K167: 1203.95 | L167: 1190 | M167: 0.24197
A168: 158 | B168: GLENMARK | C168: 417.9 | D168: 421.82 | E168: 406.28 | F168: 394.67 | G168: 379.13 | H168: 433.43 | I168: 448.97 | J168: 460.58 | K168: 437.35 | L168: 410.2 | M168: 11.63187
A169: 159 | B169: GODFRYPHLP | C169: 700.35 | D169: 707.45 | E169: 684.90 | F169: 669.45 | G169: 646.90 | H169: 722.90 | I169: 745.45 | J169: 760.90 | K169: 730 | L169: 692 | M169: 0.5154
A170: 160 | B170: GODREJAGRO | C170: 436.3 | D170: 440.82 | E170: 429.63 | F170: 422.97 | G170: 411.78 | H170: 447.48 | I170: 458.67 | J170: 465.33 | K170: 452 | L170: 434.15 | M170: 0.3391
A171: 161 | B171: GODREJCP | C171: 598.4 | D171: 603.92 | E171: 588.33 | F171: 578.27 | G171: 562.68 | H171: 613.98 | I171: 629.57 | J171: 639.63 | K171: 619.5 | L171: 593.85 | M171: 6.43155
A172: 162 | B172: GODREJIND | C172: 452.25 | D172: 452.77 | E172: 447.53 | F172: 442.82 | G172: 437.58 | H172: 457.48 | I172: 462.72 | J172: 467.43 | K172: 458 | L172: 448.05 | M172: 0.79713
A173: 163 | B173: GODREJPROP | C173: 942.95 | D173: 945.38 | E173: 930.77 | F173: 918.58 | G173: 903.97 | H173: 957.57 | I173: 972.18 | J173: 984.37 | K173: 960 | L173: 933.2 | M173: 2.68034
A174: 164 | B174: GRANULES | C174: 90.1 | D174: 91.50 | E174: 85.60 | F174: 81.10 | G174: 75.20 | H174: 96.00 | I174: 101.90 | J174: 106.40 | K174: 97.4 | L174: 87 | M174: 54.53283
A175: 165 | B175: GRAPHITE | C175: 308.7 | D175: 314.90 | E175: 297.00 | F175: 285.30 | G175: 267.40 | H175: 326.60 | I175: 344.50 | J175: 356.20 | K175: 332.8 | L175: 303.2 | M175: 15.53221
A176: 166 | B176: GRASIM | C176: 762.55 | D176: 779.18 | E176: 741.37 | F176: 720.18 | G176: 682.37 | H176: 800.37 | I176: 838.18 | J176: 859.37 | K176: 817 | L176: 758 | M176: 52.10662
A177: 167 | B177: GESHIP | C177: 239.45 | D177: 240.27 | E177: 238.03 | F177: 236.62 | G177: 234.38 | H177: 241.68 | I177: 243.92 | J177: 245.33 | K177: 242.5 | L177: 238.85 | M177: 0.19372
A178: 168 | B178: GREAVESCOT | C178: 138.75 | D178: 140.60 | E178: 136.20 | F178: 133.65 | G178: 129.25 | H178: 143.15 | I178: 147.55 | J178: 150.10 | K178: 145 | L178: 138.05 | M178: 1.85066
A179: 169 | B179: GRINDWELL | C179: 549.65 | D179: 551.32 | E179: 537.63 | F179: 525.62 | G179: 511.93 | H179: 563.33 | I179: 577.02 | J179: 589.03 | K179: 565 | L179: 539.3 | M179: 0.85661
A180: 170 | B180: GRUH | C180: 249.05 | D180: 251.82 | E180: 243.48 | F180: 237.92 | G180: 229.58 | H180: 257.38 | I180: 265.72 | J180: 271.28 | K180: 260.15 | L180: 246.25 | M180: 4.34914
A181: 171 | B181: GUJALKALI | C181: 420.3 | D181: 423.75 | E181: 414.55 | F181: 408.80 | G181: 399.60 | H181: 429.50 | I181: 438.70 | J181: 444.45 | K181: 432.95 | L181: 418 | M181: 0.27242
A182: 172 | B182: GUJFLUORO
A183: 173 | B183: GUJGASLTD | C183: 163.65 | D183: 163.15 | E183: 160.75 | F183: 157.85 | G183: 155.45 | H183: 166.05 | I183: 168.45 | J183: 171.35 | K183: 165.55 | L183: 160.25 | M183: 2.43737
A184: 174 | B184: GMDCLTD | C184: 70.3 | D184: 70.42 | E184: 69.58 | F184: 68.87 | G184: 68.03 | H184: 71.13 | I184: 71.97 | J184: 72.68 | K184: 71.25 | L184: 69.7 | M184: 2.58345
A185: 175 | B185: GNFC | C185: 210.25 | D185: 210.98 | E185: 208.27 | F185: 206.28 | G185: 203.57 | H185: 212.97 | I185: 215.68 | J185: 217.67 | K185: 213.7 | L185: 209 | M185: 1.85606
A186: 176 | B186: GPPL | C186: 78.1 | D186: 78.40 | E186: 77.20 | F186: 76.30 | G186: 75.10 | H186: 79.30 | I186: 80.50 | J186: 81.40 | K186: 79.6 | L186: 77.5 | M186: 0.4606
A187: 177 | B187: GSFC | C187: 79.5 | D187: 80.17 | E187: 77.43 | F187: 75.37 | G187: 72.63 | H187: 82.23 | I187: 84.97 | J187: 87.03 | K187: 82.9 | L187: 78.1 | M187: 4.60417
A188: 178 | B188: GSPL | C188: 205.45 | D188: 205.68 | E188: 203.57 | F188: 201.68 | G188: 199.57 | H188: 207.57 | I188: 209.68 | J188: 211.57 | K188: 207.8 | L188: 203.8 | M188: 4.16604
A189: 179 | B189: GULFOILLUB | C189: 739 | D189: 721.68 | E189: 698.37 | F189: 657.73 | G189: 634.42 | H189: 762.32 | I189: 785.63 | J189: 826.27 | K189: 745 | L189: 681.05 | M189: 0.11471
A190: 180 | B190: HEG | C190: 981.3 | D190: 1007.07 | E190: 947.23 | F190: 913.17 | G190: 853.33 | H190: 1041.13 | I190: 1100.97 | J190: 1135.03 | K190: 1066.9 | L190: 973 | M190: 5.79172
A191: 181 | B191: HCLTECH | C191: 1023.6 | D191: 1020.58 | E191: 1013.82 | F191: 1004.03 | G191: 997.27 | H191: 1030.37 | I191: 1037.13 | J191: 1046.92 | K191: 1027.35 | L191: 1010.8 | M191: 10.67237
A192: 182 | B192: HDFCAMC | C192: 2135.2 | D192: 2161.53 | E192: 2085.67 | F192: 2036.13 | G192: 1960.27 | H192: 2211.07 | I192: 2286.93 | J192: 2336.47 | K192: 2237.4 | L192: 2112 | M192: 3.75621
A193: 183 | B193: HDFCBANK | C193: 2252.25 | D193: 2254.45 | E193: 2237.70 | F193: 2223.15 | G193: 2206.40 | H193: 2269.00 | I193: 2285.75 | J193: 2300.30 | K193: 2271.2 | L193: 2239.9 | M193: 25.98534
A194: 184 | B194: HDFCLIFE | C194: 483.1 | D194: 483.33 | E194: 474.87 | F194: 466.63 | G194: 458.17 | H194: 491.57 | I194: 500.03 | J194: 508.27 | K194: 491.8 | L194: 475.1 | M194: 22.7464
A195: 185 | B195: HATHWAY | C195: 20.55 | D195: 20.73 | E195: 20.02 | F195: 19.48 | G195: 18.77 | H195: 21.27 | I195: 21.98 | J195: 22.52 | K195: 21.45 | L195: 20.2 | M195: 0.56409
A196: 186 | B196: HATSUN | C196: 689.85 | D196: 691.10 | E196: 685.75 | F196: 681.65 | G196: 676.30 | H196: 695.20 | I196: 700.55 | J196: 704.65 | K196: 696.45 | L196: 687 | M196: 0.03572
A197: 187 | B197: HAVELLS | C197: 636.35 | D197: 642.07 | E197: 620.33 | F197: 604.32 | G197: 582.58 | H197: 658.08 | I197: 679.82 | J197: 695.83 | K197: 663.8 | L197: 626.05 | M197: 36.26875
A198: 188 | B198: HEIDELBERG | C198: 187.3 | D198: 191.73 | E198: 180.57 | F198: 173.83 | G198: 162.67 | H198: 198.47 | I198: 209.63 | J198: 216.37 | K198: 202.9 | L198: 185 | M198: 7.29371
A199: 189 | B199: HERITGFOOD | C199: 343.45 | D199: 344.73 | E199: 337.47 | F199: 331.48 | G199: 324.22 | H199: 350.72 | I199: 357.98 | J199: 363.97 | K199: 352 | L199: 338.75 | M199: 0.13452
A200: 190 | B200: HEROMOTOCO | C200: 2258.8 | D200: 2309.58 | E200: 2194.52 | F200: 2130.23 | G200: 2015.17 | H200: 2373.87 | I200: 2488.93 | J200: 2553.22 | K200: 2424.65 | L200: 2245.3 | M200: 15.82385
A201: 191 | B201: HEXAWARE | C201: 355.1 | D201: 356.25 | E201: 351.00 | F201: 346.90 | G201: 341.65 | H201: 360.35 | I201: 365.60 | J201: 369.70 | K201: 361.5 | L201: 352.15 | M201: 3.85206
A202: 192 | B202: HFCL | C202: 18.9 | D202: 19.13 | E202: 18.57 | F202: 18.23 | G202: 17.67 | H202: 19.47 | I202: 20.03 | J202: 20.37 | K202: 19.7 | L202: 18.8 | M202: 19.55272
A203: 193 | B203: HSCL | C203: 82.1 | D203: 82.50 | E203: 80.60 | F203: 79.10 | G203: 77.20 | H203: 84.00 | I203: 85.90 | J203: 87.40 | K203: 84.4 | L203: 81 | M203: 2.78939
A204: 194 | B204: HIMATSEIDE | C204: 134.25 | D204: 136.98 | E204: 128.27 | F204: 122.28 | G204: 113.57 | H204: 142.97 | I204: 151.68 | J204: 157.67 | K204: 145.7 | L204: 131 | M204: 0.99782
A205: 195 | B205: HINDALCO | C205: 190.1 | D205: 191.25 | E205: 187.70 | F205: 185.30 | G205: 181.75 | H205: 193.65 | I205: 197.20 | J205: 199.60 | K205: 194.8 | L205: 188.85 | M205: 60.33395
A206: 196 | B206: HAL | C206: 674.65 | D206: 674.87 | E206: 670.78 | F206: 666.92 | G206: 662.83 | H206: 678.73 | I206: 682.82 | J206: 686.68 | K206: 678.95 | L206: 671 | M206: 0.06375
... 320 more rows

Sheet Bulk Deals
E6: Back To Main Page
A7: Subject : | B7: BULK DEAL | D7: =Main!B10 -> 2019-07-31
A9: Date | B9: Scrip code | C9: Scrip Name | D9: Client Name | E9: Buy / Sell | F9: Quantity Traded | G9: Trade Price / Wt.Avg.trade price | H9: Exchange
A10: 2019-07-30 | B10: 540697 | C10: AMFL | D10: TEJAS HARSHADBHAI PATEL | E10: BUY | F10: 144,000 | G10: 9.03 | H10: BSE
A11: 2019-07-30 | B11: 540697 | C11: AMFL | D11: TEJAS HARSHADBHAI PATEL | E11: SELL | F11: 24,000 | G11: 9.14 | H11: BSE
A12: 2019-07-30 | B12: 540697 | C12: AMFL | D12: THAKKAR VIJAYKUMAR JAYANTILAL | E12: SELL | F12: 88,000 | G12: 9.14 | H12: BSE
A13: 2019-07-30 | B13: 537766 | C13: BCP | D13: ACHINTYA COMMODITIES PRIVATE LIMITED | E13: BUY | F13: 537,271 | G13: 39.37 | H13: BSE
A14: 2019-07-30 | B14: 537766 | C14: BCP | D14: ACHINTYA COMMODITIES PRIVATE LIMITED | E14: SELL | F14: 248,768 | G14: 38.95 | H14: BSE
A15: 2019-07-30 | B15: 537766 | C15: BCP | D15: VINCO METALS PVT. LTD. | E15: SELL | F15: 300,997 | G15: 37.71 | H15: BSE
A16: 2019-07-30 | B16: 526717 | C16: GOPALA | D16: ANJALI JAGDISH AHUJA | E16: SELL | F16: 69,239 | G16: 21.8 | H16: BSE
A17: 2019-07-30 | B17: 526717 | C17: GOPALA | D17: MADANMOHANRAI MAHENDRA SHAH | E17: BUY | F17: 70,100 | G17: 21.80 | H17: BSE
A18: 2019-07-30 | B18: 538765 | C18: JSHL | D18: JAWAHAR LAL AGARWAL | E18: SELL | F18: 100,000 | G18: 7.97 | H18: BSE
A19: 2019-07-30 | B19: 538765 | C19: JSHL | D19: VIVEK DWIVEDI | E19: BUY | F19: 70,000 | G19: 7.97 | H19: BSE
A20: 2019-07-30 | B20: 542628 | C20: NSL | D20: BHAVNA HITESH PATEL | E20: SELL | F20: 138,000 | G20: 27.18 | H20: BSE
A21: 2019-07-30 | B21: 539814 | C21: RADHEY | D21: RAJESH SHANTILAL VAKHARIA | E21: BUY | F21: 20,080 | G21: 18.32 | H21: BSE
A22: 2019-07-30 | B22: 539026 | C22: SSPNFIN | D22: DEVJEET CHAKRABORTY | E22: BUY | F22: 12,000 | G22: 46.25 | H22: BSE
A23: 2019-07-30 | B23: 539026 | C23: SSPNFIN | D23: CHANDU JAIN | E23: SELL | F23: 12,000 | G23: 46.5 | H23: BSE
A24: 2019-07-30 | B24: ARVIND | C24: Arvind Limited | D24: SHARE INDIA SECURITIES LIMITED | E24: BUY | F24: 1,403,116 | G24: 55.16 | H24: NSE
A25: 2019-07-30 | B25: ARVIND | C25: Arvind Limited | D25: TOWER RESEARCH CAPITAL MARKETS INDIA PRIVATE LIMITED | E25: BUY | F25: 2,069,400 | G25: 55.21 | H25: NSE
A26: 2019-07-30 | B26: DHFL | C26: Dewan Housing Fin Corp | D26: TOWER RESEARCH CAPITAL MARKETS INDIA PRIVATE LIMITED | E26: BUY | F26: 2,729,665 | G26: 52.61 | H26: NSE
A27: 2019-07-30 | B27: DHFL | C27: Dewan Housing Fin Corp | D27: DIVYA PORTFOLIO PRIVATE LIMITED | E27: BUY | F27: 2,116,252 | G27: 52.91 | H27: NSE
A28: 2019-07-30 | B28: JUBILANT | C28: JUBILANT LIFE SCIENCE LTD | D28: RARE ENTERPRISES | E28: BUY | F28: 2,013,626 | G28: 436.23 | H28: NSE
A29: 2019-07-30 | B29: JUBILANT | C29: JUBILANT LIFE SCIENCE LTD | D29: EAST BRIDGE CAPITAL MASTER FUND LIMITED | E29: BUY | F29: 1,250,000 | G29: 435 | H29: NSE
A30: 2019-07-30 | B30: RELCAPITAL | C30: Reliance Capital Limited | D30: TOWER RESEARCH CAPITAL MARKETS INDIA PRIVATE LIMITED | E30: BUY | F30: 2,357,646 | G30: 51.12 | H30: NSE
A31: 2019-07-30 | B31: RELINFRA | C31: Reliance Infrastructu Ltd | D31: TOWER RESEARCH CAPITAL MARKETS INDIA PRIVATE LIMITED | E31: BUY | F31: 3,683,732 | G31: 45.32 | H31: NSE
A32: 2019-07-30 | B32: SPENTEX | C32: Spentex Industries Ltd | D32: NARAYAN PRASAD JALAN | E32: BUY | F32: 891,247 | G32: 0.37 | H32: NSE
A33: 2019-07-30 | B33: SPENTEX | C33: Spentex Industries Ltd | D33: ASHISH JALAN | E33: BUY | F33: 910,000 | G33: 0.35 | H33: NSE
A34: 2019-07-30 | B34: STAR | C34: Strides Pharma ScienceLtd | D34: TOWER RESEARCH CAPITAL MARKETS INDIA PRIVATE LIMITED | E34: BUY | F34: 604,205 | G34: 384.44 | H34: NSE
A35: 2019-07-30 | B35: STAR | C35: Strides Pharma ScienceLtd | D35: CROSSLAND TRADING CO | E35: BUY | F35: 809,772 | G35: 383.69 | H35: NSE
A36: 2019-07-30 | B36: STAR | C36: Strides Pharma ScienceLtd | D36: ALPHAGREP SECURITIES PRIVATE LIMITED | E36: BUY | F36: 550,124 | G36: 384.13 | H36: NSE
A37: 2019-07-30 | B37: ARVIND | C37: Arvind Limited | D37: SHARE INDIA SECURITIES LIMITED | E37: SELL | F37: 1,403,116 | G37: 55.35 | H37: NSE
A38: 2019-07-30 | B38: ARVIND | C38: Arvind Limited | D38: TOWER RESEARCH CAPITAL MARKETS INDIA PRIVATE LIMITED | E38: SELL | F38: 2,069,400 | G38: 55.13 | H38: NSE
A39: 2019-07-30 | B39: AVG | C39: AVG Logistics Limited | D39: PATHIK GANDOTRA | E39: SELL | F39: 80,400 | G39: 67.71 | H39: NSE
A40: 2019-07-30 | B40: DHFL | C40: Dewan Housing Fin Corp | D40: DIVYA PORTFOLIO PRIVATE LIMITED | E40: SELL | F40: 2,116,252 | G40: 52.93 | H40: NSE
A41: 2019-07-30 | B41: DHFL | C41: Dewan Housing Fin Corp | D41: TOWER RESEARCH CAPITAL MARKETS INDIA PRIVATE LIMITED | E41: SELL | F41: 2,729,665 | G41: 52.68 | H41: NSE
A42: 2019-07-30 | B42: JUBILANT | C42: JUBILANT LIFE SCIENCE LTD | D42: RARE ENTERPRISES | E42: SELL | F42: 263,626 | G42: 435.75 | H42: NSE
A43: 2019-07-30 | B43: RELCAPITAL | C43: Reliance Capital Limited | D43: TOWER RESEARCH CAPITAL MARKETS INDIA PRIVATE LIMITED | E43: SELL | F43: 2,357,646 | G43: 51.27 | H43: NSE
A44: 2019-07-30 | B44: RELINFRA | C44: Reliance Infrastructu Ltd | D44: TOWER RESEARCH CAPITAL MARKETS INDIA PRIVATE LIMITED | E44: SELL | F44: 3,683,732 | G44: 45.59 | H44: NSE
A45: 2019-07-30 | B45: SPENTEX | C45: Spentex Industries Ltd | D45: CITIGROUP VENTURE CAPITAL INTERNATIONAL GROWTH PATNERSHIP MAURITIUS LTD | E45: SELL | F45: 2,018,570 | G45: 0.36 | H45: NSE
A46: 2019-07-30 | B46: STAR | C46: Strides Pharma ScienceLtd | D46: TOWER RESEARCH CAPITAL MARKETS INDIA PRIVATE LIMITED | E46: SELL | F46: 604205 | G46: 385.96 | H46: NSE
A47: 2019-07-30 | B47: STAR | C47: Strides Pharma ScienceLtd | D47: ALPHAGREP SECURITIES PRIVATE LIMITED | E47: SELL | F47: 550124 | G47: 384.21 | H47: NSE
A48: 2019-07-30 | B48: STAR | C48: Strides Pharma ScienceLtd | D48: CROSSLAND TRADING CO | E48: SELL | F48: 800391 | G48: 384.18 | H48: NSE

Sheet Call Tracker (Equity & F&O)
M5: Back To Main Page
A6: Retail Research Technical Calls & Fundamental Performance Report for the month of July-2019
M7: =Main!B10 -> 2019-07-31
B8: Positional Call
A9: Sr.no | B9: Date | D9: Company | E9: Rec | F9: Rec Price | G9: Stop Loss*** | H9: Call Closed At | I9: Target | J9: Remark | K9: Profit / Loss per Share | L9: Gain / Loss % | M9: Status | N9: Closed Date | O9: NSE Closed Price
A10: 1 | B10: 2019-05-27 | D10: TATAELXSI | E10: Buy | F10: 874 | G10: 818.7 | H10: 863 | I10: 970-990 | J10: Loss of Rs.11/- | K10: =H10-F10 -> -11 | L10: =K10/F10 -> -1.26% | M10: Unsuccessful | N10: 2019-07-16 | R10: R
A11: 2 | B11: 2019-05-28 | D11: BAJAJFINSV | E11: Sell | F11: 8175 | G11: 8625 | H11: 7925 | I11: 7300 | J11: Profit of Rs.250/- | K11: =F11-H11 -> 250 | L11: 3.06% | M11: Successful | N11: 2019-07-08 | R11: H
A12: 3 | B12: 2019-05-31 | D12: ITC | E12: Buy | F12: 286 | G12: 268.3 | H12: 265.5 | I12: 315-325 | J12: Loss of Rs.20.5/- | K12: =H12-F12 -> -20.5 | L12: =K12/F12 -> -7.17% | M12: Unsuccessful | N12: 2019-07-22 | R12: R
A13: 4 | B13: 2019-06-13 | D13: GODREJCP | E13: Buy | F13: 677.5 | G13: 644 | H13: 639.5 | I13: 740-750 | J13: Loss of Rs.38/- | K13: =H13-F13 -> -38 | L13: =K13/F13 -> -5.61% | M13: Unsuccessful | N13: 2019-07-10 | R13: H
A14: 5 | B14: 2019-06-17 | D14: SUNTV | E14: Buy | F14: 517 | G14: 476 | H14: 507 | I14: 575-585 | J14: Loss of Rs.10/- | K14: =H14-F14 -> -10 | L14: =K14/F14 -> -1.93% | M14: Unsuccessful | N14: 2019-07-08 | R14: R
A15: 6 | B15: 2019-06-21 | D15: AJANTPHARM | E15: Buy | F15: 955 | G15: 897.7 | H15: 894 | I15: 1060-1080 | J15: Loss of Rs.61/- | K15: =H15-F15 -> -61 | L15: =K15/F15 -> -6.39% | M15: Unsuccessful | N15: 2019-07-11 | R15: R
A16: 7 | B16: 2019-06-24 | D16: ESCORTS | E16: Buy | F16: 549.5 | G16: 518 | H16: 545.25 | I16: 600 | J16: Loss of Rs.4.25/- | K16: -4.25 | L16: -0.77% | M16: Neutral | N16: 2019-07-08 | R16: H
A17: 8 | B17: 2019-06-25 | D17: JUBLFOOD | E17: Buy | F17: 1262.5 | G17: 1158.3 | H17: 1145 | I17: 1450 -1470 | J17: Loss of Rs.117.50/- | K17: -117.5 | L17: -9.31% | M17: Unsuccessful | N17: 2019-07-24 | R17: R
A18: 9 | B18: 2019-07-04 | D18: TORNTPHARM | E18: Buy | F18: 1545 | G18: 1454 | H18: 1638 | I18: 1730-1750 | J18: Profit of Rs.93/- | K18: =H18-F18 -> 93 | L18: =K18/F18 -> 6.02% | M18: Successful | N18: 2019-07-26 | R18: R
A19: 10 | B19: 2019-07-10 | D19: TCS | E19: Buy | F19: 2110 | G19: 1973 | H19: 2177 | I19: 2295-2345 | J19: Part Profit of Rs.67/- | K19: 67 | L19: 3.18% | M19: Successful | N19: 2019-07-30 | O19: =VLOOKUP(D19,Sheet2!A6:M1645,6,0) -> 2179.15 | R19: H
A20: 11 | B20: 2019-07-11 | D20: BAJAJ-AUTO | E20: Buy | F20: 2670 | G20: 2527 | H20: 2527 | I20: 1920-1950 | J20: Loss of Rs.143/- | K20: =H20-F20 -> -143 | L20: =K20/F20 -> -5.36% | M20: Unsuccessful | N20: 2019-07-22 | R20: R
A21: 12 | B21: 2019-07-11 | D21: BERGEPAINT | E21: Buy | F21: 304 | G21: 288 | H21: 316.25 | I21: 330-340 | J21: Profit of Rs.12.25/- | K21: =H21-F21 -> 12.25 | L21: =K21/F21 -> 4.03% | M21: Successful | N21: 2019-07-24 | R21: H
A22: 13 | B22: 2019-07-12 | D22: ABFRL | E22: Buy | F22: 201 | G22: 189.3 | H22: 208.75 | I22: 222-226 | J22: Profit of Rs.7.75/- | K22: =H22-F22 -> 7.75 | L22: =K22/F22 -> 3.86% | M22: Successful | N22: 2019-07-12 | R22: R
A23: 14 | B23: 2019-07-12 | D23: LT | E23: Buy<> | F23: 1457 | G23: 1353 | I23: 1630-1680 | J23: Open | O23: =VLOOKUP(D23,Sheet2!A10:M1649,6,0) -> 1376.35 | R23: H
A24: 15 | B24: 2019-07-15 | D24: BIOCON | E24: Buy | F24: 251.5 | G24: 237 | H24: 262.25 | I24: 270 -280 | J24: Part Profit of Rs.10.75/- | K24: =H24-F24 -> 10.75 | L24: =K24/F24 -> 4.27% | M24: Successful | N24: 2019-07-17 | O24: =VLOOKUP(D24,Sheet2!A11:M1650,6,0) -> 234.1 | R24: H
A25: 16 | B25: 2019-07-16 | D25: ABFRL | E25: Buy | F25: 201-203 | G25: 189.3 | I25: 222-226 | J25: Open | O25: =VLOOKUP(D25,Sheet2!A12:M1651,6,0) -> 190 | R25: R
A26: 17 | B26: 2019-07-17 | D26: BANKINDIA | E26: Buy | F26: 84.5 | G26: 82 | H26: 80.5 | I26: 90 | J26: Loss of Rs.4/- | K26: =H26-F26 -> -4 | L26: =K26/F26 -> -4.73% | M26: Unsuccessful | N26: 2019-07-19 | R26: H
A27: 18 | B27: 2019-07-17 | D27: BHARTIARTL | E27: Buy | F27: 347-349 | G27: 322 | I27: 392 -396 | J27: Open | O27: =VLOOKUP(D27,Sheet2!A14:M1653,6,0) -> 345.75 | R27: R
A28: 19 | B28: 2019-07-18 | D28: NAVINFLUOR | E28: Buy | F28: 608-616 | G28: 570 | I28: 680 -700 | J28: Open | O28: =VLOOKUP(D28,Sheet2!A15:M1654,6,0) -> 601.65 | R28: H
A29: 20 | B29: 2019-07-19 | D29: ACC | E29: Buy | F29: 1615-1625 | G29: 1518 | I29: 1750-1800 | J29: Open | O29: =VLOOKUP(D29,Sheet2!A16:M1655,6,0) -> 1540.9 | R29: H
A30: 21 | B30: 2019-07-22 | D30: BAJFINANCE | E30: Buy | F30: 3290 | G30: 3140 | H30: 3115 | I30: 3500-3600 | J30: Loss of Rs.175/- | K30: =H30-F30 -> -175 | L30: =K30/F30 -> -5.32% | M30: Unsuccessful | N30: 2019-07-25 | R30: H
A31: 22 | B31: 2019-07-22 | D31: MOTHERSUMI | E31: Buy | F31: 109-111 | G31: 103 | I31: 121-123 | J31: Open | O31: =VLOOKUP(D31,Sheet2!A18:M1657,6,0) -> 103.6 | R31: R
A32: 23 | B32: 2019-07-26 | D32: M&M | E32: Buy | F32: 550-555 | G32: 530 | I32: 590-600 | J32: Open | O32: =VLOOKUP(D32,Sheet2!A19:M1658,6,0) -> 548.75 | R32: H
A33: 24 | B33: 2019-07-26 | D33: GLENMARK | E33: Buy | F33: 424-427 | G33: 395 | I33: 490-500 | J33: Open | O33: =VLOOKUP(D33,Sheet2!A20:M1659,6,0) -> 417.9 | R33: H
A35: CLBS = Closing Basis *** | F35: Reinitiated $
A36: Dividend adjusted <> | F36: Revised stoploss #
A37: Part book {}
B39: Momentum Call
A40: Sr.no | B40: Date | D40: Company | E40: Rec | F40: Rec Price | G40: Stop Loss | H40: Call Closed At | I40: Target | J40: Remark | K40: Profit / Loss per Share/Lot | L40: Gain / Loss % | M40: Gain / Loss per Lot | N40: Lot | O40: Status | P40: Closed Date
A41: 1 | B41: 2019-06-26 | D41: INDUSINDBK | E41: Buy | F41: 1437.5 | G41: 1395 | H41: 1475.5 | I41: 1480-1500 | J41: Profit of Rs.38 /- | K41: =H41-F41 -> 38 | L41: =K41/F41 -> 2.64% | O41: Successful | P41: 2019-07-03 | R41: H
A42: 2 | B42: 2019-06-26 | D42: HEROMOTOCO | E42: Buy | F42: 2590 | G42: 2490 | H42: 2530 | I42: 2750-2800 | J42: Loss of Rs.9.5 /- | K42: =H42-F42 -> -60 | L42: -2.32% | O42: Unsuccessful | P42: 2019-07-05 | R42: H
A43: 3 | B43: 2019-06-27 | D43: ASIANPAINT JUL FUT | E43: Buy | F43: 1372 | G43: 1352 | H43: 1352 | I43: 1400 -1410 | J43: Loss of Rs.20 /- | K43: =H43-F43 -> -20 | M43: =K43*N43 -> -12000 | N43: 600 | O43: Unsuccessful | P43: 2019-07-02 | R43: N
A44: 4 | B44: 2019-06-27 | D44: TITAN JULY FUT | E44: Sell | F44: 1331 | G44: 1350 | H44: 1322 | I44: 1290 | J44: Profit of Rs.9 /- | K44: =F44-H44 -> 9 | M44: 6750 | N44: 750 | O44: Successful | P44: 2019-07-02 | R44: H
A45: 5 | B45: 2019-06-27 | D45: COLPAL JUL FUT | E45: Buy | F45: 1137 | G45: 1120 | H45: 1149 | I45: 1170 | J45: Profit of Rs.12 /- | K45: =H45-F45 -> 12 | M45: 8400 | N45: 700 | O45: Successful | P45: 2019-07-02 | R45: N
A46: 6 | B46: 2019-06-28 | D46: CIPLA JULY FUT | E46: Buy | F46: 556 | G46: 545 | H46: 545 | I46: 575-580 | J46: Loss of Rs.11 /- | K46: =H46-F46 -> -11 | M46: -11000 | N46: 1000 | O46: Unsuccessful | P46: 2019-07-08 | R46: H
A47: 7 | B47: 2019-06-28 | D47: NIITTECH JUL FUT | E47: Sell | F47: 1326.5 | G47: 1345 | H47: 1318 | I47: 1290 | J47: Profit of Rs.8.5 /- | K47: =F47-H47 -> 8.5 | M47: 6375 | N47: 750 | O47: Successful | P47: 2019-07-05 | R47: R
A48: 8 | B48: 2019-06-28 | D48: POWERGRID JUL FUT | E48: Buy | F48: 206.25 | G48: 203 | H48: 208.5 | I48: 213 | J48: Profit of Rs.2.25 /- | K48: =H48-F48 -> 2.25 | M48: 9000 | N48: 4000 | O48: Successful | P48: 2019-07-01 | R48: N
A49: 9 | B49: 2019-06-28 | D49: LT JUL FUT | E49: Buy | F49: 1549 | G49: 1519 | H49: 1568 | I49: 1600 | J49: Profit of Rs.19 /- | K49: =H49-F49 -> 19 | M49: 7125 | N49: 375 | O49: Successful | P49: 2019-07-03 | R49: N
A50: 10 | B50: 2019-07-01 | D50: BATAINDIA JUL FUT | E50: Sell | F50: 1435 | G50: 1458.7 | H50: 1458.7 | I50: 1400 | J50: Loss of Rs.23.7 /- | K50: =F50-H50 -> -23.7 | M50: -13035 | N50: 550 | O50: Unsuccessful | P50: 2019-07-03 | R50: R
A51: 11 | B51: 2019-07-01 | D51: CADILAHC JUL FUT | E51: Buy | F51: 242.5 | G51: 235 | H51: 235 | I51: 260 | J51: Loss of Rs.7.5 /- | K51: =H51-F51 -> -7.5 | M51: -12000 | N51: 1600 | O51: Unsuccessful | P51: 2019-07-02 | R51: H
A52: 12 | B52: 2019-07-01 | D52: MCDOWELL-N | E52: Sell | F52: 592.5 | G52: 610 | H52: 580 | I52: 565-560 | J52: Profit of Rs.12.5 /- | K52: =F52-H52 -> 12.5 | L52: =K52/F52 -> 2.11% | O52: Successful | P52: 2019-07-03 | R52: H
A53: 13 | B53: 2019-07-02 | D53: HDFC JULY FUT | E53: Sell | F53: 2239 | G53: 2262 | H53: 2259 | I53: 2200 | J53: Loss of Rs.20/- | K53: =F53-H53 -> -20 | M53: =K53*N53 -> -10000 | N53: 500 | O53: Unsuccessful | P53: 2019-07-02 | R53: H
A54: 14 | B54: 2019-07-02 | D54: BHARTIARTL JUL FUT | E54: Buy | F54: 351 | G54: 344.3 | H54: 355.5 | I54: 362-365 | J54: Profit of Rs.4.5 /- | K54: =H54-F54 -> 4.5 | M54: =K54*N54 -> 8329.5 | N54: 1851 | O54: Successful | P54: 2019-07-02 | R54: R
A55: 15 | B55: 2019-07-02 | D55: TVSMOTOR JUL FUT | E55: Sell | F55: 429 | G55: 441 | H55: 429 | I55: 410 | J55: Neutral | K55: =H55-F55 -> 0 | M55: =K55*N55 -> 0 | N55: 1100 | O55: Neutral | P55: 2019-07-05 | R55: N
A56: 16 | B56: 2019-07-02 | D56: RECLTD | E56: Sell | F56: 163.5 | G56: 168.2 | H56: 166.5 | I56: 156-154 | J56: Loss of Rs.3/- | K56: =F56-H56 -> -3 | L56: =K56/F56 -> -1.83% | O56: Unsuccessful | P56: 2019-07-03 | R56: R
A57: 17 | B57: 2019-07-02 | D57: TITAN JUL FUT | E57: Sell | F57: 1333.5 | G57: 1353 | H57: 1324.5 | I57: 1300-1290 | J57: Profit of Rs.9 /- | K57: =F57-H57 -> 9 | M57: =K57*N57 -> 6750 | N57: 750 | O57: Successful | P57: 2019-07-03 | R57: H
A58: 18 | B58: 2019-07-02 | D58: RAYMOND JUL FUT | E58: Buy | F58: 745 | G58: 730 | H58: 754.5 | I58: 765-770 | J58: Profit of Rs.9.5 /- | K58: =H58-F58 -> 9.5 | M58: =K58*N58 -> 7600 | N58: 800 | O58: Successful | P58: 2019-07-03 | R58: N
A59: 19 | B59: 2019-07-03 | D59: IGL | E59: Buy | F59: 307.5 | G59: 298 | H59: 298 | I59: 325-339 | J59: Loss of Rs.9.5 /- | K59: =H59-F59 -> -9.5 | L59: =K59/F59 -> -3.09% | O59: Unsuccessful | P59: 2019-07-05 | R59: H
A60: 20 | B60: 2019-07-03 | D60: SUNPHARMA | E60: Buy | F60: 395.5 | G60: 379 | H60: 385.5 | I60: 420-425 | J60: Loss of Rs.10 /- | K60: =H60-F60 -> -10 | L60: =K60/F60 -> -2.53% | O60: Unsuccessful | P60: 2019-07-05 | R60: H
A61: 21 | B61: 2019-07-03 | D61: BANKBARODA | E61: Buy | F61: 121.5 | G61: 118 | H61: 124.1 | I61: 128 | J61: Profit of Rs.2.6 /- | K61: =H61-F61 -> 2.6 | L61: =K61/F61 -> 2.14% | O61: Successful | P61: 2019-07-03 | R61: H
A62: 22 | B62: 2019-07-03 | D62: M&MFIN JUL FUT | E62: Buy | F62: 387.5 | G62: 379 | H62: 394 | I62: 408 | J62: Profit of Rs.6.5 /- | K62: =H62-F62 -> 6.5 | M62: =K62*N62 -> 8125 | N62: 1250 | O62: Successful | P62: 2019-07-04 | R62: H
A63: 23 | B63: 2019-07-04 | D63: UPL JUL FUT | E63: Sell | F63: 667 | G63: 681 | H63: 681 | I63: 645 | J63: Loss of Rs.14/- | K63: =F63-H63 -> -14 | M63: =K63*N63 -> -12600 | N63: 900 | O63: Unsuccessful | P63: 2019-07-04 | R63: R
A64: 24 | B64: 2019-07-04 | D64: INDUSINDBK JUL FUT | E64: Buy | F64: 1497.5 | G64: 1467 | H64: 1517.5 | I64: 1550-1560 | J64: Profit of Rs.20 /- | K64: =H64-F64 -> 20 | M64: =K64*N64 -> 8000 | N64: 400 | O64: Successful | P64: 2019-07-05 | R64: N
A65: 25 | B65: 2019-07-05 | D65: BERGEPAINT | E65: Buy | F65: 314 | G65: 304 | H65: 304 | I65: 330-333 | J65: Loss of Rs.10/- | K65: =H65-F65 -> -10 | L65: =K65/F65 -> -3.18% | O65: Unsuccessful | P65: 2019-07-08 | R65: H
A66: 26 | B66: 2019-07-05 | D66: WIPRO JULY FUT | E66: Sell | F66: 278 | G66: 282 | H66: 274.75 | I66: 270 | J66: Profit of Rs.3.25/- | K66: =F66-H66 -> 3.25 | M66: =K66*N66 -> 10400 | N66: 3200 | O66: Successful | P66: 2019-07-05 | R66: H
A67: 27 | B67: 2019-07-05 | D67: MUTHOOTFIN JUL FUT | E67: Buy | F67: 635 | G67: 625 | H67: 629 | I67: 655 | J67: Loss of Rs.6 /- | K67: =H67-F67 -> -6 | M67: -9000 | N67: 1500 | O67: Unsuccessful | P67: 2019-07-05 | R67: N
A68: 28 | B68: 2019-07-05 | D68: EXIDEIND JUL FUT | E68: Buy | F68: 204 | G68: 199.5 | H68: 199.5 | I68: 215 | J68: Loss of Rs.4.5 /- | K68: -4.5 | M68: -10800 | N68: 2400 | O68: Unsuccessful | P68: 2019-07-08 | R68: N
A69: 29 | B69: 2019-07-05 | D69: TVSMOTOR JUL FUT | E69: Buy | F69: 429 | G69: 417.3 | H69: 417.3 | I69: 450 | J69: Loss of Rs.11.7/- | K69: -11.7 | M69: -12870 | N69: 1100 | O69: Unsuccessful | P69: 2019-07-08 | R69: R
A70: 30 | B70: 2019-07-08 | D70: CANBK JUL FUT | E70: Buy | F70: 289 | G70: 284 | H70: 284 | I70: 300 | J70: Loss of Rs.5 /- | K70: -5 | M70: -10000 | N70: 2000 | O70: Unsuccessful | P70: 2019-07-08 | R70: H
A71: 31 | B71: 2019-07-08 | D71: KOTAKBANK JUL FUT | E71: Buy | F71: 1500 | G71: 1470 | H71: 1470 | I71: 1550-1560 | J71: Loss of Rs.30 /- | K71: -30 | M71: -12000 | N71: 400 | O71: Unsuccessful | P71: 2019-07-09 | R71: H
A72: 32 | B72: 2019-07-09 | D72: RELIANCE | E72: Buy | F72: 1255 | G72: 1218 | H72: 1276 | I72: 1320-1330 | J72: Profit of Rs.21/- | K72: 21 | L72: =K72/F72 -> 1.67% | O72: Successful | P72: 2019-07-09 | R72: H
A73: 33 | B73: 2019-07-09 | D73: NIFTY JUL FUT | E73: Buy | F73: 11525 | G73: 11470 | H73: 11575 | I73: 11600 | J73: Profit of Rs.50/- | K73: 50 | M73: =K73*N73 -> 3750 | N73: 75 | O73: Successful | P73: 2019-07-09 | R73: R
A74: 34 | B74: 2019-07-09 | D74: M&MFIN | E74: Buy | F74: 390.5 | G74: 378 | H74: 379 | I74: 410-415 | J74: Loss of Rs.11.50/- | K74: =H74-F74 -> -11.5 | L74: =K74/F74 -> -2.94% | O74: Unsuccessful | P74: 2019-07-11 | R74: H
A75: 35 | B75: 2019-07-09 | D75: RBLBANK JUL FUT | E75: Buy | F75: 628 | G75: 618 | H75: 635 | I75: 645-650 | J75: Profit of Rs.7/- | K75: =H75-F75 -> 7 | M75: =K75*N75 -> 8400 | N75: 1200 | O75: Successful | P75: 2019-07-10 | R75: N
A76: 36 | B76: 2019-07-09 | D76: BANKNIFTY JUL FUT | E76: Buy | F76: 30560 | G76: 30440 | H76: 30670 | I76: 30750-30800 | J76: Profit of Rs.110/- | K76: =H76-F76 -> 110 | M76: =K76*N76 -> 2200 | N76: 20 | O76: Successful | P76: 2019-07-09 | R76: R
A77: 37 | B77: 2019-07-10 | D77: AMARAJABAT JUL FUT | E77: Buy | F77: 637 | G77: 620 | H77: 646.5 | I77: 670 | J77: Profit of Rs.9.50/- | K77: =H77-F77 -> 9.5 | M77: =K77*N77 -> 6650 | N77: 700 | O77: Successful | P77: 2019-07-11 | R77: N
A78: 38 | B78: 2019-07-10 | D78: CIPLA | E78: Buy | F78: 550 | G78: 535 | H78: 562 | I78: 575-580 | J78: Profit of Rs.12/- | K78: =H78-F78 -> 12 | L78: =K78/F78 -> 2.18% | O78: Successful | P78: 2019-07-12 | R78: H
A79: 39 | B79: 2019-07-10 | D79: BANKINDIA | E79: Buy | F79: 85.4 | G79: 83.5 | H79: 87.1 | I79: 90-92 | J79: Profit of Rs.1.70/- | K79: =H79-F79 -> 1.7 | L79: 1.99% | O79: Successful | P79: 2019-07-11 | R79: H
A80: 40 | B80: 2019-07-10 | D80: COLPAL JUL FUT | E80: Buy | F80: 1156.5 | G80: 1139 | H80: 1140 | I80: 1180-1190 | J80: Loss of Rs.16.50 /- | K80: =H80-F80 -> -16.5 | M80: =K80*N80 -> -11550 | N80: 700 | O80: Unsuccessful | P80: 2019-07-11 | R80: N
A81: 41 | B81: 2019-07-10 | D81: APOLLOHOSP | E81: Buy | F81: 1312.5 | G81: 1277 | H81: 1348.5 | I81: 1370-1380 | J81: Profit of Rs.36- | K81: 36 | L81: 2.74% | O81: Successful | P81: 2019-07-12 | R81: R
A82: 42 | B82: 2019-07-10 | D82: NIFTY JUL FUT | E82: Buy | F82: 11492.5 | G82: 11445 | H82: 11555 | I82: 11570-11590 | J82: Profit of Rs.62.50/- | K82: =H82-F82 -> 62.5 | M82: =K82*N82 -> 4687.5 | N82: 75 | O82: Successful | P82: 2019-07-11 | R82: R
A83: 43 | B83: 2019-07-11 | D83: HINDUNILVR | E83: Buy | F83: 1710 | G83: 1645 | H83: 1736 | I83: 1800 | J83: Profit of Rs.26/- | K83: =H83-F83 -> 26 | L83: =K83/F83 -> 1.52% | O83: Successful | P83: 2019-07-11 | R83: H
A84: 44 | B84: 2019-07-11 | D84: EXIDEIND | E84: Buy | F84: 201.5 | G84: 195 | H84: 204.75 | I84: 210-212 | J84: Profit of Rs.3.25/- | K84: 3.25 | L84: 1.61% | O84: Successful | P84: 2019-07-11 | R84: H
A85: 45 | B85: 2019-07-12 | D85: BATAINDIA JUL FUT | E85: Buy | F85: 1337.5 | G85: 1315 | H85: 1353 | I85: 1375 | J85: Profit of Rs.15.5/- | K85: 15.5 | M85: =K85*N85 -> 8525 | N85: 550 | O85: Successful | P85: 2019-07-12 | R85: N
A86: 46 | B86: 2019-07-12 | D86: POWERGRID JUL FUT | E86: Buy | F86: 206.75 | G86: 203.75 | H86: 208.75 | I86: 212 -213 | J86: Profit of Rs.2/- | K86: 2 | M86: =K86*N86 -> 8000 | N86: 4000 | O86: Successful | P86: 2019-07-16 | R86: N
A87: 47 | B87: 2019-07-12 | D87: RBLBANK JUL FUT | E87: Buy | F87: 637 | G87: 627 | H87: 627 | I87: 660 | J87: Loss of Rs.10 /- | K87: -10 | M87: =K87*N87 -> -12000 | N87: 1200 | O87: Unsuccessful | P87: 2019-07-15 | R87: N
A88: 48 | B88: 2019-07-15 | D88: TVSMOTORS | E88: Buy | F88: 430.5 | G88: 417 | H88: 417 | I88: 450 | J88: Loss of Rs.13.5 /- | K88: =H88-F88 -> -13.5 | L88: =K88/F88 -> -3.14% | O88: Unsuccessful | P88: 2019-07-18 | R88: H
A89: 49 | B89: 2019-07-15 | D89: NIFTY JUL FUT | E89: Buy | F89: 11525 | G89: 11470 | H89: 11565 | I89: 11600 | J89: Profit of Rs.40/- | K89: =H89-F89 -> 40 | M89: =K89*N89 -> 3000 | N89: 75 | O89: Successful | P89: 2019-07-15 | R89: R
A90: 50 | B90: 2019-07-15 | D90: APOLLOHOSP | E90: Sell | F90: 1399 | G90: 1430 | H90: 1382 | I90: 1360-1350 | J90: Profit of Rs.17/- | K90: =F90-H90 -> 17 | L90: =K90/F90 -> 1.22% | O90: Successful | P90: 2019-07-15 | R90: H
A91: 51 | B91: 2019-07-15 | D91: AMBUJACEM JUL FUT | E91: Sell | F91: 219.5 | G91: 225.3 | H91: 216.25 | I91: 212-210 | J91: Profit of Rs.3.25/- | K91: =F91-H91 -> 3.25 | M91: =K91*N91 -> 8125 | N91: 2500 | O91: Successful | P91: 2019-07-18 | R91: R
A92: 52 | B92: 2019-07-16 | D92: NTPC JUL FUT | E92: Sell | F92: 128.5 | G92: 131.5 | H92: 131 | I92: 123-122 | J92: Loss of Rs.2.5 /- | K92: =F92-H92 -> -2.5 | M92: -12000 | N92: 4800 | O92: Unsuccessful | P92: 2019-07-17 | R92: N
A93: 53 | B93: 2019-07-16 | D93: M&M JUL FUT | E93: Buy | F93: 616 | G93: 605 | H93: 605 | I93: 640 | J93: Loss of Rs.11 /- | K93: =H93-F93 -> -11 | M93: -11000 | N93: 1000 | O93: Unsuccessful | P93: 2019-07-18 | R93: H
A94: 54 | B94: 2019-07-16 | D94: ACC JUL FUT | E94: Sell | F94: 1597 | G94: 1625 | H94: 1580.5 | I94: 1550 | J94: Profit of Rs.16.5/- | K94: =F94-H94 -> 16.5 | M94: 6600 | N94: 400 | O94: Successful | P94: 2019-07-18 | R94: H
A95: 55 | B95: 2019-07-16 | D95: INDUSINDBK JUL FUT | E95: Buy | F95: 1485.5 | G95: 1457 | H95: 1505.5 | I95: 1540 -1550 | J95: Profit of Rs.20/- | K95: =H95-F95 -> 20 | M95: 8000 | N95: 400 | O95: Successful | P95: 2019-07-17 | R95: N
A96: 56 | B96: 2019-07-16 | D96: NIFTY JUL FUT | E96: Sell | F96: 11655 | G96: 11740 | H96: 11635 | I96: 11500 | J96: Profit of Rs.20/- | K96: =F96-H96 -> 20 | M96: 1500 | N96: 75 | O96: Successful | P96: 2019-07-18 | R96: R
A97: 57 | B97: 2019-07-17 | D97: CIPLA | E97: Buy | F97: 549 | G97: 535 | H97: 557.5 | I97: 575-580 | J97: Profit of Rs.8.5/- | K97: =H97-F97 -> 8.5 | L97: =K97/F97 -> 1.55% | O97: Successful | P97: 2019-07-17 | R97: H
A98: 58 | B98: 2019-07-17 | D98: AXISBANK | E98: Buy | F98: 758.5 | G98: 738 | H98: 734 | I98: 790-800 | J98: Loss of Rs.24.5 /- | K98: -24.5 | L98: -3.23% | O98: Unsuccessful | P98: 2019-07-19 | R98: H
A99: 59 | B99: 2019-07-17 | D99: IGL | E99: Sell | F99: 319.5 | G99: 328 | H99: 318 | I99: 310 -305 | J99: Profit of Rs.1.5/- | K99: =F99-H99 -> 1.5 | L99: 0.47% | O99: Neutral | P99: 2019-07-22 | R99: H
A100: 60 | B100: 2019-07-17 | D100: RAYMOND JUL FUT | E100: Buy | F100: 701 | G100: 686 | H100: 686 | I100: 730 | J100: Loss of Rs.15 /- | K100: =H100-F100 -> -15 | M100: =K100*N100 -> -12000 | N100: 800 | O100: Unsuccessful | P100: 2019-07-19 | R100: N
A101: 61 | B101: 2019-07-18 | D101: LICHSGFIN | E101: Buy | F101: 541.5 | G101: 524.3 | H101: 524.3 | I101: 570-575 | J101: Loss of Rs.17.2 /- | K101: -17.2 | L101: =K101/F101 -> -3.18% | O101: Unsuccessful | P101: 2019-07-19 | R101: R
A102: 62 | B102: 2019-07-18 | D102: APOLLOHOSP JUL FUT | E102: Buy | F102: 1393 | G102: 1367 | H102: 1373 | I102: 1430-1440 | J102: Loss of Rs.20 /- | K102: =H102-F102 -> -20 | M102: =K102*N102 -> -10000 | N102: 500 | O102: Unsuccessful | P102: 2019-07-19 | R102: N
A103: 63 | B103: 2019-07-18 | D103: POWERGRID JUL FUT | E103: Buy | F103: 206.25 | G103: 203.25 | H103: 208.25 | I103: 212-213 | J103: Profit of Rs.2/- | K103: =H103-F103 -> 2 | M103: =K103*N103 -> 8000 | N103: 4000 | O103: Successful | P103: 2019-07-19 | R103: N
A104: 64 | B104: 2019-07-19 | D104: MCDOWELL-N | E104: Sell | F104: 602 | G104: 618 | H104: 591 | I104: 570 | J104: Profit of Rs.11/- | K104: =F104-H104 -> 11 | L104: =K104/F104 -> 1.83% | O104: Successful | P104: 2019-07-19 | R104: R
A105: 65 | B105: 2019-07-19 | D105: AMBUJACEM JUL FUT | E105: Buy | F105: 219.5 | G105: 214 | H105: 215 | I105: 230 | J105: Loss of Rs.4.5 /- | K105: =H105-F105 -> -4.5 | M105: =K105*N105 -> -11250 | N105: 2500 | O105: Unsuccessful | P105: 2019-07-19 | R105: N
A106: 66 | B106: 2019-07-19 | D106: NIFTY JUL FUT | E106: Buy | F106: 11532.5 | G106: 11487 | H106: 11487 | I106: 11600 | J106: Loss of Rs.45.5 /- | K106: =H106-F106 -> -45.5 | M106: =K106*N106 -> -3412.5 | N106: 75 | O106: Unsuccessful | P106: 2019-07-19 | R106: R
A107: 67 | B107: 2019-07-22 | D107: VEDL JUL FUT | E107: Sell | F107: 165 | G107: 169 | H107: 168.5 | I107: 155 | J107: Loss of Rs.3.5 /- | K107: 3.5 | M107: =K107*N107 -> 10500 | N107: 3000 | O107: Unsuccessful | P107: 2019-07-22 | R107: N
A108: 68 | B108: 2019-07-22 | D108: AXISBANK | E108: Buy | F108: 732 | G108: 715 | H108: 712.5 | I108: 755-765 | J108: Loss of Rs.19.50/- | K108: -19.5 | L108: =K108/F108 -> -2.66% | O108: Unsuccessful | P108: 2019-07-24 | R108: H
A109: 69 | B109: 2019-07-22 | D109: BANKINDIA | E109: Buy | F109: 80.5 | G109: 78 | H109: 78 | I109: 84-85 | J109: Loss of Rs.2.50/- | K109: =H109-F109 -> -2.5 | L109: =K109/F109 -> -3.11% | O109: Unsuccessful | P109: 2019-07-24 | R109: H
A110: 70 | B110: 2019-07-22 | D110: RAYMOND JUL FUT | E110: Buy | F110: 681 | G110: 666 | H110: 666 | I110: 700 | J110: Loss of Rs.15/- | K110: =H110-F110 -> -15 | M110: =K110*N110 -> -12000 | N110: 800 | O110: Unsuccessful | P110: 2019-07-23 | R110: R
A111: 71 | B111: 2019-07-22 | D111: POWERGRID JUL FUT | E111: Buy | F111: 204.25 | G111: 201.25 | H111: 206.15 | I111: 211 | J111: Profit of Rs.1.90/- | K111: =H111-F111 -> 1.9 | M111: =K111*N111 -> 7600 | N111: 4000 | O111: Successful | P111: 2019-07-23 | R111: N
A112: 72 | B112: 2019-07-23 | D112: MFSL AUG FUT | E112: Buy | F112: 408 | G112: 397 | H112: 414.5 | I112: 430 | J112: Profit of Rs.6.50/- | K112: =H112-F112 -> 6.5 | M112: =K112*N112 -> 7800 | N112: 1200 | O112: Successful | P112: 2019-07-24 | R112: N
A113: 73 | B113: 2019-07-24 | D113: IGL | E113: Sell | F113: 322.5 | G113: 331 | H113: 318.5 | I113: 310-305 | J113: Profit of Rs.4/- | K113: =F113-H113 -> 4 | L113: =K113/F113 -> 1.24% | O113: Successful | P113: 2019-07-24 | R113: H
A114: 74 | B114: 2019-07-24 | D114: NIFTY JUL FUT | E114: Buy | F114: 11235 | G114: 11177 | H114: 11277.5 | I114: 11280-11300 | J114: Profit of Rs.42.50/- | K114: =H114-F114 -> 42.5 | M114: =K114*N114 -> 3187.5 | N114: 75 | O114: Successful | P114: 2019-07-24 | R114: R
A115: 75 | B115: 2019-07-25 | D115: RELIANCE AUG FUT | E115: Buy | F115: 1241.5 | G115: 1218 | H115: 1218 | I115: 1275-1280 | J115: Loss of Rs.23.50/- | K115: -23.5 | M115: -11750 | N115: 500 | O115: Unsuccessful | P115: 2019-07-26 | R115: R
A116: 76 | B116: 2019-07-25 | D116: AMARAJABAT AUG FUT | E116: Buy | F116: 630 | G116: 613 | H116: 641.5 | I116: 650-660 | J116: Profit of Rs.11.50/- | K116: =H116-F116 -> 11.5 | M116: =K116*N116 -> 8050 | N116: 700 | O116: Successful | P116: 2019-07-26 | R116: N
A117: 77 | B117: 2019-07-26 | D117: AMBUJACEM AUG FUT | E117: Buy | F117: 212.5 | G117: 206 | H117: 207.5 | I117: 222-224 | J117: Loss of Rs.5/- | K117: -5 | M117: -12500 | N117: 2500 | O117: Unsuccessful | P117: 2019-07-29 | R117: N
A118: 78 | B118: 2019-07-26 | D118: NIFTY AUG FUT | E118: Buy | F118: 11275 | G118: 11220 | H118: 11325 | I118: 11370-11400 | J118: Profit of Rs.50/- | K118: =H118-F118 -> 50 | M118: =K118*N118 -> 3750 | N118: 75 | O118: Successful | P118: 2019-07-26 | R118: R
A119: 79 | B119: 2019-07-26 | D119: SBIN | E119: Buy | F119: 343 | G119: 334 | H119: 333.5 | I119: 355-360 | J119: Loss of Rs.9.50/- | K119: -9.5 | L119: =K119/F119 -> -2.77% | O119: Unsuccessful | P119: 2019-07-30 | R119: H
A120: 80 | B120: 2019-07-26 | D120: BAJFINANCE AUG FUT | E120: Sell | F120: 3230 | G120: 3277.7 | H120: 3277.7 | I120: 3120-3100 | J120: Loss of Rs.47.70/- | K120: =F120-H120 -> -47.7 | M120: =K120*N120 -> -11925 | N120: 250 | O120: Unsuccessful | P120: 2019-07-26 | R120: R
A121: 81 | B121: 2019-07-26 | D121: KOTAKBANK AUG FUT | E121: Buy | F121: 1494 | G121: 1463 | H121: 1513.5 | I121: 1540-1550 | J121: Profit of Rs.19.5/- | K121: =H121-F121 -> 19.5 | M121: 7800 | N121: 400 | O121: Successful | P121: 2019-07-26 | R121: N
A122: 82 | B122: 2019-07-26 | D122: TATAGLOBAL AUG FUT | E122: Sell | F122: 261.5 | G122: 266.5 | H122: 257.75 | I122: 250 | J122: Profit of Rs.3.75/- | K122: =F122-H122 -> 3.75 | M122: 10125 | N122: 2700 | O122: Successful | P122: 2019-07-29 | R122: H
A123: 83 | B123: 2019-07-29 | D123: NIFTY AUG FUT | E123: Buy | F123: 11285 | G123: 11220 | H123: 11220 | I123: 11370-11400 | J123: Loss of Rs.65/- | K123: =H123-F123 -> -65 | M123: =K123*N123 -> -4875 | N123: 75 | O123: Unsuccessful | P123: 2019-07-29 | R123: R
A124: 84 | B124: 2019-07-29 | D124: BERGEPAINT | E124: Sell | F124: 331.5 | G124: 338 | H124: 338.5 | I124: 320 | J124: Loss of Rs.7/- | K124: =F124-H124 -> -7 | L124: =K124/F124 -> -2.11% | O124: Unsuccessful | P124: 2019-07-30 | R124: H
A125: 85 | B125: 2019-07-30 | D125: POWERGRID AUG FUT | E125: Buy | F125: 205.75 | G125: 202.5 | H125: 207.5 | I125: 212 | J125: Profit of Rs.1.75/- | K125: =H125-F125 -> 1.75 | M125: =K125*N125 -> 7000 | N125: 4000 | O125: Successful | P125: 2019-07-30 | R125: N
A126: 86 | B126: 2019-07-30 | D126: RBLBANK | E126: Buy | F126: 441.5 | G126: 434 | H126: 429.5 | I126: 455-460 | J126: Loss of Rs.12/- | K126: -12 | L126: =K126/F126 -> -2.72% | O126: Unsuccessful | P126: 2019-07-30 | R126: H
A127: 87 | B127: 2019-07-30 | D127: NIFTY AUG FUT | E127: Buy | F127: 11150-11160 | G127: 11070 | I127: 11300 | J127: Open | R127: R
A131: CLBS = Closing Basis ***
A132: Dividend adjusted <> | F132: Reinitiated $
F133: Revised stoploss #
A135: Master Trade High Risk
A136: Sr.no | B136: Date | D136: Company | E136: Rec | F136: Rec Price | G136: Stop Loss | H136: Call Closed At | I136: Target | J136: Remark | K136: Profit / Loss per share | L136: Gain / Loss per Lot | M136: Lot | N136: Status | O136: Closed Date
A137: 1 | B137: 2019-07-01 | D137: GAIL JUL FUT | E137: Buy | F137: 310.5 | G137: 298 | H137: 314.25 | I137: 325 | J137: Profit of Rs.3 /- | K137: =H137-F137 -> 3.75 | L137: =3*M137 -> 8001 | M137: 2667 | N137: Successful | O137: 2019-07-01 | R137: H
D138: GAIL 320 CE | E138: Sell | F138: 6 | H138: 6.75 | K138: =F138-H138 -> -0.75
A139: 2 | B139: 2019-07-03 | D139: BIOCON JUL FUT | E139: Buy | F139: 252 | G139: 243 | H139: 244 | I139: 265-268 | J139: Loss of Rs.8 /- | K139: =H139-F139 -> -8 | L139: =K139*M139 -> -14400 | M139: 1800 | N139: Unsuccessful | O139: 2019-07-05 | R139: R
A140: 3 | B140: 2019-07-03 | D140: GAIL JUL FUT | E140: Buy | F140: 153.25 | G140: 148.5 | H140: 148.5 | I140: 162.5 | J140: Loss of Rs.2.75 /- | K140: =H140-F140 -> -4.75 | L140: =-2.75*M140 -> -14668.5 | M140: 5334 | N140: Unsuccessful | O140: 2019-07-09 | R140: H
D141: GAIL 315 CE | E141: Sell | F141: 3 | H141: 1 | K141: =F141-H141 -> 2
A142: 4 | B142: 2019-07-12 | D142: HINDUNILVR JUL FUT | E142: Buy | F142: 1727.5 | G142: 1680 | H142: 1758 | I142: 1800 | J142: Profit of Rs.26.5 /- | K142: =H142-F142 -> 30.5 | L142: =26.5*M142 -> 7950 | M142: 300 | N142: Successful | O142: 2019-07-17 | R142: H
D143: HINDUNILVR 1760 CE | E143: Sell | F143: 21 | H143: 25 | K143: =F143-H143 -> -4
A144: 5 | B144: 2019-07-12 | D144: BRITANNIA JUL FUT | E144: Buy | F144: 2755 | G144: 2685 | H144: 2797.5 | I144: 2900 | J144: Profit of Rs.42.5/- | K144: =H144-F144 -> 42.5 | L144: =K144*M144 -> 8500 | M144: 200 | N144: Successful | O144: 2019-07-12 | R144: R
A145: 6 | B145: 2019-07-16 | D145: BRITANNIA JUL FUT | E145: Buy | F145: 2750 | G145: 2675 | H145: 2797.5 | I145: 2900 | J145: Profit of Rs.47.5/- | K145: =H145-F145 -> 47.5 | L145: =K145*M145 -> 9500 | M145: 200 | N145: Successful | O145: 2019-07-17 | R145: R
A146: 7 | B146: 2019-07-24 | D146: NIFTY AUG FUT | E146: Buy | F146: 11320 | G146: 11130 | H146: 11125 | I146: 11600 | J146: Loss of Rs.128.50 /- | K146: =H146-F146 -> -195 | L146: =-75*128.5 -> -9637.5 | M146: 75 | N146: Unsuccessful | O146: 2019-07-30 | R146: H
D147: NIFTY 29AUG 11500 CE | E147: Sell | F147: 97.50 | H147: 31 | K147: =F147-H147 -> 66.5 | R147: H
A148: 8 | B148: 2019-07-24 | D148: BANKNIFTY AUG FUT | E148: Buy | F148: 29085 | G148: 28450 | H148: 29395 | I148: 30000 | J148: Profit of Rs.240 /- | K148: =H148-F148 -> 310 | L148: =240*20 -> 4800 | M148: 20 | N148: Successful | O148: 2019-07-26 | R148: H
D149: BANKNIFTY 29AUG 29500 CE | E149: Sell | F149: 350 | H149: 420 | K149: =F149-H149 -> -70 | R149: H
A150: 9 | B150: 2019-07-26 | D150: BAJAJFINSERV AUG FUT | E150: Buy | F150: 7290 | G150: 7550 | H150: 7190 | I150: 7000-6900 | J150: Profit of Rs.240 /- | K150: =F150-H150 -> 100 | L150: =80*125 -> 10000 | M150: 125 | N150: Successful | O150: 2019-07-29 | R150: H
D151: BAJAJFINSERV 29AUG 7100 PE | E151: Sell | F151: 170 | H151: 190 | K151: =F151-H151 -> -20 | R151: H
A154: Master Trade Medium Risk
A155: Sr.no | B155: Date | D155: Company | E155: Rec | F155: Rec Price | G155: Stop Loss | H155: Call Closed At | I155: Target | J155: Remark | K155: Profit/ Loss per lot | L155: Gain / Loss per Lot | M155: Lot | N155: Status | O155: Closed Date
A156: 1 | B156: 2019-06-28 | D156: NIFTY 11950 CE 4-JULY | E156: Buy | F156: 39.5 | G156: 18 | H156: 18 | I156: 70-80 | J156: Loss of Rs.21.5 /- | K156: =H156-F156 -> -21.5 | L156: =K156*M156 -> -1612.5 | M156: 75 | N156: Unsuccessful | O156: 2019-07-02 | R156: H
A157: 2 | B157: 2019-07-04 | D157: NIFTY 4-Jul 11950 PE | E157: Buy | F157: 16 | H157: 27 | I157: 45 | J157: Profit of Rs.11 /- | K157: 11 | L157: 825 | M157: 75 | N157: Successful | O157: 2019-07-04 | R157: R
A158: 3 | B158: 2019-07-05 | D158: NIFTY 11-Jul 11850 PE | E158: Buy | F158: 45 | H158: 60 | I158: 100 | J158: Profit of Rs.15 /- | K158: 15 | L158: 1125 | M158: 75 | N158: Successful | O158: 2019-07-05 | R158: H
A159: 4 | B159: 2019-07-05 | D159: NIFTY 11-Jul 11850 PE | E159: Buy | F159: 49 | H159: 64.5 | I159: 100 | J159: Profit of Rs.15.5 /- | K159: 15.5 | L159: 1162.5 | M159: 75 | N159: Successful | O159: 2019-07-05 | R159: H
A160: 5 | B160: 2019-07-05 | D160: NIFTY 11-Jul 11850 PE | E160: Buy | F160: 45 | H160: 59 | I160: 100 | J160: Profit of Rs.14 /- | K160: 14 | L160: 1050 | M160: 75 | N160: Successful | O160: 2019-07-05 | R160: H
A161: 6 | B161: 2019-07-08 | D161: NIFTY 11-Jul 11750 CE | E161: Buy | F161: 29.31 | H161: 12 | I161: 60-80 | J161: Loss of Rs.17.31/- | K161: -17.31 | L161: -1298.25 | M161: 75 | N161: Unsuccessful | O161: 2019-07-08 | R161: H
A162: 7 | B162: 2019-07-09 | D162: NIFTY 11550 CE 11-JULY | E162: Buy | F162: 42.5 | G162: 18 | H162: 55.5 | I162: 80-90 | J162: Profit of Rs.13 /- | K162: 13 | L162: 975 | M162: 75 | N162: Successful | O162: 2019-07-09 | R162: H
A163: 8 | B163: 2019-07-09 | D163: COALINDIA 240 CE JULY | E163: Buy | F163: 3.25 | G163: 1.8 | H163: 1.9 | I163: 6-6.5 | J163: Loss of Rs.1.35/- | K163: -1.35 | L163: -2970 | M163: 2200 | N163: Unsuccessful | O163: 2019-07-09 | R163: H
A164: 9 | B164: 2019-07-09 | D164: NIFTY 11550 CE 11-JULY | E164: Buy | F164: 38.5 | G164: 13 | H164: 49 | I164: 80-90 | J164: Profit of Rs.10.5 /- | K164: =H164-F164 -> 10.5 | L164: =K164*M164 -> 787.5 | M164: 75 | N164: Successful | O164: 2019-07-09 | R164: H
A165: 10 | B165: 2019-07-09 | D165: NIFTY 11550 CE 11-JULY | E165: Buy | F165: 31.5 | G165: 10 | H165: 48 | I165: 70 | J165: Profit of Rs.16.5/- | K165: =H165-F165 -> 16.5 | L165: =K165*M165 -> 1237.5 | M165: 75 | N165: Successful | O165: 2019-07-09 | R165: H
A166: 11 | B166: 2019-07-10 | D166: NIFTY 11600 CE 18-JULY | E166: Buy | F166: 61 | G166: 37 | H166: 37 | I166: 100 | J166: Loss of Rs.24/- | K166: =H166-F166 -> -24 | L166: =K166*M166 -> -1800 | M166: 75 | N166: Unsuccessful | O166: 2019-07-10 | R166: H
A167: 12 | B167: 2019-07-12 | D167: NIFTY 11550 PE 18-JULY | E167: Buy | F167: 31.5 | G167: 15 | H167: 41 | I167: 55 -60 | J167: Profit of Rs.9.5/- | K167: 9.5 | L167: 712.5 | M167: 75 | N167: Successful | O167: 2019-07-12 | R167: H
A168: 13 | B168: 2019-07-16 | D168: NIFTY 11600 PE 18-JULY | E168: Buy | F168: 30.5 | G168: 17 | H168: 20 | I168: 55 -60 | J168: Loss of Rs.10.5/- | K168: -10.5 | L168: -787.5 | M168: 75 | N168: Unsuccessful | O168: 2019-07-16 | R168: H
A169: 14 | B169: 2019-07-17 | D169: BANKNIFTY 30700 PE 18 JUL | E169: Buy | F169: 82.5 | H169: 122.5 | I169: 200 | J169: Profit of Rs.40/- | K169: 40 | L169: 800 | M169: 20 | N169: Successful | O169: 2019-07-17 | R169: R
A170: 15 | B170: 2019-07-18 | D170: HDFCBANK 2420 CE JULY | E170: Buy | F170: 29 | G170: 10 | H170: 8.5 | I170: 60 | J170: Loss of Rs.20.5/- | K170: -20.5 | L170: -5125 | M170: 250 | N170: Unsuccessful | O170: 2019-07-22 | R170: H
A171: 16 | B171: 2019-07-18 | D171: NIFTY 11700 PE 18 JUL | E171: Buy | F171: 37.5 | G171: 80 | H171: 55 | J171: Profit of Rs.17.5/- | K171: 17.5 | L171: 1312.5 | M171: 75 | N171: Successful | O171: 2019-07-18 | R171: R
A172: 17 | B172: 2019-07-18 | D172: DABUR 420 PE JUL | E172: Buy | F172: 3.55 | H172: 5.05 | I172: 6.-8 | J172: Profit of Rs.1.5/- | K172: 1.5 | L172: 1875 | M172: 1250 | N172: Successful | O172: 2019-07-18 | R172: H
A173: 18 | B173: 2019-07-19 | D173: BANKNIFTY 30700 CE JUL | E173: Buy | F173: 100 | H173: 0 | I173: 250 | J173: Loss of Rs.100/- | K173: -100 | L173: -2000 | M173: 20 | N173: Unsuccessful | O173: 2019-07-25 | R173: H
A174: 19 | B174: 2019-07-22 | D174: YESBANK JUL 90 PE | E174: Buy | F174: 2.1 | H174: 3.8 | I174: 7 | J174: Profit of Rs.1.7/- | K174: =H174-F174 -> 1.7 | L174: =K174*M174 -> 3740 | M174: 2200 | N174: Successful | O174: 2019-07-22 | R174: R
A175: 20 | B175: 2019-07-23 | D175: HINDALCO JUL 200 PE | E175: Buy | F175: 1.25 | H175: 2.9 | I175: 5 | J175: Profit of Rs.1.65/- | K175: =H175-F175 -> 1.65 | L175: =K175*M175 -> 5775 | M175: 3500 | N175: Successful | O175: 2019-07-24 | R175: R
A176: 21 | B176: 2019-07-23 | D176: SBIN JUL 350 CE | E176: Buy | F176: 2.25 | G176: 0.5 | H176: 0.5 | I176: 6 | J176: Loss of Rs.1.75/- | K176: =H176-F176 -> -1.75 | L176: =K176*M176 -> -5250 | M176: 3000 | N176: Unsuccessful | O176: 2019-07-24 | R176: R
A177: 22 | B177: 2019-07-24 | D177: NIFTY JUL 11300 CE | E177: Buy | F177: 26 | H177: 36.5 | I177: 70 | J177: Profit of Rs.10.50/- | K177: =H177-F177 -> 10.5 | L177: =K177*M177 -> 787.5 | M177: 75 | N177: Successful | O177: 2019-07-25 | R177: R
A178: 23 | B178: 2019-07-25 | D178: NIFTY 01-AUG 11350 CE | E178: Buy | F178: 35 | H178: 49 | I178: 60-80 | J178: Profit of Rs.14/- | K178: =H178-F178 -> 14 | L178: =K178*M178 -> 1050 | M178: 75 | N178: Successful | O178: 2019-07-25 | R178: H
A179: 24 | B179: 2019-07-25 | D179: NIFTY 01-AUG 11350 CE | E179: Buy | F179: 33 | H179: 43 | I179: 60-80 | J179: Profit of Rs.10/- | K179: =H179-F179 -> 10 | L179: =K179*M179 -> 750 | M179: 75 | N179: Successful | O179: 2019-07-26 | R179: H
A180: 25 | B180: 2019-07-29 | D180: NIFTY 01-AUG 11300 CE | E180: Buy | F180: 32-34 | I180: 60-80 | J180: Open | R180: H
A182: Techno -Funda (positional)
A183: Sr.no | B183: Date | D183: Company | E183: Rec | F183: Rec Price | G183: Stop Loss*** | H183: Call Closed At | I183: Target | J183: Remark | K183: Profit / Loss per Share | L183: Gain / Loss % | M183: Status | N183: Closed Date | O183: NSE Closed Price
A184: 1 | B184: 2019-04-04 | D184: FINPIPE | E184: Buy | F184: 474.5 | G184: 435 | H184: 524 | I184: 560 | J184: Profit of Rs.49.5 /- | K184: =H184-F184 -> 49.5 | L184: =K184/F184 -> 10.43% | M184: Successful | N184: 2019-07-01 | R184: H
A185: 2 | B185: 2019-05-24 | D185: APOLLOTYRE | E185: Buy | F185: 183.5 | G185: 178.7 | H185: 181.5 | I185: 220-230 | J185: Loss of Rs.2/- | K185: =H185-F185 -> -2 | L185: -1.09% | M185: Unsuccessful | N185: 2019-07-24 | R185: R
A188: CLBS = Closing Basis *** | F188: Reinitiated $
A189: Dividend adjusted <> | F189: Revised stoploss #
B194: Investment Idea
A195: Sr.no | B195: Date | D195: Company | E195: Rec | F195: Rec Price | G195: Point of Review | H195: Close Rate | I195: Target | J195: Remark | K195: Profit / Loss per Share | L195: Gain / Loss % | M195: Status | N195: Closed Date
A196: 1 | B196: 2013-11-01 | D196: L&T Finance Holding | E196: Accu | F196: 82.00 | G196: - | H196: 100 | I196: 100.00 | J196: Target Achieved | K196: =H196-F196 -> 18.00 | L196: =K196/F196 -> 21.95% | M196: Successful | N196: 2016-10-14
A197: 2 | B197: 2014-06-04 | D197: Finolex Inds | E197: Buy | F197: 257.00 | G197: - | H197: 300 | I197: 300.00 | J197: Target Achieved | K197: =H197-F197 -> 43.00 | L197: 16.73% | M197: Successful | N197: 2014-07-02
A198: 3 | B198: 2014-07-08 | D198: JK Cement | E198: Buy | F198: 393.00 | G198: - | H198: 468 | I198: 468.00 | J198: Target Achieved | K198: =H198-F198 -> 75.00 | L198: 19.08% | M198: Successful | N198: 2014-08-12
A199: 4 | B199: 2014-08-06 | D199: Finolex Cables | E199: Buy | F199: 205.00 | G199: - | H199: 275 | I199: 250.00 | J199: Target Achieved | K199: 70.00 | L199: 34.15% | M199: Successful | N199: 2014-11-19
A200: 5 | B200: 2014-09-04 | D200: Exide Inds | E200: Buy | F200: 162.00 | G200: - | H200: 190 | I200: 190.00 | J200: Target Achieved | K200: 28.00 | L200: 17.28% | M200: Successful | N200: 2015-01-02
A201: 6 | B201: 2014-09-04 | D201: Deepak Nitrite | E201: Buy | F201: 75.00 | G201: - | H201: 91.5 | I201: 95-100 | J201: Profit of Rs.16.50/- | K201: 16.50 | L201: 22.00% | M201: Successful | N201: 2014-11-11
A202: 7 | B202: 2014-10-01 | D202: Mercks | E202: Buy | F202: 850.00 | G202: - | H202: 982.5 | I202: 1050.00 | J202: Profit of Rs.132.50/- | K202: 132.50 | L202: 15.59% | M202: Successful | N202: 2015-02-04
A203: 8 | B203: 2014-10-01 | D203: Grindwell Norton | E203: Buy | F203: 475.00 | G203: - | H203: 515 | I203: 600.00 | J203: Profit of Rs.40/- | K203: 40.00 | L203: 8.42% | M203: Successful | N203: 2014-10-27
A204: 9 | B204: 2014-10-01 | D204: Snowman Logistics | E204: Buy | F204: 86.00 | G204: - | H204: 99 | I204: 140.00 | J204: Profit of Rs.13.00/- | K204: 13.00 | L204: 15.12% | M204: Successful | N204: 2014-10-27
A205: 10 | B205: 2014-10-14 | D205: Birla Corp | E205: Buy | F205: 496.60 | G205: - | H205: 621 | I205: 580.00 | J205: Target Achieved | K205: 124.40 | L205: 25.05% | M205: Successful | N205: 2016-08-23
A206: 11 | B206: 2014-10-14 | D206: Ultratech Cem | E206: Buy | F206: 2481.90 | G206: - | H206: 2840 | I206: 2870.00 | J206: Profit of Rs.358.10/- | K206: 358.10 | L206: 14.43% | M206: Successful | N206: 2015-01-13
A207: 12 | B207: 2014-10-16 | D207: Sintex Inds | E207: Buy | F207: 84.50 | G207: - | H207: 93 | I207: 110.00 | J207: Profit of Rs.8.50/- | K207: 8.50 | L207: 10.06% | M207: Successful | N207: 2014-10-27
A208: 13 | B208: 2014-10-16 | D208: HSIL | E208: Buy | F208: 401.00 | G208: - | H208: 428 | I208: 450.00 | J208: Profit of Rs.27.00/- | K208: 27.00 | L208: 6.73% | M208: Successful | N208: 2015-01-16
A209: 14 | B209: 2014-10-16 | D209: Eveready Inds | E209: Buy | F209: 101.00 | G209: - | H209: 112 | I209: 120.00 | J209: Profit of Rs.11.00/- | K209: 11.00 | L209: 10.89% | M209: Successful | N209: 2014-10-27
A210: 15 | B210: 2014-11-11 | D210: Pennar Inds | E210: Buy | F210: 59.00 | G210: - | H210: 76 | I210: 76.00 | J210: Target Achieved | K210: 17.00 | L210: 28.81% | M210: Successful | N210: 2017-10-24
A211: 16 | B211: 2014-11-11 | D211: Snowman Logistics | E211: Buy | F211: 99.00 | G211: - | H211: 120 | I211: 120.00 | J211: Profit of Rs.21/- | K211: 21.00 | L211: 21.21% | M211: Successful | N211: 2014-11-17
A212: 17 | B212: 2014-11-13 | D212: Dharamsi Morarji Chem | E212: Buy | F212: 22.00 | G212: - | H212: 33.55 | I212: 32.00 | J212: Profit of Rs 11.55/- | K212: 11.55 | L212: 52.50% | M212: Successful | N212: 2015-07-03
A213: 18 | B213: 2014-12-03 | D213: Tatachem | E213: Buy | F213: 440.00 | G213: - | H213: 520 | I213: 520.00 | J213: Profit of Rs 80.00/- | K213: 80.00 | L213: 18.18% | M213: Successful | N213: 2015-07-23
A214: 19 | B214: 2014-12-03 | D214: Advanta | E214: Buy | F214: 360.00 | G214: - | H214: 427 | I214: 425.00 | J214: Profit of Rs.67.00/- | K214: 67.00 | L214: 18.61% | M214: Successful | N214: 2015-02-23
A215: 20 | B215: 2015-01-08 | D215: GDL | E215: Buy | F215: 360.00 | G215: - | H215: 455 | I215: 420.00 | J215: Profit of Rs.95.00/- | K215: 95.00 | L215: 26.39% | M215: Successful | N215: 2015-01-20
A216: 21 | B216: 2015-01-08 | D216: NRB Bearing | E216: Buy | F216: 130.00 | H216: 175.5 | I216: 165.00 | J216: Profit of Rs 45.50/- | K216: 45.50 | L216: 35.00% | M216: Successful | N216: 2017-12-19
A217: 22 | B217: 2015-02-05 | D217: GSFC | E217: Accu | F217: 98.00 | H217: 120 | I217: 120.00 | J217: Target Achieved | K217: 22.00 | L217: 22.45% | M217: Successful | N217: 2017-01-18
A218: 23 | B218: 2015-02-05 | D218: Sundrmfast | E218: Accu | F218: 196.00 | H218: 262 | I218: 255.00 | J218: Target Achieved | K218: 66.00 | L218: 33.67% | M218: Successful | N218: 2016-08-17
A219: 24 | B219: 2015-03-04 | D219: GPPL | E219: Accu | F219: 235 | H219: 77.00 | I219: 280-285 | J219: Loss of Rs.158/- | K219: =H219-F219 -> -158.00 | L219: -67.23% | M219: Unsuccessful | N219: 2019-02-26
... 124 more rows

Sheet Sheet2 (hidden)
A1: SYMBOL | B1: SERIES | C1: OPEN | D1: HIGH | E1: LOW | F1: CLOSE | G1: LAST | H1: PREVCLOSE | I1: TOTTRDQTY | J1: TOTTRDVAL | K1: TIMESTAMP | L1: TOTALTRADES | M1: ISIN | N1: ISIN
A2: 20MICRONS | B2: EQ | C2: 35.95 | D2: 35.95 | E2: 34 | F2: 34.1 | G2: 34.05 | H2: 35.2 | I2: 20819 | J2: 720756.05 | K2: 2019-07-30 | L2: 209 | M2: INE144J01027
A3: 21STCENMGM | B3: EQ | C3: 15.35 | D3: 15.35 | E3: 15.35 | F3: 15.35 | G3: 15.35 | H3: 15.35 | I3: 1 | J3: 15.35 | K3: 2019-07-30 | L3: 1 | M3: INE253B01015
A4: 3IINFOTECH | B4: EQ | C4: 2.45 | D4: 2.45 | E4: 2.3 | F4: 2.35 | G4: 2.35 | H4: 2.45 | I4: 2216843 | J4: 5285034.8 | K4: 2019-07-30 | L4: 718 | M4: INE748C01020
A5: 3MINDIA | B5: EQ | C5: 21259.95 | D5: 21378.5 | E5: 20867.65 | F5: 20989.85 | G5: 21040 | H5: 21268.8 | I5: 904 | J5: 19078500 | K5: 2019-07-30 | L5: 406 | M5: INE470A01017
A6: 3PLAND | B6: EQ | C6: 7.6 | D6: 7.6 | E6: 7.35 | F6: 7.6 | G6: 7.6 | H6: 7.6 | I6: 1010 | J6: 7492.7 | K6: 2019-07-30 | L6: 10 | M6: INE105C01023
A7: 5PAISA | B7: EQ | C7: 189.95 | D7: 189.95 | E7: 177.6 | F7: 177.6 | G7: 177.6 | H7: 186.9 | I7: 11965 | J7: 2162153.25 | K7: 2019-07-30 | L7: 382 | M7: INE618L01018
A8: 63MOONS | B8: EQ | C8: 94.5 | D8: 97.95 | E8: 90.15 | F8: 90.95 | G8: 90.6 | H8: 93.3 | I8: 166936 | J8: 15739171.95 | K8: 2019-07-30 | L8: 1797 | M8: INE111B01023
A9: 8KMILES | B9: EQ | C9: 59.9 | D9: 59.9 | E9: 59.9 | F9: 59.9 | G9: 59.9 | H9: 63.05 | I9: 38267 | J9: 2292193.3 | K9: 2019-07-30 | L9: 386 | M9: INE650K01021
A10: A2ZINFRA | B10: EQ | C10: 11.05 | D10: 11.45 | E10: 10.7 | F10: 10.85 | G10: 10.75 | H10: 11.05 | I10: 773875 | J10: 8660894 | K10: 2019-07-30 | L10: 1040 | M10: INE619I01012
A11: AARTIDRUGS | B11: EQ | C11: 479 | D11: 487.95 | E11: 472 | F11: 475.3 | G11: 477 | H11: 482.25 | I11: 6393 | J11: 3069758.45 | K11: 2019-07-30 | L11: 650 | M11: INE767A01016
A12: AARTIIND | B12: EQ | C12: 1650.75 | D12: 1670 | E12: 1625 | F12: 1630.55 | G12: 1630 | H12: 1650.75 | I12: 17208 | J12: 28355944.9 | K12: 2019-07-30 | L12: 2360 | M12: INE769A01020
A13: AARVEEDEN | B13: EQ | C13: 16.45 | D13: 16.8 | E13: 16.15 | F13: 16.4 | G13: 16.65 | H13: 16.45 | I13: 369 | J13: 6063.5 | K13: 2019-07-30 | L13: 26 | M13: INE273D01019
A14: AAVAS | B14: EQ | C14: 1437.65 | D14: 1470 | E14: 1425.15 | F14: 1430.2 | G14: 1430 | H14: 1437.65 | I14: 53478 | J14: 77134152.1 | K14: 2019-07-30 | L14: 1766 | M14: INE216P01012
A15: ABAN | B15: EQ | C15: 30.85 | D15: 31.35 | E15: 29.35 | F15: 29.5 | G15: 29.4 | H15: 30.85 | I15: 89977 | J15: 2734686.4 | K15: 2019-07-30 | L15: 979 | M15: INE421A01028
A16: ABB | B16: EQ | C16: 1398 | D16: 1404.7 | E16: 1352.95 | F16: 1358.3 | G16: 1355 | H16: 1394.55 | I16: 291048 | J16: 403465890.4 | K16: 2019-07-30 | L16: 6732 | M16: INE117A01022
A17: ABBOTINDIA | B17: EQ | C17: 8416 | D17: 8575 | E17: 8416 | F17: 8490.8 | G17: 8500 | H17: 8441.4 | I17: 7001 | J17: 59686129 | K17: 2019-07-30 | L17: 1232 | M17: INE358A01014
A18: ABCAPITAL | B18: EQ | C18: 83 | D18: 84.4 | E18: 80.1 | F18: 81 | G18: 81.15 | H18: 83.3 | I18: 1247865 | J18: 101746519.8 | K18: 2019-07-30 | L18: 12834 | M18: INE674K01013
A19: ABFRL | B19: EQ | C19: 198.05 | D19: 198.9 | E19: 188.55 | F19: 190 | G19: 189.1 | H19: 197.65 | I19: 744165 | J19: 144077400.6 | K19: 2019-07-30 | L19: 10636 | M19: INE647O01011
A20: ABSLNN50ET | B20: EQ | C20: 262.67 | D20: 262.67 | E20: 257.48 | F20: 257.9 | G20: 257.48 | H20: 262.67 | I20: 113 | J20: 29398.11 | K20: 2019-07-30 | L20: 10 | M20: INF209KB1B87
A21: ACC | B21: EQ | C21: 1536.75 | D21: 1566.75 | E21: 1532.6 | F21: 1540.9 | G21: 1538 | H21: 1535.7 | I21: 1094582 | J21: 1701106501 | K21: 2019-07-30 | L21: 60303 | M21: INE012A01025
A22: ACCELYA | B22: EQ | C22: 797.05 | D22: 807.4 | E22: 769 | F22: 787.05 | G22: 783.25 | H22: 808.2 | I22: 3289 | J22: 2577026.4 | K22: 2019-07-30 | L22: 389 | M22: INE793A01012
A23: ACE | B23: EQ | C23: 77.25 | D23: 82.65 | E23: 75.05 | F23: 76 | G23: 75.05 | H23: 78.15 | I23: 300982 | J23: 23272652.95 | K23: 2019-07-30 | L23: 4496 | M23: INE731H01025
A24: ADANIENT | B24: EQ | C24: 128 | D24: 131 | E24: 123.85 | F24: 125.35 | G24: 125.55 | H24: 129.45 | I24: 4167043 | J24: 530226464.5 | K24: 2019-07-30 | L24: 20554 | M24: INE423A01024
A25: ADANIGAS | B25: EQ | C25: 160.7 | D25: 161.45 | E25: 154.4 | F25: 157.55 | G25: 158.35 | H25: 159.7 | I25: 320824 | J25: 50770357.45 | K25: 2019-07-30 | L25: 3848 | M25: INE399L01023
A26: ADANIGREEN | B26: EQ | C26: 49 | D26: 49.2 | E26: 46 | F26: 46.4 | G26: 46.05 | H26: 48.8 | I26: 623197 | J26: 29453993.35 | K26: 2019-07-30 | L26: 2687 | M26: INE364U01010
A27: ADANIPORTS | B27: EQ | C27: 376.6 | D27: 379.9 | E27: 371.1 | F27: 373.45 | G27: 373.85 | H27: 373.85 | I27: 2312161 | J27: 868554133.9 | K27: 2019-07-30 | L27: 34977 | M27: INE742F01042
A28: ADANIPOWER | B28: EQ | C28: 61.7 | D28: 62.25 | E28: 60.2 | F28: 60.65 | G28: 60.6 | H28: 61.6 | I28: 8157234 | J28: 498150695.1 | K28: 2019-07-30 | L28: 15384 | M28: INE814H01011
A29: ADANITRANS | B29: EQ | C29: 209.95 | D29: 210.5 | E29: 202.5 | F29: 203.95 | G29: 203 | H29: 207.8 | I29: 55096 | J29: 11425472.1 | K29: 2019-07-30 | L29: 2586 | M29: INE931S01010
A30: ADFFOODS | B30: EQ | C30: 258.7 | D30: 268.85 | E30: 250 | F30: 252.95 | G30: 250 | H30: 258.65 | I30: 10005 | J30: 2556470.65 | K30: 2019-07-30 | L30: 612 | M30: INE982B01019
A31: ADHUNIK | B31: EQ | C31: 1.35 | D31: 1.35 | E31: 1.3 | F31: 1.35 | G31: 1.35 | H31: 1.3 | I31: 33469 | J31: 45053.05 | K31: 2019-07-30 | L31: 42 | M31: INE400H01019
A32: ADHUNIKIND | B32: EQ | C32: 95 | D32: 95.5 | E32: 93.5 | F32: 94.2 | G32: 93.5 | H32: 95.4 | I32: 14308 | J32: 1351095.4 | K32: 2019-07-30 | L32: 172 | M32: INE452L01012
A33: ADLABS | B33: EQ | C33: 4.15 | D33: 4.25 | E33: 3.95 | F33: 4 | G33: 3.95 | H33: 4.15 | I33: 92815 | J33: 378180.15 | K33: 2019-07-30 | L33: 350 | M33: INE172N01012
A34: ADORWELD | B34: EQ | C34: 309.45 | D34: 309.45 | E34: 296.1 | F34: 297.5 | G34: 296.1 | H34: 308.55 | I34: 6324 | J34: 1908767.55 | K34: 2019-07-30 | L34: 232 | M34: INE045A01017
A35: ADROITINFO | B35: EQ | C35: 9.05 | D35: 9.8 | E35: 9 | F35: 9.7 | G35: 9.8 | H35: 9.35 | I35: 5245 | J35: 50590.25 | K35: 2019-07-30 | L35: 15 | M35: INE737B01033
A36: ADSL | B36: EQ | C36: 13.3 | D36: 13.5 | E36: 12.5 | F36: 12.65 | G36: 13.15 | H36: 12.9 | I36: 16291 | J36: 207856 | K36: 2019-07-30 | L36: 62 | M36: INE102I01027
A37: ADVANIHOTR | B37: EQ | C37: 56.95 | D37: 56.95 | E37: 56.1 | F37: 56.65 | G37: 56.95 | H37: 55.7 | I37: 3032 | J37: 171395.15 | K37: 2019-07-30 | L37: 49 | M37: INE199C01026
A38: ADVENZYMES | B38: EQ | C38: 157.45 | D38: 157.5 | E38: 152 | F38: 152.95 | G38: 153 | H38: 156.65 | I38: 28599 | J38: 4410543 | K38: 2019-07-30 | L38: 735 | M38: INE837H01020
A39: AEGISCHEM | B39: EQ | C39: 196.3 | D39: 198.4 | E39: 189 | F39: 190 | G39: 191 | H39: 195.3 | I39: 346200 | J39: 66887721.95 | K39: 2019-07-30 | L39: 9732 | M39: INE208C01025
A40: AGARIND | B40: EQ | C40: 113.05 | D40: 118 | E40: 111.2 | F40: 116.95 | G40: 116.85 | H40: 115.65 | I40: 6712 | J40: 775899.95 | K40: 2019-07-30 | L40: 70 | M40: INE204E01012
A41: AGCNET | B41: EQ | C41: 87 | D41: 90 | E41: 85 | F41: 85 | G41: 85 | H41: 85.25 | I41: 741 | J41: 63971.6 | K41: 2019-07-30 | L41: 43 | M41: INE676A01019
A42: AGLSL | B42: EQ | C42: 46.2 | D42: 50.85 | E42: 46 | F42: 46.8 | G42: 46 | H42: 48.5 | I42: 3743 | J42: 180687.05 | K42: 2019-07-30 | L42: 117 | M42: INE517U01013
A43: AGRITECH | B43: EQ | C43: 51.95 | D43: 53.4 | E43: 48.5 | F43: 48.9 | G43: 48.6 | H43: 52 | I43: 10889 | J43: 547090.6 | K43: 2019-07-30 | L43: 263 | M43: INE449G01018
A44: AGROPHOS | B44: BE | C44: 85 | D44: 92.9 | E44: 85 | F44: 91.9 | G44: 91.95 | H44: 89.25 | I44: 25688 | J44: 2337865.8 | K44: 2019-07-30 | L44: 88 | M44: INE740V01019
A45: AHLEAST | B45: EQ | C45: 168.05 | D45: 172 | E45: 162.6 | F45: 165.7 | G45: 165.25 | H45: 172.95 | I45: 1435 | J45: 240995.95 | K45: 2019-07-30 | L45: 141 | M45: INE926K01017
A46: AHLUCONT | B46: EQ | C46: 298.3 | D46: 302.25 | E46: 298.05 | F46: 300.55 | G46: 300.75 | H46: 300.9 | I46: 3597 | J46: 1078738.3 | K46: 2019-07-30 | L46: 125 | M46: INE758C01029
A47: AHLWEST | B47: EQ | C47: 273 | D47: 280 | E47: 252.3 | F47: 265.65 | G47: 267.6 | H47: 266.6 | I47: 25375 | J47: 6913300.55 | K47: 2019-07-30 | L47: 64 | M47: INE915K01010
A48: AIAENG | B48: EQ | C48: 1717.7 | D48: 1754.9 | E48: 1708.6 | F48: 1747.35 | G48: 1741.8 | H48: 1709.45 | I48: 5049 | J48: 8781674.25 | K48: 2019-07-30 | L48: 792 | M48: INE212H01026
A49: AIONJSW | B49: EQ | C49: 16.45 | D49: 17.35 | E49: 15.6 | F49: 16.1 | G49: 16.1 | H49: 16.25 | I49: 14826 | J49: 242248.9 | K49: 2019-07-30 | L49: 165 | M49: INE743C01021
A50: AIRAN | B50: EQ | C50: 20.65 | D50: 21.5 | E50: 20.65 | F50: 21.35 | G50: 21.45 | H50: 21.25 | I50: 18100 | J50: 386777.55 | K50: 2019-07-30 | L50: 25 | M50: INE645W01026
A51: AJANTPHARM | B51: EQ | C51: 906.8 | D51: 907.65 | E51: 868 | F51: 880.6 | G51: 874 | H51: 902.4 | I51: 363493 | J51: 323392461.9 | K51: 2019-07-30 | L51: 4813 | M51: INE031B01049
A52: AJMERA | B52: EQ | C52: 127.8 | D52: 129.35 | E52: 122 | F52: 123.2 | G52: 123.95 | H52: 127.05 | I52: 29155 | J52: 3650904.45 | K52: 2019-07-30 | L52: 792 | M52: INE298G01027
A53: AKSHARCHEM | B53: EQ | C53: 229.5 | D53: 229.55 | E53: 218.45 | F53: 225 | G53: 225 | H53: 229.5 | I53: 2611 | J53: 582739.35 | K53: 2019-07-30 | L53: 222 | M53: INE542B01011
A54: AKSHOPTFBR | B54: EQ | C54: 9.35 | D54: 9.45 | E54: 8.65 | F54: 8.9 | G54: 9 | H54: 9.35 | I54: 365204 | J54: 3295814.2 | K54: 2019-07-30 | L54: 723 | M54: INE523B01011
A55: AKZOINDIA | B55: EQ | C55: 1735.55 | D55: 1749.75 | E55: 1715 | F55: 1724.7 | G55: 1717.5 | H55: 1740.35 | I55: 9321 | J55: 16095540.15 | K55: 2019-07-30 | L55: 1953 | M55: INE133A01011
A56: ALANKIT | B56: EQ | C56: 24.55 | D56: 24.55 | E56: 23.15 | F56: 23.7 | G56: 23.75 | H56: 24.1 | I56: 477935 | J56: 11418750.75 | K56: 2019-07-30 | L56: 3197 | M56: INE914E01040
A57: ALBERTDAVD | B57: EQ | C57: 352.05 | D57: 372.8 | E57: 352.05 | F57: 358.85 | G57: 353 | H57: 361.4 | I57: 1609 | J57: 580578.75 | K57: 2019-07-30 | L57: 95 | M57: INE155C01010
A58: ALBK | B58: EQ | C58: 39.75 | D58: 40.35 | E58: 38.9 | F58: 39.05 | G58: 38.95 | H58: 39.75 | I58: 1211327 | J58: 47821798.65 | K58: 2019-07-30 | L58: 4035 | M58: INE428A01015
A59: ALCHEM | B59: BE | C59: 1.1 | D59: 1.1 | E59: 1.1 | F59: 1.1 | G59: 1.1 | H59: 1.15 | I59: 666 | J59: 732.6 | K59: 2019-07-30 | L59: 4 | M59: INE964B01033
A60: ALEMBICLTD | B60: EQ | C60: 43.05 | D60: 43.25 | E60: 42.3 | F60: 42.85 | G60: 42.4 | H60: 43.05 | I60: 133426 | J60: 5728901.4 | K60: 2019-07-30 | L60: 874 | M60: INE426A01027
A61: ALICON | B61: EQ | C61: 449.1 | D61: 449.1 | E61: 392 | F61: 401.9 | G61: 399.8 | H61: 436 | I61: 2633 | J61: 1107674.3 | K61: 2019-07-30 | L61: 392 | M61: INE062D01024
A62: ALKALI | B62: EQ | C62: 36.05 | D62: 37.7 | E62: 36 | F62: 36.1 | G62: 36.05 | H62: 36.65 | I62: 2800 | J62: 102104.95 | K62: 2019-07-30 | L62: 83 | M62: INE773I01017
A63: ALKEM | B63: EQ | C63: 1799.3 | D63: 1814 | E63: 1755 | F63: 1760.4 | G63: 1758 | H63: 1789.65 | I63: 9407 | J63: 16783389.7 | K63: 2019-07-30 | L63: 3132 | M63: INE540L01014
A64: ALKYLAMINE | B64: EQ | C64: 756 | D64: 771 | E64: 726 | F64: 729.05 | G64: 728 | H64: 756.6 | I64: 1603 | J64: 1191638.95 | K64: 2019-07-30 | L64: 358 | M64: INE150B01021
A65: ALLCARGO | B65: EQ | C65: 99.5 | D65: 100.5 | E65: 92 | F65: 93.35 | G65: 93.95 | H65: 99.85 | I65: 169829 | J65: 16599803.25 | K65: 2019-07-30 | L65: 2322 | M65: INE418H01029
A66: ALLSEC | B66: EQ | C66: 300 | D66: 300 | E66: 292.85 | F66: 295 | G66: 295 | H66: 296.05 | I66: 6919 | J66: 2040910.85 | K66: 2019-07-30 | L66: 1052 | M66: INE835G01018
A67: ALMONDZ | B67: EQ | C67: 13.4 | D67: 13.8 | E67: 13.3 | F67: 13.3 | G67: 13.3 | H67: 14 | I67: 2971 | J67: 39629.6 | K67: 2019-07-30 | L67: 20 | M67: INE326B01027
A68: ALOKTEXT | B68: EQ | C68: 3.1 | D68: 3.2 | E68: 2.9 | F68: 2.95 | G68: 2.95 | H68: 3.05 | I68: 5831479 | J68: 18042255.5 | K68: 2019-07-30 | L68: 1857 | M68: INE270A01011
A69: ALPA | B69: EQ | C69: 16.2 | D69: 17 | E69: 16.2 | F69: 16.5 | G69: 16.5 | H69: 16.85 | I69: 16736 | J69: 277037.7 | K69: 2019-07-30 | L69: 96 | M69: INE385I01010
A70: ALPHAGEO | B70: EQ | C70: 309 | D70: 309 | E70: 285.6 | F70: 287.35 | G70: 287.2 | H70: 300.45 | I70: 6237 | J70: 1818217.65 | K70: 2019-07-30 | L70: 612 | M70: INE137C01018
A71: ALPSINDUS | B71: BE | C71: 0.55 | D71: 0.55 | E71: 0.55 | F71: 0.55 | G71: 0.55 | H71: 0.55 | I71: 400 | J71: 220 | K71: 2019-07-30 | L71: 2 | M71: INE093B01015
A72: AMARAJABAT | B72: EQ | C72: 647.65 | D72: 656.05 | E72: 645.35 | F72: 650.5 | G72: 650.3 | H72: 649.95 | I72: 435984 | J72: 283950465.5 | K72: 2019-07-30 | L72: 12846 | M72: INE885A01032
A73: AMBER | B73: EQ | C73: 814.8 | D73: 819.9 | E73: 772.25 | F73: 782.5 | G73: 792.5 | H73: 814.8 | I73: 11551 | J73: 9203411.35 | K73: 2019-07-30 | L73: 878 | M73: INE371P01015
A74: AMBIKCO | B74: EQ | C74: 924 | D74: 924 | E74: 881.05 | F74: 894.95 | G74: 894 | H74: 907.6 | I74: 2160 | J74: 1933473.3 | K74: 2019-07-30 | L74: 365 | M74: INE540G01014
A75: AMBUJACEM | B75: EQ | C75: 205.9 | D75: 208 | E75: 201.1 | F75: 202.1 | G75: 202.85 | H75: 205.15 | I75: 2875238 | J75: 589809311.1 | K75: 2019-07-30 | L75: 29239 | M75: INE079A01024
A76: AMDIND | B76: EQ | C76: 15.9 | D76: 15.9 | E76: 14.5 | F76: 14.85 | G76: 14.95 | H76: 14.9 | I76: 5362 | J76: 80399.75 | K76: 2019-07-30 | L76: 76 | M76: INE005I01014
A77: AMJLAND | B77: EQ | C77: 17.55 | D77: 18 | E77: 17 | F77: 17.2 | G77: 17.05 | H77: 18.15 | I77: 5515 | J77: 95519 | K77: 2019-07-30 | L77: 82 | M77: INE606A01024
A78: AMRUTANJAN | B78: EQ | C78: 299 | D78: 299.8 | E78: 281.65 | F78: 283.3 | G78: 282.1 | H78: 296.15 | I78: 12172 | J78: 3536232.65 | K78: 2019-07-30 | L78: 888 | M78: INE098F01031
A79: ANANTRAJ | B79: EQ | C79: 27.5 | D79: 27.9 | E79: 26.1 | F79: 26.35 | G79: 26.2 | H79: 27.7 | I79: 173374 | J79: 4699440.2 | K79: 2019-07-30 | L79: 802 | M79: INE242C01024
A80: ANDHRABANK | B80: EQ | C80: 21.5 | D80: 21.8 | E80: 20.95 | F80: 21.05 | G80: 21.1 | H80: 21.6 | I80: 479879 | J80: 10216335.35 | K80: 2019-07-30 | L80: 1679 | M80: INE434A01013
A81: ANDHRACEMT | B81: EQ | C81: 2.7 | D81: 2.85 | E81: 2.7 | F81: 2.7 | G81: 2.7 | H81: 2.8 | I81: 46610 | J81: 125892.1 | K81: 2019-07-30 | L81: 64 | M81: INE666E01012
A82: ANDHRSUGAR | B82: EQ | C82: 284.3 | D82: 286.75 | E82: 272.1 | F82: 274.95 | G82: 275 | H82: 285.6 | I82: 23372 | J82: 6526906.9 | K82: 2019-07-30 | L82: 528 | M82: INE715B01013
A83: ANIKINDS | B83: EQ | C83: 8.45 | D83: 8.45 | E83: 8.1 | F83: 8.1 | G83: 8.1 | H83: 8.5 | I83: 963 | J83: 7888.9 | K83: 2019-07-30 | L83: 10 | M83: INE087B01017
A84: ANKITMETAL | B84: BE | C84: 0.65 | D84: 0.65 | E84: 0.6 | F84: 0.65 | G84: 0.6 | H84: 0.65 | I84: 74526 | J84: 46687.7 | K84: 2019-07-30 | L84: 34 | M84: INE106I01010
A85: ANSALAPI | B85: EQ | C85: 4.6 | D85: 4.65 | E85: 4.4 | F85: 4.4 | G85: 4.4 | H85: 4.6 | I85: 77557 | J85: 342741.2 | K85: 2019-07-30 | L85: 115 | M85: INE436A01026
A86: ANSALHSG | B86: EQ | C86: 4.15 | D86: 4.2 | E86: 3.65 | F86: 3.95 | G86: 3.95 | H86: 4.3 | I86: 122807 | J86: 483616.9 | K86: 2019-07-30 | L86: 428 | M86: INE880B01015
A87: ANTGRAPHIC | B87: BE | C87: 0.9 | D87: 0.9 | E87: 0.85 | F87: 0.9 | G87: 0.9 | H87: 0.9 | I87: 3569 | J87: 3162.1 | K87: 2019-07-30 | L87: 6 | M87: INE414B01021
A88: ANUP | B88: EQ | C88: 465 | D88: 474.55 | E88: 445 | F88: 451.4 | G88: 446 | H88: 471.9 | I88: 3876 | J88: 1788346.35 | K88: 2019-07-30 | L88: 361 | M88: INE294Z01018
A89: APARINDS | B89: EQ | C89: 521.9 | D89: 525.15 | E89: 479.1 | F89: 509.8 | G89: 512.05 | H89: 523.6 | I89: 18547 | J89: 9367126.95 | K89: 2019-07-30 | L89: 2967 | M89: INE372A01015
A90: APCL | B90: EQ | C90: 164.35 | D90: 164.9 | E90: 148.65 | F90: 150.55 | G90: 153.5 | H90: 160.35 | I90: 7812 | J90: 1188989.6 | K90: 2019-07-30 | L90: 221 | M90: INE071F01012
A91: APCOTEXIND | B91: EQ | C91: 192 | D91: 194.65 | E91: 181.3 | F91: 185.1 | G91: 186.05 | H91: 190.05 | I91: 19245 | J91: 3595237.9 | K91: 2019-07-30 | L91: 494 | M91: INE116A01032
A92: APEX | B92: EQ | C92: 231.8 | D92: 231.8 | E92: 214 | F92: 217.95 | G92: 214.05 | H92: 230.35 | I92: 36070 | J92: 8110496.25 | K92: 2019-07-30 | L92: 1584 | M92: INE346W01013
A93: APLAPOLLO | B93: EQ | C93: 1400 | D93: 1400 | E93: 1302.5 | F93: 1355.25 | G93: 1355 | H93: 1399.25 | I93: 43975 | J93: 60068047.05 | K93: 2019-07-30 | L93: 6726 | M93: INE702C01019
A94: APLLTD | B94: EQ | C94: 530.9 | D94: 550 | E94: 496.55 | F94: 504.5 | G94: 506 | H94: 530.25 | I94: 101744 | J94: 54091397.2 | K94: 2019-07-30 | L94: 3874 | M94: INE901L01018
A95: APOLLO | B95: EQ | C95: 93.4 | D95: 93.45 | E95: 88 | F95: 88.6 | G95: 89 | H95: 89.15 | I95: 11880 | J95: 1060630.9 | K95: 2019-07-30 | L95: 467 | M95: INE713T01010
A96: APOLLOHOSP | B96: EQ | C96: 1364.9 | D96: 1374 | E96: 1329 | F96: 1333.6 | G96: 1340.5 | H96: 1365.85 | I96: 364277 | J96: 493610700.1 | K96: 2019-07-30 | L96: 28142 | M96: INE437A01024
A97: APOLLOTYRE | B97: EQ | C97: 151.95 | D97: 154.75 | E97: 149 | F97: 149.7 | G97: 149.35 | H97: 154.35 | I97: 4672764 | J97: 712861489.6 | K97: 2019-07-30 | L97: 36123 | M97: INE438A01022
A98: APOLSINHOT | B98: EQ | C98: 886.95 | D98: 909 | E98: 863.6 | F98: 866.5 | G98: 864 | H98: 889.75 | I98: 930 | J98: 826355.45 | K98: 2019-07-30 | L98: 137 | M98: INE451F01024
A99: APTECHT | B99: EQ | C99: 129 | D99: 130.75 | E99: 122 | F99: 124.4 | G99: 123 | H99: 129.55 | I99: 110131 | J99: 13950497.3 | K99: 2019-07-30 | L99: 3217 | M99: INE266F01018
A100: ARCHIDPLY | B100: EQ | C100: 26.55 | D100: 27 | E100: 25.75 | F100: 25.95 | G100: 25.75 | H100: 26.75 | I100: 7427 | J100: 194515.65 | K100: 2019-07-30 | L100: 123 | M100: INE877I01016
A101: ARCHIES | B101: EQ | C101: 17.95 | D101: 17.95 | E101: 16.3 | F101: 16.7 | G101: 16.6 | H101: 17.8 | I101: 24613 | J101: 420719.35 | K101: 2019-07-30 | L101: 268 | M101: INE731A01020
A102: ARCOTECH | B102: EQ | C102: 2.5 | D102: 2.7 | E102: 2.5 | F102: 2.5 | G102: 2.5 | H102: 2.6 | I102: 84346 | J102: 217281.75 | K102: 2019-07-30 | L102: 93 | M102: INE574I01035
A103: ARIES | B103: EQ | C103: 48.9 | D103: 48.9 | E103: 45.8 | F103: 46.15 | G103: 46.7 | H103: 48.55 | I103: 12024 | J103: 567613.5 | K103: 2019-07-30 | L103: 309 | M103: INE298I01015
A104: ARIHANT | B104: EQ | C104: 21.15 | D104: 21.8 | E104: 18.3 | F104: 19.05 | G104: 19.05 | H104: 21.1 | I104: 4162 | J104: 82936.25 | K104: 2019-07-30 | L104: 60 | M104: INE413D01011
A105: ARIHANTSUP | B105: EQ | C105: 34.15 | D105: 36.1 | E105: 33.85 | F105: 33.85 | G105: 33.85 | H105: 35.6 | I105: 64714 | J105: 2245451.8 | K105: 2019-07-30 | L105: 348 | M105: INE643K01018
A106: ARMANFIN | B106: EQ | C106: 390 | D106: 400 | E106: 360.65 | F106: 372.95 | G106: 372.4 | H106: 400.7 | I106: 39989 | J106: 15050238.4 | K106: 2019-07-30 | L106: 1052 | M106: INE109C01017
A107: AROGRANITE | B107: EQ | C107: 36.85 | D107: 38.3 | E107: 36.05 | F107: 36.55 | G107: 36.35 | H107: 36.8 | I107: 3214 | J107: 117439.6 | K107: 2019-07-30 | L107: 87 | M107: INE210C01013
A108: ARROWGREEN | B108: BE | C108: 52.5 | D108: 52.5 | E108: 48.5 | F108: 48.8 | G108: 49 | H108: 50.7 | I108: 3617 | J108: 177800 | K108: 2019-07-30 | L108: 66 | M108: INE570D01018
A109: ARROWTEX | B109: EQ | C109: 11 | D109: 11.5 | E109: 10.25 | F109: 10.25 | G109: 10.45 | H109: 11.15 | I109: 4305 | J109: 46251 | K109: 2019-07-30 | L109: 61 | M109: INE933J01015
A110: ARSHIYA | B110: EQ | C110: 16.45 | D110: 18.2 | E110: 16.3 | F110: 17.95 | G110: 17.5 | H110: 16.95 | I110: 40363 | J110: 710484.85 | K110: 2019-07-30 | L110: 120 | M110: INE968D01022
A111: ARSSINFRA | B111: EQ | C111: 28 | D111: 29.2 | E111: 27.75 | F111: 28.8 | G111: 29.2 | H111: 27.85 | I111: 16140 | J111: 465224.45 | K111: 2019-07-30 | L111: 185 | M111: INE267I01010
A112: ARVIND | B112: EQ | C112: 53.9 | D112: 56.35 | E112: 53.25 | F112: 54.1 | G112: 54.1 | H112: 53.7 | I112: 10280946 | J112: 566427656.4 | K112: 2019-07-30 | L112: 34162 | M112: INE034A01011
A113: ARVINDFASN | B113: EQ | C113: 626.75 | D113: 631.5 | E113: 614 | F113: 616.15 | G113: 614 | H113: 631.85 | I113: 50498 | J113: 31532592.45 | K113: 2019-07-30 | L113: 3010 | M113: INE955V01021
A114: ARVSMART | B114: EQ | C114: 88.4 | D114: 92.3 | E114: 86.4 | F114: 90.45 | G114: 91.95 | H114: 91.95 | I114: 29355 | J114: 2633016.9 | K114: 2019-07-30 | L114: 736 | M114: INE034S01021
A115: ASAHIINDIA | B115: EQ | C115: 200.1 | D115: 200.95 | E115: 194.3 | F115: 200.2 | G115: 200.5 | H115: 202.1 | I115: 70069 | J115: 13947286.95 | K115: 2019-07-30 | L115: 933 | M115: INE439A01020
A116: ASAHISONG | B116: EQ | C116: 128.2 | D116: 134.65 | E116: 121.25 | F116: 124.75 | G116: 125.95 | H116: 128.3 | I116: 2689 | J116: 341541.25 | K116: 2019-07-30 | L116: 196 | M116: INE228I01012
A117: ASAL | B117: EQ | C117: 39 | D117: 44.7 | E117: 36.5 | F117: 37.25 | G117: 37.7 | H117: 38.95 | I117: 26260 | J117: 1056610.4 | K117: 2019-07-30 | L117: 301 | M117: INE900C01027
A118: ASHAPURMIN | B118: EQ | C118: 24.5 | D118: 24.55 | E118: 22.5 | F118: 22.55 | G118: 22.95 | H118: 23.65 | I118: 47931 | J118: 1091819.05 | K118: 2019-07-30 | L118: 141 | M118: INE348A01023
A119: ASHIANA | B119: EQ | C119: 115.05 | D119: 115.35 | E119: 106.65 | F119: 111.55 | G119: 111 | H119: 114.65 | I119: 29281 | J119: 3262858.15 | K119: 2019-07-30 | L119: 765 | M119: INE365D01021
A120: ASHIMASYN | B120: EQ | C120: 7.05 | D120: 7.5 | E120: 6.1 | F120: 6.95 | G120: 7.05 | H120: 7.2 | I120: 124991 | J120: 865047.4 | K120: 2019-07-30 | L120: 405 | M120: INE440A01010
A121: ASHOKA | B121: EQ | C121: 120.3 | D121: 124.6 | E121: 118.25 | F121: 119.25 | G121: 118.85 | H121: 120.3 | I121: 1029529 | J121: 123800061.5 | K121: 2019-07-30 | L121: 9244 | M121: INE442H01029
A122: ASHOKLEY | B122: EQ | C122: 71.5 | D122: 72.45 | E122: 68 | F122: 68.55 | G122: 68.2 | H122: 71.65 | I122: 28661597 | J122: 2004372862 | K122: 2019-07-30 | L122: 90235 | M122: INE208A01029
A123: ASIANHOTNR | B123: EQ | C123: 115.2 | D123: 119 | E123: 101.35 | F123: 110.05 | G123: 110 | H123: 117.55 | I123: 4548 | J123: 504642.75 | K123: 2019-07-30 | L123: 283 | M123: INE363A01022
A124: ASIANPAINT | B124: EQ | C124: 1511.1 | D124: 1527 | E124: 1502.7 | F124: 1508.75 | G124: 1509.5 | H124: 1513.25 | I124: 1436383 | J124: 2175478308 | K124: 2019-07-30 | L124: 99390 | M124: INE021A01026
A125: ASIANTILES | B125: EQ | C125: 217.4 | D125: 221.5 | E125: 215.7 | F125: 217.45 | G125: 216.5 | H125: 218.5 | I125: 175497 | J125: 38607395.2 | K125: 2019-07-30 | L125: 2753 | M125: INE022I01019
A126: ASPINWALL | B126: EQ | C126: 140.25 | D126: 140.25 | E126: 135 | F126: 135.65 | G126: 136 | H126: 138.15 | I126: 727 | J126: 98628.65 | K126: 2019-07-30 | L126: 20 | M126: INE991I01015
A127: ASSAMCO | B127: BE | C127: 1.1 | D127: 1.1 | E127: 1.05 | F127: 1.05 | G127: 1.1 | H127: 1.05 | I127: 109804 | J127: 117419.85 | K127: 2019-07-30 | L127: 72 | M127: INE442A01024
A128: ASTEC | B128: EQ | C128: 382 | D128: 389.5 | E128: 338 | F128: 346.35 | G128: 341.5 | H128: 379.3 | I128: 179904 | J128: 66693959.15 | K128: 2019-07-30 | L128: 7649 | M128: INE563J01010
A129: ASTERDM | B129: EQ | C129: 123.5 | D129: 124 | E129: 121.5 | F129: 123.15 | G129: 122.95 | H129: 123.35 | I129: 125721 | J129: 15414216.9 | K129: 2019-07-30 | L129: 955 | M129: INE914M01019
A130: ASTRAL | B130: EQ | C130: 1255 | D130: 1269.05 | E130: 1237.65 | F130: 1241.85 | G130: 1241.25 | H130: 1242.3 | I130: 19250 | J130: 24064758.85 | K130: 2019-07-30 | L130: 1940 | M130: INE006I01046
A131: ASTRAMICRO | B131: EQ | C131: 79.65 | D131: 81 | E131: 75.85 | F131: 76.8 | G131: 76.1 | H131: 80.65 | I131: 210366 | J131: 16406353.85 | K131: 2019-07-30 | L131: 2019 | M131: INE386C01029
A132: ASTRAZEN | B132: EQ | C132: 1908.15 | D132: 2068 | E132: 1902.25 | F132: 1988.15 | G132: 1960 | H132: 1896.65 | I132: 91594 | J132: 185129887.7 | K132: 2019-07-30 | L132: 11274 | M132: INE203A01020
A133: ASTRON | B133: EQ | C133: 87.5 | D133: 90.9 | E133: 83.1 | F133: 85.45 | G133: 85.3 | H133: 90 | I133: 276861 | J133: 24517865.2 | K133: 2019-07-30 | L133: 2895 | M133: INE646X01014
A134: ATFL | B134: EQ | C134: 503 | D134: 506.85 | E134: 495 | F134: 500.35 | G134: 495 | H134: 505 | I134: 3386 | J134: 1697404.25 | K134: 2019-07-30 | L134: 200 | M134: INE209A01019
A135: ATLANTA | B135: EQ | C135: 8.6 | D135: 8.7 | E135: 8.25 | F135: 8.25 | G135: 8.25 | H135: 8.65 | I135: 15506 | J135: 129002.4 | K135: 2019-07-30 | L135: 103 | M135: INE285H01022
A136: ATLASCYCLE | B136: BE | C136: 41 | D136: 41 | E136: 39.6 | F136: 40.2 | G136: 40.25 | H136: 39.55 | I136: 5520 | J136: 223700.45 | K136: 2019-07-30 | L136: 56 | M136: INE446A01025
A137: ATNINTER | B137: BE | C137: 0.2 | D137: 0.2 | E137: 0.15 | F137: 0.2 | G137: 0.2 | H137: 0.2 | I137: 31330 | J137: 4811.9 | K137: 2019-07-30 | L137: 41 | M137: INE803A01027
A138: ATUL | B138: EQ | C138: 3590 | D138: 3690 | E138: 3590 | F138: 3646.8 | G138: 3672 | H138: 3615.75 | I138: 72280 | J138: 263340008.5 | K138: 2019-07-30 | L138: 5360 | M138: INE100A01010
A139: ATULAUTO | B139: EQ | C139: 244.65 | D139: 245.15 | E139: 234 | F139: 234.7 | G139: 234 | H139: 244.65 | I139: 5713 | J139: 1369880 | K139: 2019-07-30 | L139: 376 | M139: INE951D01028
A140: AUBANK | B140: EQ | C140: 656 | D140: 665 | E140: 645 | F140: 654.55 | G140: 656.55 | H140: 657.05 | I140: 377646 | J140: 247383128.3 | K140: 2019-07-30 | L140: 13475 | M140: INE949L01017
A141: AURIONPRO | B141: EQ | C141: 100.05 | D141: 100.9 | E141: 96 | F141: 96.75 | G141: 97.8 | H141: 100.1 | I141: 5939 | J141: 582195.25 | K141: 2019-07-30 | L141: 156 | M141: INE132H01018
A142: AUROPHARMA | B142: EQ | C142: 554 | D142: 574.45 | E142: 549.5 | F142: 551.95 | G142: 551.95 | H142: 551.15 | I142: 3185551 | J142: 1796071183 | K142: 2019-07-30 | L142: 58615 | M142: INE406A01037
A143: AUSOMENT | B143: EQ | C143: 32.05 | D143: 32.5 | E143: 31.55 | F143: 31.7 | G143: 31.95 | H143: 33.1 | I143: 3761 | J143: 119067.9 | K143: 2019-07-30 | L143: 54 | M143: INE218C01016
A144: AUTOAXLES | B144: EQ | C144: 815 | D144: 844 | E144: 780.1 | F144: 787.25 | G144: 785.05 | H144: 816.85 | I144: 13357 | J144: 10600608.5 | K144: 2019-07-30 | L144: 1224 | M144: INE449A01011
A145: AUTOIND | B145: EQ | C145: 43 | D145: 43.05 | E145: 40.7 | F145: 41.35 | G145: 40.7 | H145: 42.85 | I145: 6203 | J145: 260627.3 | K145: 2019-07-30 | L145: 172 | M145: INE718H01014
A146: AUTOLITIND | B146: EQ | C146: 26 | D146: 26.25 | E146: 23.95 | F146: 23.95 | G146: 24 | H146: 25.2 | I146: 2653 | J146: 63576.5 | K146: 2019-07-30 | L146: 22 | M146: INE448A01013
A147: AVADHSUGAR | B147: EQ | C147: 264 | D147: 264 | E147: 235.8 | F147: 237.6 | G147: 237 | H147: 261.95 | I147: 69288 | J147: 17197516.95 | K147: 2019-07-30 | L147: 2777 | M147: INE349W01017
A148: AVANTIFEED | B148: EQ | C148: 320.4 | D148: 322.5 | E148: 306.2 | F148: 308 | G148: 307.5 | H148: 318.8 | I148: 183469 | J148: 57773812.2 | K148: 2019-07-30 | L148: 6550 | M148: INE871C01038
A149: AVTNPL | B149: EQ | C149: 21.3 | D149: 22.75 | E149: 21.1 | F149: 21.15 | G149: 21.25 | H149: 21.45 | I149: 51005 | J149: 1089341.35 | K149: 2019-07-30 | L149: 183 | M149: INE488D01021
A150: AXISBANK | B150: EQ | C150: 725.95 | D150: 728 | E150: 701 | F150: 707.6 | G150: 702.4 | H150: 720.25 | I150: 14100900 | J150: 1.005754141e+10 | K150: 2019-07-30 | L150: 198050 | M150: INE238A01034
A151: AXISCADES | B151: EQ | C151: 64.25 | D151: 69 | E151: 63.55 | F151: 64.65 | G151: 63.6 | H151: 64.95 | I151: 463501 | J151: 31037150.7 | K151: 2019-07-30 | L151: 2781 | M151: INE555B01013
A152: AXISGOLD | B152: EQ | C152: 3044.05 | D152: 3063.85 | E152: 3044.05 | F152: 3060.15 | G152: 3059.9 | H152: 3031.15 | I152: 64 | J152: 195641.05 | K152: 2019-07-30 | L152: 23 | M152: INF846K01347
A153: AXISNIFTY | B153: EQ | C153: 1154.23 | D153: 1159.4 | E153: 1142 | F153: 1142.77 | G153: 1143.22 | H153: 1151.94 | I153: 141 | J153: 161383.39 | K153: 2019-07-30 | L153: 11 | M153: INF846K01ZL0
A154: AYMSYNTEX | B154: EQ | C154: 32.2 | D154: 32.55 | E154: 27.45 | F154: 28.3 | G154: 27.55 | H154: 32.2 | I154: 23346 | J154: 672058.8 | K154: 2019-07-30 | L154: 233 | M154: INE193B01039
A155: BAFNAPHARM | B155: BE | C155: 5.75 | D155: 6.1 | E155: 5.7 | F155: 5.95 | G155: 6 | H155: 6 | I155: 3030 | J155: 17432.5 | K155: 2019-07-30 | L155: 11 | M155: INE878I01014
A156: BAGFILMS | B156: EQ | C156: 3.1 | D156: 3.25 | E156: 3 | F156: 3 | G156: 3 | H156: 3.15 | I156: 66557 | J156: 205588.35 | K156: 2019-07-30 | L156: 100 | M156: INE116D01028
A157: BAJAJ-AUTO | B157: EQ | C157: 2490 | D157: 2515 | E157: 2445.45 | F157: 2463.85 | G157: 2467.7 | H157: 2487.65 | I157: 784779 | J157: 1942850515 | K157: 2019-07-30 | L157: 46464 | M157: INE917I01010
A158: BAJAJCON | B158: EQ | C158: 277.45 | D158: 277.6 | E158: 267 | F158: 269.1 | G158: 268.5 | H158: 275.3 | I158: 28074 | J158: 7656478.8 | K158: 2019-07-30 | L158: 1460 | M158: INE933K01021
A159: BAJAJELEC | B159: EQ | C159: 369 | D159: 374.9 | E159: 350.1 | F159: 355.85 | G159: 357.05 | H159: 367.95 | I159: 188266 | J159: 67347055.8 | K159: 2019-07-30 | L159: 6133 | M159: INE193E01025
A160: BAJAJFINSV | B160: EQ | C160: 7150 | D160: 7257.75 | E160: 7056 | F160: 7078.05 | G160: 7093.65 | H160: 7120.85 | I160: 342504 | J160: 2452513863 | K160: 2019-07-30 | L160: 37172 | M160: INE918I01018
A161: BAJAJHIND | B161: EQ | C161: 6.7 | D161: 6.8 | E161: 6.15 | F161: 6.3 | G161: 6.25 | H161: 6.7 | I161: 1348725 | J161: 8728239.3 | K161: 2019-07-30 | L161: 1466 | M161: INE306A01021
A162: BAJAJHLDNG | B162: EQ | C162: 3417.8 | D162: 3594.9 | E162: 3414.35 | F162: 3562.9 | G162: 3530 | H162: 3414.2 | I162: 77206 | J162: 271295845.2 | K162: 2019-07-30 | L162: 7971 | M162: INE118A01012
A163: BAJFINANCE | B163: EQ | C163: 3260 | D163: 3299 | E163: 3231.3 | F163: 3249.95 | G163: 3249.35 | H163: 3252.65 | I163: 2284905 | J163: 7465274478 | K163: 2019-07-30 | L163: 116664 | M163: INE296A01024
A164: BALAJITELE | B164: EQ | C164: 57.75 | D164: 57.95 | E164: 56 | F164: 56.65 | G164: 57.25 | H164: 57.05 | I164: 31159 | J164: 1762167.8 | K164: 2019-07-30 | L164: 264 | M164: INE794B01026
A165: BALAMINES | B165: EQ | C165: 240 | D165: 243.9 | E165: 225 | F165: 227.05 | G165: 225 | H165: 243.1 | I165: 37471 | J165: 8768876.45 | K165: 2019-07-30 | L165: 1567 | M165: INE050E01027
A166: BALAXI | B166: BE | C166: 67.85 | D166: 70 | E166: 64.5 | F166: 68 | G166: 68 | H166: 67.85 | I166: 1138 | J166: 73728.95 | K166: 2019-07-30 | L166: 12 | M166: INE618N01014
A167: BALKRISHNA | B167: EQ | C167: 20.5 | D167: 21.1 | E167: 18.55 | F167: 18.85 | G167: 18.55 | H167: 20.95 | I167: 13290 | J167: 261025.15 | K167: 2019-07-30 | L167: 204 | M167: INE875R01011
A168: BALKRISIND | B168: EQ | C168: 717.4 | D168: 720.9 | E168: 697.2 | F168: 700.8 | G168: 702 | H168: 716.3 | I168: 473563 | J168: 334364423.6 | K168: 2019-07-30 | L168: 9651 | M168: INE787D01026
A169: BALLARPUR | B169: EQ | C169: 0.8 | D169: 0.85 | E169: 0.8 | F169: 0.8 | G169: 0.8 | H169: 0.85 | I169: 3285768 | J169: 2628615.15 | K169: 2019-07-30 | L169: 348 | M169: INE294A01037
A170: BALMLAWRIE | B170: EQ | C170: 171.5 | D170: 174.9 | E170: 169.75 | F170: 170.25 | G170: 170.15 | H170: 172.3 | I170: 56673 | J170: 9722531.15 | K170: 2019-07-30 | L170: 1295 | M170: INE164A01016
A171: BALPHARMA | B171: EQ | C171: 46.15 | D171: 46.2 | E171: 41.05 | F171: 43.5 | G171: 44.1 | H171: 45.95 | I171: 11816 | J171: 515169.2 | K171: 2019-07-30 | L171: 287 | M171: INE083D01012
A172: BALRAMCHIN | B172: EQ | C172: 153.95 | D172: 155 | E172: 145.2 | F172: 146.35 | G172: 146.15 | H172: 154.5 | I172: 1035442 | J172: 155476943.5 | K172: 2019-07-30 | L172: 14004 | M172: INE119A01028
A173: BANARBEADS | B173: EQ | C173: 42.8 | D173: 44.05 | E173: 41 | F173: 41.1 | G173: 41 | H173: 42.8 | I173: 7525 | J173: 313963.55 | K173: 2019-07-30 | L173: 83 | M173: INE655B01011
A174: BANARISUG | B174: EQ | C174: 1428.05 | D174: 1428.05 | E174: 1350 | F174: 1361.15 | G174: 1350 | H174: 1400 | I174: 2368 | J174: 3308832.65 | K174: 2019-07-30 | L174: 80 | M174: INE459A01010
A175: BANCOINDIA | B175: EQ | C175: 97.9 | D175: 99.55 | E175: 96.95 | F175: 97.2 | G175: 96.95 | H175: 98.9 | I175: 15422 | J175: 1512201.95 | K175: 2019-07-30 | L175: 553 | M175: INE213C01025
A176: BANDHANBNK | B176: EQ | C176: 493 | D176: 498.8 | E176: 471 | F176: 480.7 | G176: 483 | H176: 492.25 | I176: 948861 | J176: 460682830.9 | K176: 2019-07-30 | L176: 44329 | M176: INE545U01014
A177: BANG | B177: EQ | C177: 35.9 | D177: 35.9 | E177: 30.4 | F177: 32.55 | G177: 30.5 | H177: 34.9 | I177: 17840 | J177: 597745.55 | K177: 2019-07-30 | L177: 517 | M177: INE863I01016
A178: BANKBARODA | B178: EQ | C178: 109.1 | D178: 109.9 | E178: 101.35 | F178: 102.65 | G178: 102.75 | H178: 109 | I178: 27282787 | J178: 2872906671 | K178: 2019-07-30 | L178: 82267 | M178: INE028A01039
A179: BANKBEES | B179: EQ | C179: 2997.93 | D179: 3004.94 | E179: 2940 | F179: 2943.11 | G179: 2944 | H179: 2985.39 | I179: 5297 | J179: 15709125.36 | K179: 2019-07-30 | L179: 746 | M179: INF732E01078
A180: BANKINDIA | B180: EQ | C180: 75.95 | D180: 76.5 | E180: 69.8 | F180: 70.8 | G180: 70.55 | H180: 75.7 | I180: 25218546 | J180: 1819603534 | K180: 2019-07-30 | L180: 62291 | M180: INE084A01016
A181: BANSWRAS | B181: EQ | C181: 64.25 | D181: 65.1 | E181: 59.6 | F181: 59.95 | G181: 59.6 | H181: 65.05 | I181: 5951 | J181: 373206.4 | K181: 2019-07-30 | L181: 163 | M181: INE629D01012
A182: BARTRONICS | B182: EQ | C182: 3 | D182: 3.2 | E182: 2.75 | F182: 3.05 | G182: 3.1 | H182: 3 | I182: 12057 | J182: 35295.1 | K182: 2019-07-30 | L182: 63 | M182: INE855F01034
A183: BASF | B183: EQ | C183: 1082.1 | D183: 1102 | E183: 1060 | F183: 1064.05 | G183: 1066.45 | H183: 1083 | I183: 3542 | J183: 3821391.4 | K183: 2019-07-30 | L183: 565 | M183: INE373A01013
A184: BASML | B184: EQ | C184: 128.05 | D184: 129 | E184: 121 | F184: 124 | G184: 124 | H184: 132 | I184: 3942 | J184: 495233.2 | K184: 2019-07-30 | L184: 193 | M184: INE186H01014
A185: BATAINDIA | B185: EQ | C185: 1302.75 | D185: 1323.7 | E185: 1290.5 | F185: 1301.9 | G185: 1296 | H185: 1302.75 | I185: 478549 | J185: 628246519.9 | K185: 2019-07-30 | L185: 12830 | M185: INE176A01028
A186: BAYERCROP | B186: EQ | C186: 3164.95 | D186: 3164.95 | E186: 3070.75 | F186: 3124.85 | G186: 3114 | H186: 3140.9 | I186: 2672 | J186: 8332401.7 | K186: 2019-07-30 | L186: 946 | M186: INE462A01022
A187: BBL | B187: EQ | C187: 935.05 | D187: 935.05 | E187: 895 | F187: 896.35 | G187: 896 | H187: 934 | I187: 8466 | J187: 7754957 | K187: 2019-07-30 | L187: 512 | M187: INE464A01028
A188: BBTC | B188: EQ | C188: 864.95 | D188: 868 | E188: 802 | F188: 819.9 | G188: 825 | H188: 862.95 | I188: 99471 | J188: 81872469.75 | K188: 2019-07-30 | L188: 5635 | M188: INE050A01025
A189: BCG | B189: EQ | C189: 3.3 | D189: 3.4 | E189: 3.2 | F189: 3.25 | G189: 3.3 | H189: 3.35 | I189: 469456 | J189: 1544687.7 | K189: 2019-07-30 | L189: 273 | M189: INE425B01027
A190: BDL | B190: EQ | C190: 301.55 | D190: 307.95 | E190: 291.6 | F190: 297.35 | G190: 293 | H190: 305.1 | I190: 28367 | J190: 8524133 | K190: 2019-07-30 | L190: 1435 | M190: INE171Z01018
A191: BEARDSELL | B191: EQ | C191: 14.9 | D191: 14.9 | E191: 13.65 | F191: 14.3 | G191: 14.4 | H191: 14.2 | I191: 698 | J191: 9994.9 | K191: 2019-07-30 | L191: 18 | M191: INE520H01022
A192: BEDMUTHA | B192: EQ | C192: 13.9 | D192: 15.95 | E192: 13.9 | F192: 14.5 | G192: 14.5 | H192: 14.95 | I192: 4789 | J192: 70772.4 | K192: 2019-07-30 | L192: 47 | M192: INE844K01012
A193: BEL | B193: EQ | C193: 93.4 | D193: 100.4 | E193: 93.25 | F193: 98.4 | G193: 97.95 | H193: 92.75 | I193: 38172286 | J193: 3747940778 | K193: 2019-07-30 | L193: 123249 | M193: INE263A01024
A194: BEML | B194: EQ | C194: 898.45 | D194: 905 | E194: 837.3 | F194: 856.7 | G194: 842 | H194: 894 | I194: 510220 | J194: 451505965.1 | K194: 2019-07-30 | L194: 20036 | M194: INE258A01016
A195: BEPL | B195: EQ | C195: 61.15 | D195: 62.45 | E195: 60.1 | F195: 60.45 | G195: 60.25 | H195: 61.1 | I195: 211233 | J195: 12928723.85 | K195: 2019-07-30 | L195: 2032 | M195: INE922A01025
A196: BERGEPAINT | B196: EQ | C196: 334.4 | D196: 340.9 | E196: 330.35 | F196: 332.4 | G196: 332.1 | H196: 332.35 | I196: 2744012 | J196: 920645109.9 | K196: 2019-07-30 | L196: 43141 | M196: INE463A01038
A197: BFINVEST | B197: EQ | C197: 263.9 | D197: 265.9 | E197: 256 | F197: 259.45 | G197: 260 | H197: 264.95 | I197: 80855 | J197: 20972445.55 | K197: 2019-07-30 | L197: 2458 | M197: INE878K01010
A198: BFUTILITIE | B198: EQ | C198: 199.9 | D198: 202.45 | E198: 175.3 | F198: 181.7 | G198: 177.8 | H198: 198.85 | I198: 731374 | J198: 140021802.9 | K198: 2019-07-30 | L198: 13815 | M198: INE243D01012
A199: BGLOBAL | B199: BE | C199: 1.2 | D199: 1.2 | E199: 1.1 | F199: 1.1 | G199: 1.1 | H199: 1.15 | I199: 37578 | J199: 42149.7 | K199: 2019-07-30 | L199: 31 | M199: INE224M01013
A200: BGRENERGY | B200: EQ | C200: 45.5 | D200: 45.5 | E200: 42 | F200: 42.55 | G200: 42.1 | H200: 44.35 | I200: 56544 | J200: 2437790.9 | K200: 2019-07-30 | L200: 642 | M200: INE661I01014
... 1469 more rows

Sheet Sheet1 (hidden)

Sheet Sheet3 (hidden)

Sheet Sheet4 (hidden)
